Workbook

Sheet Basic Input
E1: Transition Zone Straight-Line Diagram Workbook
E2: Enter Fields in Grey Boxes With Blue Text
B3: Reference Location: | C3: Navarre Road | E3: Enter a cross-street as the reference location for the diagram. The intersection should be within community portion of study area and will serve as the zero point on the straight-line diagram.
B5: State Mile Post for Reference Location: | C5: 5.35 | E5: Enter the state mile post of above cross-street reference location. | P5: DATA INPUT -- DO NOT MODIFY
B7: Increasing/Decreasing MP: | C7: Increasing | E7: Enter whether the mile posts are increasing or decreasing when traveling away from the community.
P9: Length of Analysis: | Q9: 2500 | R9: In feet | U9: Increasing | W9: Right | Z9: Tangent
B10: Number of Years of Crash Data: | C10: 5 | D10: years | E10: Enter the number of years of crash data being used in the analysis. | U10: Decreasing | W10: Left | Z10: Curve Right
P11: Length Before Start of Analysis to Consider: | Z11: Curve Left
B12: Average Crash Rate for Similar Roads: | C12: 1.104 | Q12: 1000 | R12: In feet | U12: x= | V12: 0
P13: Length After End of Analysis to Consider:
B14: Crash Rate Threshold: | Q14: 1000 | R14: In feet
B17: Land-Use Data: | C17: Enter land-use data directly onto the Straight Line Diagram sheet using text boxes. Use an aerial photo placed on the straight-line diagram to assist. Some typical land-uses are provided on the right for reference. | H17: Typical Land-Uses
H18: Rural
H19: Residential
H20: Retail
H21: Industrial
H22: Office
H23: Mixed-Use
H24: Recreational
H25: Farm
H26: Park
C28: MP | D28: Elevation (ft)
B29: Enter Vertical Elevation Data: | C29: 5.25 | D29: 931 | E29: Define the approximate vertical geometry by entering between 3 and 20 mile post and elevation pairs.
C30: 5.35 | D30: 929
C31: 5.45 | D31: 933
C32: 5.48 | D32: 932
C33: 5.51 | D33: 934
C34: 5.55 | D34: 932
C35: 5.59 | D35: 932
C36: 5.63 | D36: 928
C37: 5.7 | D37: 929
C38: 5.78 | D38: 930
C39: 5.85 | D39: 929
C40: 5.89 | D40: 930
C50: Type | D50: Start | E50: End | F50: Radius (ft)
B51: Enter Horizontal Curvature Data: | C51: Tangent | D51: -1000 | E51: 3500 | F51: 0 | G51: Define the approximate horizontal geometry by entering sections of tangents and curves. Provide the start and end points in feet from the reference point (similar to the land-use data entry fields above). For curves enter the radius (enter 0 for tangent sections).
C62: Start | D62: End | E62: Two-Way ADT
B63: Enter Average Daily Traffic Data: | C63: -1000 | D63: 3500 | E63: 4310 | G63: Enter up to five average daily traffic volumes, providing the start and end points in feet from the reference point.
E70: Remember To Fill Out Data Inputs Sheet

Sheet Data Inputs
G1: Enter Posted Speeds, Observed Speeds, Crash Data, and Access Points In Grey Boxes With Blue Text
C3: Please Do Not Modify the Cells in Red | G3: Observed Speed Data | I3: Crash Data (nearest MP)
C4: Distance (miles) | D4: Distance (feet) | E4: Mile Post | F4: Posted Speed (mph) | G4: 85th Percentile Speed | H4: Mean Speed | I4: Property Damage Only | J4: Injury | K4: Fatal | L4: Access Points
A5: =IF(H5<>"", A4+1, A4) -> 0 | B5: 0 | C5: =IF(D5="", "", D5*0.0001893939) -> -0.1893939 | D5: =-'Basic Input'!Q12 -> -1000 | E5: =IF(D5="", "",IF(D5=0, 'Basic Input'!$C$5, IF('Basic Input'!$C$7="Increasing", 'Basic Input'!$C$5+(D5/5280), 'Basic Input'!$C$5-(D5/5280)))) -> 5.160606061 | N5: Posted Speeds
A6: =IF(H6<>"", A5+1, A5) -> 0 | B6: =IF(F5="", B5+1, B5+2) -> 1 | C6: =IF(D6="", "", D6*0.0001893939) -> -0.17045451 | D6: =IF(D5="", "", IF(D5+100<='Basic Input'!$Q$14+'Basic Input'!$Q$9, D5+100, "")) -> -900 | E6: =IF(D6="", "",IF(D6=0, 'Basic Input'!$C$5, IF('Basic Input'!$C$7="Increasing", 'Basic Input'!$C$5+(D6/5280), 'Basic Input'!$C$5-(D6/5280)))) -> 5.179545455 | N6: Enter the posted speeds based on feet from the reference point (column D).
A7: 0 | B7: =IF(F6="", B6+1, B6+2) -> 2 | C7: -0.15151512 | D7: =IF(D6="", "", IF(D6+100<='Basic Input'!$Q$14+'Basic Input'!$Q$9, D6+100, "")) -> -800 | E7: =IF(D7="", "",IF(D7=0, 'Basic Input'!$C$5, IF('Basic Input'!$C$7="Increasing", 'Basic Input'!$C$5+(D7/5280), 'Basic Input'!$C$5-(D7/5280)))) -> 5.198484848
A8: 0 | B8: 3 | C8: -0.13257573 | D8: =IF(D7="", "", IF(D7+100<='Basic Input'!$Q$14+'Basic Input'!$Q$9, D7+100, "")) -> -700 | E8: =IF(D8="", "",IF(D8=0, 'Basic Input'!$C$5, IF('Basic Input'!$C$7="Increasing", 'Basic Input'!$C$5+(D8/5280), 'Basic Input'!$C$5-(D8/5280)))) -> 5.217424242
A9: 0 | B9: =IF(F8="", B8+1, B8+2) -> 4 | C9: -0.11363634 | D9: =IF(D8="", "", IF(D8+100<='Basic Input'!$Q$14+'Basic Input'!$Q$9, D8+100, "")) -> -600 | E9: =IF(D9="", "",IF(D9=0, 'Basic Input'!$C$5, IF('Basic Input'!$C$7="Increasing", 'Basic Input'!$C$5+(D9/5280), 'Basic Input'!$C$5-(D9/5280)))) -> 5.236363636 | N9: Observed Speed Data
A10: 0 | B10: 5 | C10: -0.09469695 | D10: =IF(D9="", "", IF(D9+100<='Basic Input'!$Q$14+'Basic Input'!$Q$9, D9+100, "")) -> -500 | E10: =IF(D10="", "",IF(D10=0, 'Basic Input'!$C$5, IF('Basic Input'!$C$7="Increasing", 'Basic Input'!$C$5+(D10/5280), 'Basic Input'!$C$5-(D10/5280)))) -> 5.25530303 | I10: 3 | L10: 2 | N10: Enter the observed 85th percentile and mean speeds based on feet from the reference point.
A11: 0 | B11: 6 | C11: -0.07575756 | D11: =IF(D10="", "", IF(D10+100<='Basic Input'!$Q$14+'Basic Input'!$Q$9, D10+100, "")) -> -400 | E11: =IF(D11="", "",IF(D11=0, 'Basic Input'!$C$5, IF('Basic Input'!$C$7="Increasing", 'Basic Input'!$C$5+(D11/5280), 'Basic Input'!$C$5-(D11/5280)))) -> 5.274242424 | L11: 1
A12: 0 | B12: 7 | C12: -0.05681817 | D12: =IF(D11="", "", IF(D11+100<='Basic Input'!$Q$14+'Basic Input'!$Q$9, D11+100, "")) -> -300 | E12: =IF(D12="", "",IF(D12=0, 'Basic Input'!$C$5, IF('Basic Input'!$C$7="Increasing", 'Basic Input'!$C$5+(D12/5280), 'Basic Input'!$C$5-(D12/5280)))) -> 5.293181818
A13: 0 | B13: 8 | C13: -0.03787878 | D13: =IF(D12="", "", IF(D12+100<='Basic Input'!$Q$14+'Basic Input'!$Q$9, D12+100, "")) -> -200 | E13: =IF(D13="", "",IF(D13=0, 'Basic Input'!$C$5, IF('Basic Input'!$C$7="Increasing", 'Basic Input'!$C$5+(D13/5280), 'Basic Input'!$C$5-(D13/5280)))) -> 5.312121212 | L13: 1 | N13: Crash Data
A14: 0 | B14: 9 | C14: -0.01893939 | D14: =IF(D13="", "", IF(D13+100<='Basic Input'!$Q$14+'Basic Input'!$Q$9, D13+100, "")) -> -100 | E14: =IF(D14="", "",IF(D14=0, 'Basic Input'!$C$5, IF('Basic Input'!$C$7="Increasing", 'Basic Input'!$C$5+(D14/5280), 'Basic Input'!$C$5-(D14/5280)))) -> 5.331060606 | L14: 1 | N14: Enter all reported crashes by type using either the distance from the reference point of mile post information. Locations must be grouped to the nearest 100-foot location (100-foot "bins'). Enter the number of crashes occurring at that location (could be more than one).
A15: 0 | B15: 10 | C15: 0 | D15: =IF(D14="", "", IF(D14+100<='Basic Input'!$Q$14+'Basic Input'!$Q$9, D14+100, "")) -> 0 | E15: =IF(D15="", "",IF(D15=0, 'Basic Input'!$C$5, IF('Basic Input'!$C$7="Increasing", 'Basic Input'!$C$5+(D15/5280), 'Basic Input'!$C$5-(D15/5280)))) -> 5.35 | I15: 1 | J15: 2 | L15: 2
A16: 1 | B16: 11 | C16: 0.01893939 | D16: =IF(D15="", "", IF(D15+100<='Basic Input'!$Q$14+'Basic Input'!$Q$9, D15+100, "")) -> 100 | E16: =IF(D16="", "",IF(D16=0, 'Basic Input'!$C$5, IF('Basic Input'!$C$7="Increasing", 'Basic Input'!$C$5+(D16/5280), 'Basic Input'!$C$5-(D16/5280)))) -> 5.368939394 | G16: 34 | H16: 30
A17: 1 | B17: 12 | C17: 0.03787878 | D17: =IF(D16="", "", IF(D16+100<='Basic Input'!$Q$14+'Basic Input'!$Q$9, D16+100, "")) -> 200 | E17: =IF(D17="", "",IF(D17=0, 'Basic Input'!$C$5, IF('Basic Input'!$C$7="Increasing", 'Basic Input'!$C$5+(D17/5280), 'Basic Input'!$C$5-(D17/5280)))) -> 5.387878788 | L17: 1
A18: 1 | B18: 13 | C18: 0.05681817 | D18: =IF(D17="", "", IF(D17+100<='Basic Input'!$Q$14+'Basic Input'!$Q$9, D17+100, "")) -> 300 | E18: =IF(D18="", "",IF(D18=0, 'Basic Input'!$C$5, IF('Basic Input'!$C$7="Increasing", 'Basic Input'!$C$5+(D18/5280), 'Basic Input'!$C$5-(D18/5280)))) -> 5.406818182
A19: 1 | B19: 14 | C19: 0.07575756 | D19: =IF(D18="", "", IF(D18+100<='Basic Input'!$Q$14+'Basic Input'!$Q$9, D18+100, "")) -> 400 | E19: =IF(D19="", "",IF(D19=0, 'Basic Input'!$C$5, IF('Basic Input'!$C$7="Increasing", 'Basic Input'!$C$5+(D19/5280), 'Basic Input'!$C$5-(D19/5280)))) -> 5.425757576 | I19: 1 | L19: 1 | N19: Access Points
A20: 2 | B20: 15 | C20: 0.09469695 | D20: =IF(D19="", "", IF(D19+100<='Basic Input'!$Q$14+'Basic Input'!$Q$9, D19+100, "")) -> 500 | E20: =IF(D20="", "",IF(D20=0, 'Basic Input'!$C$5, IF('Basic Input'!$C$7="Increasing", 'Basic Input'!$C$5+(D20/5280), 'Basic Input'!$C$5-(D20/5280)))) -> 5.44469697 | G20: 38 | H20: 33 | N20: Enter the number of access points (on both sides of the roadway). Count all active driveways and streets, but do not count inactive/unused locations. Similar to the crash data, it is necessary to group access points into 100-foot "bins". There could be more than one access point in a particular 100-foot stretch of roadway.
A21: 2 | B21: 16 | C21: 0.11363634 | D21: =IF(D20="", "", IF(D20+100<='Basic Input'!$Q$14+'Basic Input'!$Q$9, D20+100, "")) -> 600 | E21: =IF(D21="", "",IF(D21=0, 'Basic Input'!$C$5, IF('Basic Input'!$C$7="Increasing", 'Basic Input'!$C$5+(D21/5280), 'Basic Input'!$C$5-(D21/5280)))) -> 5.463636364
A22: 2 | B22: 17 | C22: 0.13257573 | D22: =IF(D21="", "", IF(D21+100<='Basic Input'!$Q$14+'Basic Input'!$Q$9, D21+100, "")) -> 700 | E22: =IF(D22="", "",IF(D22=0, 'Basic Input'!$C$5, IF('Basic Input'!$C$7="Increasing", 'Basic Input'!$C$5+(D22/5280), 'Basic Input'!$C$5-(D22/5280)))) -> 5.482575758
A23: 2 | B23: 18 | C23: 0.15151512 | D23: =IF(D22="", "", IF(D22+100<='Basic Input'!$Q$14+'Basic Input'!$Q$9, D22+100, "")) -> 800 | E23: =IF(D23="", "",IF(D23=0, 'Basic Input'!$C$5, IF('Basic Input'!$C$7="Increasing", 'Basic Input'!$C$5+(D23/5280), 'Basic Input'!$C$5-(D23/5280)))) -> 5.501515152 | I23: 1 | L23: 1
A24: 2 | B24: 19 | C24: 0.17045451 | D24: =IF(D23="", "", IF(D23+100<='Basic Input'!$Q$14+'Basic Input'!$Q$9, D23+100, "")) -> 900 | E24: =IF(D24="", "",IF(D24=0, 'Basic Input'!$C$5, IF('Basic Input'!$C$7="Increasing", 'Basic Input'!$C$5+(D24/5280), 'Basic Input'!$C$5-(D24/5280)))) -> 5.520454545 | F24: 30
A25: 2 | B25: 21 | C25: 0.1893939 | D25: =IF(D24="", "", IF(D24+100<='Basic Input'!$Q$14+'Basic Input'!$Q$9, D24+100, "")) -> 1000 | E25: =IF(D25="", "",IF(D25=0, 'Basic Input'!$C$5, IF('Basic Input'!$C$7="Increasing", 'Basic Input'!$C$5+(D25/5280), 'Basic Input'!$C$5-(D25/5280)))) -> 5.539393939
A26: 2 | B26: 22 | C26: 0.20833329 | D26: =IF(D25="", "", IF(D25+100<='Basic Input'!$Q$14+'Basic Input'!$Q$9, D25+100, "")) -> 1100 | E26: =IF(D26="", "",IF(D26=0, 'Basic Input'!$C$5, IF('Basic Input'!$C$7="Increasing", 'Basic Input'!$C$5+(D26/5280), 'Basic Input'!$C$5-(D26/5280)))) -> 5.558333333
A27: 3 | B27: 23 | C27: 0.22727268 | D27: =IF(D26="", "", IF(D26+100<='Basic Input'!$Q$14+'Basic Input'!$Q$9, D26+100, "")) -> 1200 | E27: =IF(D27="", "",IF(D27=0, 'Basic Input'!$C$5, IF('Basic Input'!$C$7="Increasing", 'Basic Input'!$C$5+(D27/5280), 'Basic Input'!$C$5-(D27/5280)))) -> 5.577272727 | H27: 42.0712
A28: 3 | B28: 24 | C28: 0.24621207 | D28: =IF(D27="", "", IF(D27+100<='Basic Input'!$Q$14+'Basic Input'!$Q$9, D27+100, "")) -> 1300 | E28: =IF(D28="", "",IF(D28=0, 'Basic Input'!$C$5, IF('Basic Input'!$C$7="Increasing", 'Basic Input'!$C$5+(D28/5280), 'Basic Input'!$C$5-(D28/5280)))) -> 5.596212121 | L28: 1
A29: 3 | B29: 25 | C29: 0.26515146 | D29: =IF(D28="", "", IF(D28+100<='Basic Input'!$Q$14+'Basic Input'!$Q$9, D28+100, "")) -> 1400 | E29: =IF(D29="", "",IF(D29=0, 'Basic Input'!$C$5, IF('Basic Input'!$C$7="Increasing", 'Basic Input'!$C$5+(D29/5280), 'Basic Input'!$C$5-(D29/5280)))) -> 5.615151515
A30: 3 | B30: 26 | C30: 0.28409085 | D30: =IF(D29="", "", IF(D29+100<='Basic Input'!$Q$14+'Basic Input'!$Q$9, D29+100, "")) -> 1500 | E30: =IF(D30="", "",IF(D30=0, 'Basic Input'!$C$5, IF('Basic Input'!$C$7="Increasing", 'Basic Input'!$C$5+(D30/5280), 'Basic Input'!$C$5-(D30/5280)))) -> 5.634090909
A31: 4 | B31: 27 | C31: 0.30303024 | D31: =IF(D30="", "", IF(D30+100<='Basic Input'!$Q$14+'Basic Input'!$Q$9, D30+100, "")) -> 1600 | E31: =IF(D31="", "",IF(D31=0, 'Basic Input'!$C$5, IF('Basic Input'!$C$7="Increasing", 'Basic Input'!$C$5+(D31/5280), 'Basic Input'!$C$5-(D31/5280)))) -> 5.653030303 | H31: 48.9787
A32: 4 | B32: 28 | C32: 0.32196963 | D32: =IF(D31="", "", IF(D31+100<='Basic Input'!$Q$14+'Basic Input'!$Q$9, D31+100, "")) -> 1700 | E32: =IF(D32="", "",IF(D32=0, 'Basic Input'!$C$5, IF('Basic Input'!$C$7="Increasing", 'Basic Input'!$C$5+(D32/5280), 'Basic Input'!$C$5-(D32/5280)))) -> 5.671969697
A33: 4 | B33: 29 | C33: 0.34090902 | D33: =IF(D32="", "", IF(D32+100<='Basic Input'!$Q$14+'Basic Input'!$Q$9, D32+100, "")) -> 1800 | E33: =IF(D33="", "",IF(D33=0, 'Basic Input'!$C$5, IF('Basic Input'!$C$7="Increasing", 'Basic Input'!$C$5+(D33/5280), 'Basic Input'!$C$5-(D33/5280)))) -> 5.690909091
A34: 4 | B34: 30 | C34: 0.35984841 | D34: =IF(D33="", "", IF(D33+100<='Basic Input'!$Q$14+'Basic Input'!$Q$9, D33+100, "")) -> 1900 | E34: =IF(D34="", "",IF(D34=0, 'Basic Input'!$C$5, IF('Basic Input'!$C$7="Increasing", 'Basic Input'!$C$5+(D34/5280), 'Basic Input'!$C$5-(D34/5280)))) -> 5.709848485
A35: 4 | B35: 31 | C35: 0.3787878 | D35: =IF(D34="", "", IF(D34+100<='Basic Input'!$Q$14+'Basic Input'!$Q$9, D34+100, "")) -> 2000 | E35: =IF(D35="", "",IF(D35=0, 'Basic Input'!$C$5, IF('Basic Input'!$C$7="Increasing", 'Basic Input'!$C$5+(D35/5280), 'Basic Input'!$C$5-(D35/5280)))) -> 5.728787879
A36: 4 | B36: 32 | C36: 0.39772719 | D36: =IF(D35="", "", IF(D35+100<='Basic Input'!$Q$14+'Basic Input'!$Q$9, D35+100, "")) -> 2100 | E36: =IF(D36="", "",IF(D36=0, 'Basic Input'!$C$5, IF('Basic Input'!$C$7="Increasing", 'Basic Input'!$C$5+(D36/5280), 'Basic Input'!$C$5-(D36/5280)))) -> 5.747727273
A37: 4 | B37: 33 | C37: 0.41666658 | D37: =IF(D36="", "", IF(D36+100<='Basic Input'!$Q$14+'Basic Input'!$Q$9, D36+100, "")) -> 2200 | E37: =IF(D37="", "",IF(D37=0, 'Basic Input'!$C$5, IF('Basic Input'!$C$7="Increasing", 'Basic Input'!$C$5+(D37/5280), 'Basic Input'!$C$5-(D37/5280)))) -> 5.766666667 | F37: 50 | I37: 1
A38: 4 | B38: 35 | C38: 0.43560597 | D38: =IF(D37="", "", IF(D37+100<='Basic Input'!$Q$14+'Basic Input'!$Q$9, D37+100, "")) -> 2300 | E38: =IF(D38="", "",IF(D38=0, 'Basic Input'!$C$5, IF('Basic Input'!$C$7="Increasing", 'Basic Input'!$C$5+(D38/5280), 'Basic Input'!$C$5-(D38/5280)))) -> 5.785606061
A39: 4 | B39: 36 | C39: 0.45454536 | D39: =IF(D38="", "", IF(D38+100<='Basic Input'!$Q$14+'Basic Input'!$Q$9, D38+100, "")) -> 2400 | E39: =IF(D39="", "",IF(D39=0, 'Basic Input'!$C$5, IF('Basic Input'!$C$7="Increasing", 'Basic Input'!$C$5+(D39/5280), 'Basic Input'!$C$5-(D39/5280)))) -> 5.804545455
A40: 5 | B40: 37 | C40: 0.47348475 | D40: =IF(D39="", "", IF(D39+100<='Basic Input'!$Q$14+'Basic Input'!$Q$9, D39+100, "")) -> 2500 | E40: =IF(D40="", "",IF(D40=0, 'Basic Input'!$C$5, IF('Basic Input'!$C$7="Increasing", 'Basic Input'!$C$5+(D40/5280), 'Basic Input'!$C$5-(D40/5280)))) -> 5.823484848 | G40: 64 | H40: 58
A41: 5 | B41: 38 | C41: 0.49242414 | D41: =IF(D40="", "", IF(D40+100<='Basic Input'!$Q$14+'Basic Input'!$Q$9, D40+100, "")) -> 2600 | E41: =IF(D41="", "",IF(D41=0, 'Basic Input'!$C$5, IF('Basic Input'!$C$7="Increasing", 'Basic Input'!$C$5+(D41/5280), 'Basic Input'!$C$5-(D41/5280)))) -> 5.842424242
A42: 5 | B42: 39 | C42: 0.51136353 | D42: =IF(D41="", "", IF(D41+100<='Basic Input'!$Q$14+'Basic Input'!$Q$9, D41+100, "")) -> 2700 | E42: =IF(D42="", "",IF(D42=0, 'Basic Input'!$C$5, IF('Basic Input'!$C$7="Increasing", 'Basic Input'!$C$5+(D42/5280), 'Basic Input'!$C$5-(D42/5280)))) -> 5.861363636 | L42: 1
A43: 5 | B43: =IF(F42="", B42+1, B42+2) -> 40 | C43: 0.53030292 | D43: =IF(D42="", "", IF(D42+100<='Basic Input'!$Q$14+'Basic Input'!$Q$9, D42+100, "")) -> 2800 | E43: =IF(D43="", "",IF(D43=0, 'Basic Input'!$C$5, IF('Basic Input'!$C$7="Increasing", 'Basic Input'!$C$5+(D43/5280), 'Basic Input'!$C$5-(D43/5280)))) -> 5.88030303
A44: 5 | B44: 41 | C44: 0.54924231 | D44: =IF(D43="", "", IF(D43+100<='Basic Input'!$Q$14+'Basic Input'!$Q$9, D43+100, "")) -> 2900 | E44: =IF(D44="", "",IF(D44=0, 'Basic Input'!$C$5, IF('Basic Input'!$C$7="Increasing", 'Basic Input'!$C$5+(D44/5280), 'Basic Input'!$C$5-(D44/5280)))) -> 5.899242424
A45: 5 | B45: 42 | C45: 0.5681817 | D45: =IF(D44="", "", IF(D44+100<='Basic Input'!$Q$14+'Basic Input'!$Q$9, D44+100, "")) -> 3000 | E45: =IF(D45="", "",IF(D45=0, 'Basic Input'!$C$5, IF('Basic Input'!$C$7="Increasing", 'Basic Input'!$C$5+(D45/5280), 'Basic Input'!$C$5-(D45/5280)))) -> 5.918181818
A46: 5 | B46: 43 | C46: 0.58712109 | D46: =IF(D45="", "", IF(D45+100<='Basic Input'!$Q$14+'Basic Input'!$Q$9, D45+100, "")) -> 3100 | E46: =IF(D46="", "",IF(D46=0, 'Basic Input'!$C$5, IF('Basic Input'!$C$7="Increasing", 'Basic Input'!$C$5+(D46/5280), 'Basic Input'!$C$5-(D46/5280)))) -> 5.937121212 | F46: 65
A47: 5 | B47: 45 | C47: 0.60606048 | D47: =IF(D46="", "", IF(D46+100<='Basic Input'!$Q$14+'Basic Input'!$Q$9, D46+100, "")) -> 3200 | E47: =IF(D47="", "",IF(D47=0, 'Basic Input'!$C$5, IF('Basic Input'!$C$7="Increasing", 'Basic Input'!$C$5+(D47/5280), 'Basic Input'!$C$5-(D47/5280)))) -> 5.956060606
A48: 5 | B48: 46 | C48: 0.62499987 | D48: =IF(D47="", "", IF(D47+100<='Basic Input'!$Q$14+'Basic Input'!$Q$9, D47+100, "")) -> 3300 | E48: =IF(D48="", "",IF(D48=0, 'Basic Input'!$C$5, IF('Basic Input'!$C$7="Increasing", 'Basic Input'!$C$5+(D48/5280), 'Basic Input'!$C$5-(D48/5280)))) -> 5.975
A49: 5 | B49: 47 | C49: 0.64393926 | D49: =IF(D48="", "", IF(D48+100<='Basic Input'!$Q$14+'Basic Input'!$Q$9, D48+100, "")) -> 3400 | E49: =IF(D49="", "",IF(D49=0, 'Basic Input'!$C$5, IF('Basic Input'!$C$7="Increasing", 'Basic Input'!$C$5+(D49/5280), 'Basic Input'!$C$5-(D49/5280)))) -> 5.993939394
A50: 5 | B50: 48 | C50: 0.66287865 | D50: =IF(D49="", "", IF(D49+100<='Basic Input'!$Q$14+'Basic Input'!$Q$9, D49+100, "")) -> 3500 | E50: =IF(D50="", "",IF(D50=0, 'Basic Input'!$C$5, IF('Basic Input'!$C$7="Increasing", 'Basic Input'!$C$5+(D50/5280), 'Basic Input'!$C$5-(D50/5280)))) -> 6.012878788
A51: 5 | B51: 49 | D51: =IF(D50="", "", IF(D50+100<='Basic Input'!$Q$14+'Basic Input'!$Q$9, D50+100, "")) ->  | E51: =IF(D51="", "",IF(D51=0, 'Basic Input'!$C$5, IF('Basic Input'!$C$7="Increasing", 'Basic Input'!$C$5+(D51/5280), 'Basic Input'!$C$5-(D51/5280)))) -> 
A52: 5 | B52: 50 | D52: =IF(D51="", "", IF(D51+100<='Basic Input'!$Q$14+'Basic Input'!$Q$9, D51+100, "")) ->  | E52: =IF(D52="", "",IF(D52=0, 'Basic Input'!$C$5, IF('Basic Input'!$C$7="Increasing", 'Basic Input'!$C$5+(D52/5280), 'Basic Input'!$C$5-(D52/5280)))) -> 
A53: 5 | B53: 51 | D53: =IF(D52="", "", IF(D52+100<='Basic Input'!$Q$14+'Basic Input'!$Q$9, D52+100, "")) ->  | E53: =IF(D53="", "",IF(D53=0, 'Basic Input'!$C$5, IF('Basic Input'!$C$7="Increasing", 'Basic Input'!$C$5+(D53/5280), 'Basic Input'!$C$5-(D53/5280)))) -> 
A54: 5 | B54: 52 | D54: =IF(D53="", "", IF(D53+100<='Basic Input'!$Q$14+'Basic Input'!$Q$9, D53+100, "")) ->  | E54: =IF(D54="", "",IF(D54=0, 'Basic Input'!$C$5, IF('Basic Input'!$C$7="Increasing", 'Basic Input'!$C$5+(D54/5280), 'Basic Input'!$C$5-(D54/5280)))) -> 
A55: 5 | B55: 53 | D55: =IF(D54="", "", IF(D54+100<='Basic Input'!$Q$14+'Basic Input'!$Q$9, D54+100, "")) ->  | E55: =IF(D55="", "",IF(D55=0, 'Basic Input'!$C$5, IF('Basic Input'!$C$7="Increasing", 'Basic Input'!$C$5+(D55/5280), 'Basic Input'!$C$5-(D55/5280)))) -> 
A56: 5 | B56: 54 | D56: =IF(D55="", "", IF(D55+100<='Basic Input'!$Q$14+'Basic Input'!$Q$9, D55+100, "")) ->  | E56: =IF(D56="", "",IF(D56=0, 'Basic Input'!$C$5, IF('Basic Input'!$C$7="Increasing", 'Basic Input'!$C$5+(D56/5280), 'Basic Input'!$C$5-(D56/5280)))) -> 
A57: 5 | B57: 55 | D57: =IF(D56="", "", IF(D56+100<='Basic Input'!$Q$14+'Basic Input'!$Q$9, D56+100, "")) ->  | E57: =IF(D57="", "",IF(D57=0, 'Basic Input'!$C$5, IF('Basic Input'!$C$7="Increasing", 'Basic Input'!$C$5+(D57/5280), 'Basic Input'!$C$5-(D57/5280)))) -> 
A58: 5 | B58: 56 | D58: =IF(D57="", "", IF(D57+100<='Basic Input'!$Q$14+'Basic Input'!$Q$9, D57+100, "")) ->  | E58: =IF(D58="", "",IF(D58=0, 'Basic Input'!$C$5, IF('Basic Input'!$C$7="Increasing", 'Basic Input'!$C$5+(D58/5280), 'Basic Input'!$C$5-(D58/5280)))) -> 
A59: 5 | B59: 57 | D59: =IF(D58="", "", IF(D58+100<='Basic Input'!$Q$14+'Basic Input'!$Q$9, D58+100, "")) ->  | E59: =IF(D59="", "",IF(D59=0, 'Basic Input'!$C$5, IF('Basic Input'!$C$7="Increasing", 'Basic Input'!$C$5+(D59/5280), 'Basic Input'!$C$5-(D59/5280)))) -> 
A60: 5 | B60: 58 | D60: =IF(D59="", "", IF(D59+100<='Basic Input'!$Q$14+'Basic Input'!$Q$9, D59+100, "")) ->  | E60: =IF(D60="", "",IF(D60=0, 'Basic Input'!$C$5, IF('Basic Input'!$C$7="Increasing", 'Basic Input'!$C$5+(D60/5280), 'Basic Input'!$C$5-(D60/5280)))) -> 
A61: 5 | B61: 59 | D61: =IF(D60="", "", IF(D60+100<='Basic Input'!$Q$14+'Basic Input'!$Q$9, D60+100, "")) ->  | E61: =IF(D61="", "",IF(D61=0, 'Basic Input'!$C$5, IF('Basic Input'!$C$7="Increasing", 'Basic Input'!$C$5+(D61/5280), 'Basic Input'!$C$5-(D61/5280)))) -> 
A62: 5 | B62: 60 | D62: =IF(D61="", "", IF(D61+100<='Basic Input'!$Q$14+'Basic Input'!$Q$9, D61+100, "")) ->  | E62: =IF(D62="", "",IF(D62=0, 'Basic Input'!$C$5, IF('Basic Input'!$C$7="Increasing", 'Basic Input'!$C$5+(D62/5280), 'Basic Input'!$C$5-(D62/5280)))) -> 
A63: 5 | B63: 61 | D63: =IF(D62="", "", IF(D62+100<='Basic Input'!$Q$14+'Basic Input'!$Q$9, D62+100, "")) ->  | E63: =IF(D63="", "",IF(D63=0, 'Basic Input'!$C$5, IF('Basic Input'!$C$7="Increasing", 'Basic Input'!$C$5+(D63/5280), 'Basic Input'!$C$5-(D63/5280)))) -> 
A64: 5 | B64: 62 | D64: =IF(D63="", "", IF(D63+100<='Basic Input'!$Q$14+'Basic Input'!$Q$9, D63+100, "")) ->  | E64: =IF(D64="", "",IF(D64=0, 'Basic Input'!$C$5, IF('Basic Input'!$C$7="Increasing", 'Basic Input'!$C$5+(D64/5280), 'Basic Input'!$C$5-(D64/5280)))) -> 
A65: 5 | B65: 63 | D65: =IF(D64="", "", IF(D64+100<='Basic Input'!$Q$14+'Basic Input'!$Q$9, D64+100, "")) ->  | E65: =IF(D65="", "",IF(D65=0, 'Basic Input'!$C$5, IF('Basic Input'!$C$7="Increasing", 'Basic Input'!$C$5+(D65/5280), 'Basic Input'!$C$5-(D65/5280)))) -> 
A66: 5 | B66: 64 | D66: =IF(D65="", "", IF(D65+100<='Basic Input'!$Q$14+'Basic Input'!$Q$9, D65+100, "")) ->  | E66: =IF(D66="", "",IF(D66=0, 'Basic Input'!$C$5, IF('Basic Input'!$C$7="Increasing", 'Basic Input'!$C$5+(D66/5280), 'Basic Input'!$C$5-(D66/5280)))) -> 
A67: 5 | B67: 65 | D67: =IF(D66="", "", IF(D66+100<='Basic Input'!$Q$14+'Basic Input'!$Q$9, D66+100, "")) ->  | E67: =IF(D67="", "",IF(D67=0, 'Basic Input'!$C$5, IF('Basic Input'!$C$7="Increasing", 'Basic Input'!$C$5+(D67/5280), 'Basic Input'!$C$5-(D67/5280)))) -> 
A68: 5 | B68: 66 | D68: =IF(D67="", "", IF(D67+100<='Basic Input'!$Q$14+'Basic Input'!$Q$9, D67+100, "")) ->  | E68: =IF(D68="", "",IF(D68=0, 'Basic Input'!$C$5, IF('Basic Input'!$C$7="Increasing", 'Basic Input'!$C$5+(D68/5280), 'Basic Input'!$C$5-(D68/5280)))) -> 
A69: 5 | B69: 67 | D69: =IF(D68="", "", IF(D68+100<='Basic Input'!$Q$14+'Basic Input'!$Q$9, D68+100, "")) ->  | E69: =IF(D69="", "",IF(D69=0, 'Basic Input'!$C$5, IF('Basic Input'!$C$7="Increasing", 'Basic Input'!$C$5+(D69/5280), 'Basic Input'!$C$5-(D69/5280)))) -> 
A70: =IF(H70<>"", A69+1, A69) -> 5 | B70: 68 | C70: =IF(D70="", "", D70*0.0001893939) ->  | D70: =IF(D69="", "", IF(D69+100<='Basic Input'!$Q$14+'Basic Input'!$Q$9, D69+100, "")) ->  | E70: =IF(D70="", "",IF(D70=0, 'Basic Input'!$C$5, IF('Basic Input'!$C$7="Increasing", 'Basic Input'!$C$5+(D70/5280), 'Basic Input'!$C$5-(D70/5280)))) -> 
A71: 5 | B71: =IF(F70="", B70+1, B70+2) -> 69 | D71: =IF(D70="", "", IF(D70+100<='Basic Input'!$Q$14+'Basic Input'!$Q$9, D70+100, "")) ->  | E71: =IF(D71="", "",IF(D71=0, 'Basic Input'!$C$5, IF('Basic Input'!$C$7="Increasing", 'Basic Input'!$C$5+(D71/5280), 'Basic Input'!$C$5-(D71/5280)))) -> 
A72: 5 | B72: 70 | D72: =IF(D71="", "", IF(D71+100<='Basic Input'!$Q$14+'Basic Input'!$Q$9, D71+100, "")) ->  | E72: =IF(D72="", "",IF(D72=0, 'Basic Input'!$C$5, IF('Basic Input'!$C$7="Increasing", 'Basic Input'!$C$5+(D72/5280), 'Basic Input'!$C$5-(D72/5280)))) -> 
A73: 5 | B73: 71 | D73: =IF(D72="", "", IF(D72+100<='Basic Input'!$Q$14+'Basic Input'!$Q$9, D72+100, "")) ->  | E73: =IF(D73="", "",IF(D73=0, 'Basic Input'!$C$5, IF('Basic Input'!$C$7="Increasing", 'Basic Input'!$C$5+(D73/5280), 'Basic Input'!$C$5-(D73/5280)))) -> 
A74: 5 | B74: 72 | D74: =IF(D73="", "", IF(D73+100<='Basic Input'!$Q$14+'Basic Input'!$Q$9, D73+100, "")) ->  | E74: =IF(D74="", "",IF(D74=0, 'Basic Input'!$C$5, IF('Basic Input'!$C$7="Increasing", 'Basic Input'!$C$5+(D74/5280), 'Basic Input'!$C$5-(D74/5280)))) -> 
A75: 5 | B75: 73 | D75: =IF(D74="", "", IF(D74+100<='Basic Input'!$Q$14+'Basic Input'!$Q$9, D74+100, "")) ->  | E75: =IF(D75="", "",IF(D75=0, 'Basic Input'!$C$5, IF('Basic Input'!$C$7="Increasing", 'Basic Input'!$C$5+(D75/5280), 'Basic Input'!$C$5-(D75/5280)))) -> 
A76: 5 | B76: 74 | D76: =IF(D75="", "", IF(D75+100<='Basic Input'!$Q$14+'Basic Input'!$Q$9, D75+100, "")) ->  | E76: =IF(D76="", "",IF(D76=0, 'Basic Input'!$C$5, IF('Basic Input'!$C$7="Increasing", 'Basic Input'!$C$5+(D76/5280), 'Basic Input'!$C$5-(D76/5280)))) -> 
A77: 5 | B77: 75 | D77: =IF(D76="", "", IF(D76+100<='Basic Input'!$Q$14+'Basic Input'!$Q$9, D76+100, "")) ->  | E77: =IF(D77="", "",IF(D77=0, 'Basic Input'!$C$5, IF('Basic Input'!$C$7="Increasing", 'Basic Input'!$C$5+(D77/5280), 'Basic Input'!$C$5-(D77/5280)))) -> 
A78: 5 | B78: 76 | D78: =IF(D77="", "", IF(D77+100<='Basic Input'!$Q$14+'Basic Input'!$Q$9, D77+100, "")) ->  | E78: =IF(D78="", "",IF(D78=0, 'Basic Input'!$C$5, IF('Basic Input'!$C$7="Increasing", 'Basic Input'!$C$5+(D78/5280), 'Basic Input'!$C$5-(D78/5280)))) -> 
A79: 5 | B79: 77 | D79: =IF(D78="", "", IF(D78+100<='Basic Input'!$Q$14+'Basic Input'!$Q$9, D78+100, "")) ->  | E79: =IF(D79="", "",IF(D79=0, 'Basic Input'!$C$5, IF('Basic Input'!$C$7="Increasing", 'Basic Input'!$C$5+(D79/5280), 'Basic Input'!$C$5-(D79/5280)))) -> 
A80: 5 | B80: 78 | D80: =IF(D79="", "", IF(D79+100<='Basic Input'!$Q$14+'Basic Input'!$Q$9, D79+100, "")) ->  | E80: =IF(D80="", "",IF(D80=0, 'Basic Input'!$C$5, IF('Basic Input'!$C$7="Increasing", 'Basic Input'!$C$5+(D80/5280), 'Basic Input'!$C$5-(D80/5280)))) -> 
A81: 5 | B81: 79 | D81: =IF(D80="", "", IF(D80+100<='Basic Input'!$Q$14+'Basic Input'!$Q$9, D80+100, "")) ->  | E81: =IF(D81="", "",IF(D81=0, 'Basic Input'!$C$5, IF('Basic Input'!$C$7="Increasing", 'Basic Input'!$C$5+(D81/5280), 'Basic Input'!$C$5-(D81/5280)))) -> 
A82: 5 | B82: 80 | D82: =IF(D81="", "", IF(D81+100<='Basic Input'!$Q$14+'Basic Input'!$Q$9, D81+100, "")) ->  | E82: =IF(D82="", "",IF(D82=0, 'Basic Input'!$C$5, IF('Basic Input'!$C$7="Increasing", 'Basic Input'!$C$5+(D82/5280), 'Basic Input'!$C$5-(D82/5280)))) -> 
A83: 5 | B83: 81 | D83: =IF(D82="", "", IF(D82+100<='Basic Input'!$Q$14+'Basic Input'!$Q$9, D82+100, "")) ->  | E83: =IF(D83="", "",IF(D83=0, 'Basic Input'!$C$5, IF('Basic Input'!$C$7="Increasing", 'Basic Input'!$C$5+(D83/5280), 'Basic Input'!$C$5-(D83/5280)))) -> 
A84: 5 | B84: 82 | D84: =IF(D83="", "", IF(D83+100<='Basic Input'!$Q$14+'Basic Input'!$Q$9, D83+100, "")) ->  | E84: =IF(D84="", "",IF(D84=0, 'Basic Input'!$C$5, IF('Basic Input'!$C$7="Increasing", 'Basic Input'!$C$5+(D84/5280), 'Basic Input'!$C$5-(D84/5280)))) -> 
A85: 5 | B85: 83 | D85: =IF(D84="", "", IF(D84+100<='Basic Input'!$Q$14+'Basic Input'!$Q$9, D84+100, "")) ->  | E85: =IF(D85="", "",IF(D85=0, 'Basic Input'!$C$5, IF('Basic Input'!$C$7="Increasing", 'Basic Input'!$C$5+(D85/5280), 'Basic Input'!$C$5-(D85/5280)))) -> 
A86: 5 | B86: 84 | D86: =IF(D85="", "", IF(D85+100<='Basic Input'!$Q$14+'Basic Input'!$Q$9, D85+100, "")) ->  | E86: =IF(D86="", "",IF(D86=0, 'Basic Input'!$C$5, IF('Basic Input'!$C$7="Increasing", 'Basic Input'!$C$5+(D86/5280), 'Basic Input'!$C$5-(D86/5280)))) -> 
A87: 5 | B87: 85 | D87: =IF(D86="", "", IF(D86+100<='Basic Input'!$Q$14+'Basic Input'!$Q$9, D86+100, "")) ->  | E87: =IF(D87="", "",IF(D87=0, 'Basic Input'!$C$5, IF('Basic Input'!$C$7="Increasing", 'Basic Input'!$C$5+(D87/5280), 'Basic Input'!$C$5-(D87/5280)))) -> 
A88: 5 | B88: 86 | D88: =IF(D87="", "", IF(D87+100<='Basic Input'!$Q$14+'Basic Input'!$Q$9, D87+100, "")) ->  | E88: =IF(D88="", "",IF(D88=0, 'Basic Input'!$C$5, IF('Basic Input'!$C$7="Increasing", 'Basic Input'!$C$5+(D88/5280), 'Basic Input'!$C$5-(D88/5280)))) -> 
A89: 5 | B89: 87 | D89: =IF(D88="", "", IF(D88+100<='Basic Input'!$Q$14+'Basic Input'!$Q$9, D88+100, "")) ->  | E89: =IF(D89="", "",IF(D89=0, 'Basic Input'!$C$5, IF('Basic Input'!$C$7="Increasing", 'Basic Input'!$C$5+(D89/5280), 'Basic Input'!$C$5-(D89/5280)))) -> 
A90: 5 | B90: 88 | D90: =IF(D89="", "", IF(D89+100<='Basic Input'!$Q$14+'Basic Input'!$Q$9, D89+100, "")) ->  | E90: =IF(D90="", "",IF(D90=0, 'Basic Input'!$C$5, IF('Basic Input'!$C$7="Increasing", 'Basic Input'!$C$5+(D90/5280), 'Basic Input'!$C$5-(D90/5280)))) -> 
A91: 5 | B91: 89 | D91: =IF(D90="", "", IF(D90+100<='Basic Input'!$Q$14+'Basic Input'!$Q$9, D90+100, "")) ->  | E91: =IF(D91="", "",IF(D91=0, 'Basic Input'!$C$5, IF('Basic Input'!$C$7="Increasing", 'Basic Input'!$C$5+(D91/5280), 'Basic Input'!$C$5-(D91/5280)))) -> 
A92: 5 | B92: 90 | D92: =IF(D91="", "", IF(D91+100<='Basic Input'!$Q$14+'Basic Input'!$Q$9, D91+100, "")) ->  | E92: =IF(D92="", "",IF(D92=0, 'Basic Input'!$C$5, IF('Basic Input'!$C$7="Increasing", 'Basic Input'!$C$5+(D92/5280), 'Basic Input'!$C$5-(D92/5280)))) -> 
A93: 5 | B93: 91 | D93: =IF(D92="", "", IF(D92+100<='Basic Input'!$Q$14+'Basic Input'!$Q$9, D92+100, "")) ->  | E93: =IF(D93="", "",IF(D93=0, 'Basic Input'!$C$5, IF('Basic Input'!$C$7="Increasing", 'Basic Input'!$C$5+(D93/5280), 'Basic Input'!$C$5-(D93/5280)))) -> 
A94: 5 | B94: 92 | D94: =IF(D93="", "", IF(D93+100<='Basic Input'!$Q$14+'Basic Input'!$Q$9, D93+100, "")) ->  | E94: =IF(D94="", "",IF(D94=0, 'Basic Input'!$C$5, IF('Basic Input'!$C$7="Increasing", 'Basic Input'!$C$5+(D94/5280), 'Basic Input'!$C$5-(D94/5280)))) -> 
A95: 5 | B95: 93 | D95: =IF(D94="", "", IF(D94+100<='Basic Input'!$Q$14+'Basic Input'!$Q$9, D94+100, "")) ->  | E95: =IF(D95="", "",IF(D95=0, 'Basic Input'!$C$5, IF('Basic Input'!$C$7="Increasing", 'Basic Input'!$C$5+(D95/5280), 'Basic Input'!$C$5-(D95/5280)))) -> 
A96: 5 | B96: 94 | D96: =IF(D95="", "", IF(D95+100<='Basic Input'!$Q$14+'Basic Input'!$Q$9, D95+100, "")) ->  | E96: =IF(D96="", "",IF(D96=0, 'Basic Input'!$C$5, IF('Basic Input'!$C$7="Increasing", 'Basic Input'!$C$5+(D96/5280), 'Basic Input'!$C$5-(D96/5280)))) -> 
A97: 5 | B97: 95 | D97: =IF(D96="", "", IF(D96+100<='Basic Input'!$Q$14+'Basic Input'!$Q$9, D96+100, "")) ->  | E97: =IF(D97="", "",IF(D97=0, 'Basic Input'!$C$5, IF('Basic Input'!$C$7="Increasing", 'Basic Input'!$C$5+(D97/5280), 'Basic Input'!$C$5-(D97/5280)))) -> 
A98: 5 | B98: 96 | D98: =IF(D97="", "", IF(D97+100<='Basic Input'!$Q$14+'Basic Input'!$Q$9, D97+100, "")) ->  | E98: =IF(D98="", "",IF(D98=0, 'Basic Input'!$C$5, IF('Basic Input'!$C$7="Increasing", 'Basic Input'!$C$5+(D98/5280), 'Basic Input'!$C$5-(D98/5280)))) -> 
A99: 5 | B99: 97 | D99: =IF(D98="", "", IF(D98+100<='Basic Input'!$Q$14+'Basic Input'!$Q$9, D98+100, "")) ->  | E99: =IF(D99="", "",IF(D99=0, 'Basic Input'!$C$5, IF('Basic Input'!$C$7="Increasing", 'Basic Input'!$C$5+(D99/5280), 'Basic Input'!$C$5-(D99/5280)))) -> 
A100: 5 | B100: 98 | D100: =IF(D99="", "", IF(D99+100<='Basic Input'!$Q$14+'Basic Input'!$Q$9, D99+100, "")) ->  | E100: =IF(D100="", "",IF(D100=0, 'Basic Input'!$C$5, IF('Basic Input'!$C$7="Increasing", 'Basic Input'!$C$5+(D100/5280), 'Basic Input'!$C$5-(D100/5280)))) -> 
A101: 5 | B101: 99 | D101: =IF(D100="", "", IF(D100+100<='Basic Input'!$Q$14+'Basic Input'!$Q$9, D100+100, "")) ->  | E101: =IF(D101="", "",IF(D101=0, 'Basic Input'!$C$5, IF('Basic Input'!$C$7="Increasing", 'Basic Input'!$C$5+(D101/5280), 'Basic Input'!$C$5-(D101/5280)))) -> 
A102: 5 | B102: 100 | D102: =IF(D101="", "", IF(D101+100<='Basic Input'!$Q$14+'Basic Input'!$Q$9, D101+100, "")) ->  | E102: =IF(D102="", "",IF(D102=0, 'Basic Input'!$C$5, IF('Basic Input'!$C$7="Increasing", 'Basic Input'!$C$5+(D102/5280), 'Basic Input'!$C$5-(D102/5280)))) -> 
A103: 5 | B103: 101 | D103: =IF(D102="", "", IF(D102+100<='Basic Input'!$Q$14+'Basic Input'!$Q$9, D102+100, "")) ->  | E103: =IF(D103="", "",IF(D103=0, 'Basic Input'!$C$5, IF('Basic Input'!$C$7="Increasing", 'Basic Input'!$C$5+(D103/5280), 'Basic Input'!$C$5-(D103/5280)))) -> 
A104: 5 | B104: 102 | D104: =IF(D103="", "", IF(D103+100<='Basic Input'!$Q$14+'Basic Input'!$Q$9, D103+100, "")) ->  | E104: =IF(D104="", "",IF(D104=0, 'Basic Input'!$C$5, IF('Basic Input'!$C$7="Increasing", 'Basic Input'!$C$5+(D104/5280), 'Basic Input'!$C$5-(D104/5280)))) -> 
A105: 5 | B105: 103 | D105: =IF(D104="", "", IF(D104+100<='Basic Input'!$Q$14+'Basic Input'!$Q$9, D104+100, "")) ->  | E105: =IF(D105="", "",IF(D105=0, 'Basic Input'!$C$5, IF('Basic Input'!$C$7="Increasing", 'Basic Input'!$C$5+(D105/5280), 'Basic Input'!$C$5-(D105/5280)))) -> 
A106: 5 | B106: 104 | D106: =IF(D105="", "", IF(D105+100<='Basic Input'!$Q$14+'Basic Input'!$Q$9, D105+100, "")) ->  | E106: =IF(D106="", "",IF(D106=0, 'Basic Input'!$C$5, IF('Basic Input'!$C$7="Increasing", 'Basic Input'!$C$5+(D106/5280), 'Basic Input'!$C$5-(D106/5280)))) -> 
A107: 5 | B107: 105 | D107: =IF(D106="", "", IF(D106+100<='Basic Input'!$Q$14+'Basic Input'!$Q$9, D106+100, "")) ->  | E107: =IF(D107="", "",IF(D107=0, 'Basic Input'!$C$5, IF('Basic Input'!$C$7="Increasing", 'Basic Input'!$C$5+(D107/5280), 'Basic Input'!$C$5-(D107/5280)))) -> 
A108: 5 | B108: 106 | D108: =IF(D107="", "", IF(D107+100<='Basic Input'!$Q$14+'Basic Input'!$Q$9, D107+100, "")) ->  | E108: =IF(D108="", "",IF(D108=0, 'Basic Input'!$C$5, IF('Basic Input'!$C$7="Increasing", 'Basic Input'!$C$5+(D108/5280), 'Basic Input'!$C$5-(D108/5280)))) -> 
A109: 5 | B109: 107 | D109: =IF(D108="", "", IF(D108+100<='Basic Input'!$Q$14+'Basic Input'!$Q$9, D108+100, "")) ->  | E109: =IF(D109="", "",IF(D109=0, 'Basic Input'!$C$5, IF('Basic Input'!$C$7="Increasing", 'Basic Input'!$C$5+(D109/5280), 'Basic Input'!$C$5-(D109/5280)))) -> 
A110: 5 | B110: 108 | D110: =IF(D109="", "", IF(D109+100<='Basic Input'!$Q$14+'Basic Input'!$Q$9, D109+100, "")) ->  | E110: =IF(D110="", "",IF(D110=0, 'Basic Input'!$C$5, IF('Basic Input'!$C$7="Increasing", 'Basic Input'!$C$5+(D110/5280), 'Basic Input'!$C$5-(D110/5280)))) -> 
A111: 5 | B111: 109 | D111: =IF(D110="", "", IF(D110+100<='Basic Input'!$Q$14+'Basic Input'!$Q$9, D110+100, "")) ->  | E111: =IF(D111="", "",IF(D111=0, 'Basic Input'!$C$5, IF('Basic Input'!$C$7="Increasing", 'Basic Input'!$C$5+(D111/5280), 'Basic Input'!$C$5-(D111/5280)))) -> 
A112: 5 | B112: 110 | D112: =IF(D111="", "", IF(D111+100<='Basic Input'!$Q$14+'Basic Input'!$Q$9, D111+100, "")) ->  | E112: =IF(D112="", "",IF(D112=0, 'Basic Input'!$C$5, IF('Basic Input'!$C$7="Increasing", 'Basic Input'!$C$5+(D112/5280), 'Basic Input'!$C$5-(D112/5280)))) -> 
A113: 5 | B113: 111 | D113: =IF(D112="", "", IF(D112+100<='Basic Input'!$Q$14+'Basic Input'!$Q$9, D112+100, "")) ->  | E113: =IF(D113="", "",IF(D113=0, 'Basic Input'!$C$5, IF('Basic Input'!$C$7="Increasing", 'Basic Input'!$C$5+(D113/5280), 'Basic Input'!$C$5-(D113/5280)))) -> 
A114: 5 | B114: 112 | D114: =IF(D113="", "", IF(D113+100<='Basic Input'!$Q$14+'Basic Input'!$Q$9, D113+100, "")) ->  | E114: =IF(D114="", "",IF(D114=0, 'Basic Input'!$C$5, IF('Basic Input'!$C$7="Increasing", 'Basic Input'!$C$5+(D114/5280), 'Basic Input'!$C$5-(D114/5280)))) -> 
A115: 5 | B115: 113 | D115: =IF(D114="", "", IF(D114+100<='Basic Input'!$Q$14+'Basic Input'!$Q$9, D114+100, "")) ->  | E115: =IF(D115="", "",IF(D115=0, 'Basic Input'!$C$5, IF('Basic Input'!$C$7="Increasing", 'Basic Input'!$C$5+(D115/5280), 'Basic Input'!$C$5-(D115/5280)))) -> 
A116: 5 | B116: 114 | D116: =IF(D115="", "", IF(D115+100<='Basic Input'!$Q$14+'Basic Input'!$Q$9, D115+100, "")) ->  | E116: =IF(D116="", "",IF(D116=0, 'Basic Input'!$C$5, IF('Basic Input'!$C$7="Increasing", 'Basic Input'!$C$5+(D116/5280), 'Basic Input'!$C$5-(D116/5280)))) -> 
A117: 5 | B117: 115 | D117: =IF(D116="", "", IF(D116+100<='Basic Input'!$Q$14+'Basic Input'!$Q$9, D116+100, "")) ->  | E117: =IF(D117="", "",IF(D117=0, 'Basic Input'!$C$5, IF('Basic Input'!$C$7="Increasing", 'Basic Input'!$C$5+(D117/5280), 'Basic Input'!$C$5-(D117/5280)))) -> 
A118: 5 | B118: 116 | D118: =IF(D117="", "", IF(D117+100<='Basic Input'!$Q$14+'Basic Input'!$Q$9, D117+100, "")) ->  | E118: =IF(D118="", "",IF(D118=0, 'Basic Input'!$C$5, IF('Basic Input'!$C$7="Increasing", 'Basic Input'!$C$5+(D118/5280), 'Basic Input'!$C$5-(D118/5280)))) -> 
A119: 5 | B119: 117 | D119: =IF(D118="", "", IF(D118+100<='Basic Input'!$Q$14+'Basic Input'!$Q$9, D118+100, "")) ->  | E119: =IF(D119="", "",IF(D119=0, 'Basic Input'!$C$5, IF('Basic Input'!$C$7="Increasing", 'Basic Input'!$C$5+(D119/5280), 'Basic Input'!$C$5-(D119/5280)))) -> 
A120: 5 | B120: 118 | D120: =IF(D119="", "", IF(D119+100<='Basic Input'!$Q$14+'Basic Input'!$Q$9, D119+100, "")) ->  | E120: =IF(D120="", "",IF(D120=0, 'Basic Input'!$C$5, IF('Basic Input'!$C$7="Increasing", 'Basic Input'!$C$5+(D120/5280), 'Basic Input'!$C$5-(D120/5280)))) -> 
A121: 5 | B121: 119 | D121: =IF(D120="", "", IF(D120+100<='Basic Input'!$Q$14+'Basic Input'!$Q$9, D120+100, "")) ->  | E121: =IF(D121="", "",IF(D121=0, 'Basic Input'!$C$5, IF('Basic Input'!$C$7="Increasing", 'Basic Input'!$C$5+(D121/5280), 'Basic Input'!$C$5-(D121/5280)))) -> 
A122: 5 | B122: 120 | D122: =IF(D121="", "", IF(D121+100<='Basic Input'!$Q$14+'Basic Input'!$Q$9, D121+100, "")) ->  | E122: =IF(D122="", "",IF(D122=0, 'Basic Input'!$C$5, IF('Basic Input'!$C$7="Increasing", 'Basic Input'!$C$5+(D122/5280), 'Basic Input'!$C$5-(D122/5280)))) -> 
A123: 5 | B123: 121 | D123: =IF(D122="", "", IF(D122+100<='Basic Input'!$Q$14+'Basic Input'!$Q$9, D122+100, "")) ->  | E123: =IF(D123="", "",IF(D123=0, 'Basic Input'!$C$5, IF('Basic Input'!$C$7="Increasing", 'Basic Input'!$C$5+(D123/5280), 'Basic Input'!$C$5-(D123/5280)))) -> 
A124: 5 | B124: 122 | D124: =IF(D123="", "", IF(D123+100<='Basic Input'!$Q$14+'Basic Input'!$Q$9, D123+100, "")) ->  | E124: =IF(D124="", "",IF(D124=0, 'Basic Input'!$C$5, IF('Basic Input'!$C$7="Increasing", 'Basic Input'!$C$5+(D124/5280), 'Basic Input'!$C$5-(D124/5280)))) -> 
A125: 5 | B125: 123 | D125: =IF(D124="", "", IF(D124+100<='Basic Input'!$Q$14+'Basic Input'!$Q$9, D124+100, "")) ->  | E125: =IF(D125="", "",IF(D125=0, 'Basic Input'!$C$5, IF('Basic Input'!$C$7="Increasing", 'Basic Input'!$C$5+(D125/5280), 'Basic Input'!$C$5-(D125/5280)))) -> 
A126: 5 | B126: 124 | D126: =IF(D125="", "", IF(D125+100<='Basic Input'!$Q$14+'Basic Input'!$Q$9, D125+100, "")) ->  | E126: =IF(D126="", "",IF(D126=0, 'Basic Input'!$C$5, IF('Basic Input'!$C$7="Increasing", 'Basic Input'!$C$5+(D126/5280), 'Basic Input'!$C$5-(D126/5280)))) -> 
A127: 5 | B127: 125 | D127: =IF(D126="", "", IF(D126+100<='Basic Input'!$Q$14+'Basic Input'!$Q$9, D126+100, "")) ->  | E127: =IF(D127="", "",IF(D127=0, 'Basic Input'!$C$5, IF('Basic Input'!$C$7="Increasing", 'Basic Input'!$C$5+(D127/5280), 'Basic Input'!$C$5-(D127/5280)))) -> 
A128: 5 | B128: 126 | D128: =IF(D127="", "", IF(D127+100<='Basic Input'!$Q$14+'Basic Input'!$Q$9, D127+100, "")) ->  | E128: =IF(D128="", "",IF(D128=0, 'Basic Input'!$C$5, IF('Basic Input'!$C$7="Increasing", 'Basic Input'!$C$5+(D128/5280), 'Basic Input'!$C$5-(D128/5280)))) -> 
A129: 5 | B129: 127 | D129: =IF(D128="", "", IF(D128+100<='Basic Input'!$Q$14+'Basic Input'!$Q$9, D128+100, "")) ->  | E129: =IF(D129="", "",IF(D129=0, 'Basic Input'!$C$5, IF('Basic Input'!$C$7="Increasing", 'Basic Input'!$C$5+(D129/5280), 'Basic Input'!$C$5-(D129/5280)))) -> 
A130: 5 | B130: 128 | D130: =IF(D129="", "", IF(D129+100<='Basic Input'!$Q$14+'Basic Input'!$Q$9, D129+100, "")) ->  | E130: =IF(D130="", "",IF(D130=0, 'Basic Input'!$C$5, IF('Basic Input'!$C$7="Increasing", 'Basic Input'!$C$5+(D130/5280), 'Basic Input'!$C$5-(D130/5280)))) -> 
A131: 5 | B131: 129 | D131: =IF(D130="", "", IF(D130+100<='Basic Input'!$Q$14+'Basic Input'!$Q$9, D130+100, "")) ->  | E131: =IF(D131="", "",IF(D131=0, 'Basic Input'!$C$5, IF('Basic Input'!$C$7="Increasing", 'Basic Input'!$C$5+(D131/5280), 'Basic Input'!$C$5-(D131/5280)))) -> 
A132: 5 | B132: 130 | D132: =IF(D131="", "", IF(D131+100<='Basic Input'!$Q$14+'Basic Input'!$Q$9, D131+100, "")) ->  | E132: =IF(D132="", "",IF(D132=0, 'Basic Input'!$C$5, IF('Basic Input'!$C$7="Increasing", 'Basic Input'!$C$5+(D132/5280), 'Basic Input'!$C$5-(D132/5280)))) -> 
A133: 5 | B133: 131 | D133: =IF(D132="", "", IF(D132+100<='Basic Input'!$Q$14+'Basic Input'!$Q$9, D132+100, "")) ->  | E133: =IF(D133="", "",IF(D133=0, 'Basic Input'!$C$5, IF('Basic Input'!$C$7="Increasing", 'Basic Input'!$C$5+(D133/5280), 'Basic Input'!$C$5-(D133/5280)))) -> 
A134: =IF(H134<>"", A133+1, A133) -> 5 | B134: 132 | C134: =IF(D134="", "", D134*0.0001893939) ->  | D134: =IF(D133="", "", IF(D133+100<='Basic Input'!$Q$14+'Basic Input'!$Q$9, D133+100, "")) ->  | E134: =IF(D134="", "",IF(D134=0, 'Basic Input'!$C$5, IF('Basic Input'!$C$7="Increasing", 'Basic Input'!$C$5+(D134/5280), 'Basic Input'!$C$5-(D134/5280)))) -> 
A135: 5 | B135: =IF(F134="", B134+1, B134+2) -> 133 | D135: =IF(D134="", "", IF(D134+100<='Basic Input'!$Q$14+'Basic Input'!$Q$9, D134+100, "")) ->  | E135: =IF(D135="", "",IF(D135=0, 'Basic Input'!$C$5, IF('Basic Input'!$C$7="Increasing", 'Basic Input'!$C$5+(D135/5280), 'Basic Input'!$C$5-(D135/5280)))) -> 
A136: 5 | B136: 134 | D136: =IF(D135="", "", IF(D135+100<='Basic Input'!$Q$14+'Basic Input'!$Q$9, D135+100, "")) ->  | E136: =IF(D136="", "",IF(D136=0, 'Basic Input'!$C$5, IF('Basic Input'!$C$7="Increasing", 'Basic Input'!$C$5+(D136/5280), 'Basic Input'!$C$5-(D136/5280)))) -> 
A137: 5 | B137: 135 | D137: =IF(D136="", "", IF(D136+100<='Basic Input'!$Q$14+'Basic Input'!$Q$9, D136+100, "")) ->  | E137: =IF(D137="", "",IF(D137=0, 'Basic Input'!$C$5, IF('Basic Input'!$C$7="Increasing", 'Basic Input'!$C$5+(D137/5280), 'Basic Input'!$C$5-(D137/5280)))) -> 
A138: 5 | B138: 136 | D138: =IF(D137="", "", IF(D137+100<='Basic Input'!$Q$14+'Basic Input'!$Q$9, D137+100, "")) ->  | E138: =IF(D138="", "",IF(D138=0, 'Basic Input'!$C$5, IF('Basic Input'!$C$7="Increasing", 'Basic Input'!$C$5+(D138/5280), 'Basic Input'!$C$5-(D138/5280)))) -> 
A139: 5 | B139: 137 | D139: =IF(D138="", "", IF(D138+100<='Basic Input'!$Q$14+'Basic Input'!$Q$9, D138+100, "")) ->  | E139: =IF(D139="", "",IF(D139=0, 'Basic Input'!$C$5, IF('Basic Input'!$C$7="Increasing", 'Basic Input'!$C$5+(D139/5280), 'Basic Input'!$C$5-(D139/5280)))) -> 
A140: 5 | B140: 138 | D140: =IF(D139="", "", IF(D139+100<='Basic Input'!$Q$14+'Basic Input'!$Q$9, D139+100, "")) ->  | E140: =IF(D140="", "",IF(D140=0, 'Basic Input'!$C$5, IF('Basic Input'!$C$7="Increasing", 'Basic Input'!$C$5+(D140/5280), 'Basic Input'!$C$5-(D140/5280)))) -> 
A141: 5 | B141: 139 | D141: =IF(D140="", "", IF(D140+100<='Basic Input'!$Q$14+'Basic Input'!$Q$9, D140+100, "")) ->  | E141: =IF(D141="", "",IF(D141=0, 'Basic Input'!$C$5, IF('Basic Input'!$C$7="Increasing", 'Basic Input'!$C$5+(D141/5280), 'Basic Input'!$C$5-(D141/5280)))) -> 
A142: 5 | B142: 140 | D142: =IF(D141="", "", IF(D141+100<='Basic Input'!$Q$14+'Basic Input'!$Q$9, D141+100, "")) ->  | E142: =IF(D142="", "",IF(D142=0, 'Basic Input'!$C$5, IF('Basic Input'!$C$7="Increasing", 'Basic Input'!$C$5+(D142/5280), 'Basic Input'!$C$5-(D142/5280)))) -> 
A143: 5 | B143: 141 | D143: =IF(D142="", "", IF(D142+100<='Basic Input'!$Q$14+'Basic Input'!$Q$9, D142+100, "")) ->  | E143: =IF(D143="", "",IF(D143=0, 'Basic Input'!$C$5, IF('Basic Input'!$C$7="Increasing", 'Basic Input'!$C$5+(D143/5280), 'Basic Input'!$C$5-(D143/5280)))) -> 
A144: 5 | B144: 142 | D144: =IF(D143="", "", IF(D143+100<='Basic Input'!$Q$14+'Basic Input'!$Q$9, D143+100, "")) ->  | E144: =IF(D144="", "",IF(D144=0, 'Basic Input'!$C$5, IF('Basic Input'!$C$7="Increasing", 'Basic Input'!$C$5+(D144/5280), 'Basic Input'!$C$5-(D144/5280)))) -> 
A145: 5 | B145: 143 | D145: =IF(D144="", "", IF(D144+100<='Basic Input'!$Q$14+'Basic Input'!$Q$9, D144+100, "")) ->  | E145: =IF(D145="", "",IF(D145=0, 'Basic Input'!$C$5, IF('Basic Input'!$C$7="Increasing", 'Basic Input'!$C$5+(D145/5280), 'Basic Input'!$C$5-(D145/5280)))) -> 
A146: 5 | B146: 144 | D146: =IF(D145="", "", IF(D145+100<='Basic Input'!$Q$14+'Basic Input'!$Q$9, D145+100, "")) ->  | E146: =IF(D146="", "",IF(D146=0, 'Basic Input'!$C$5, IF('Basic Input'!$C$7="Increasing", 'Basic Input'!$C$5+(D146/5280), 'Basic Input'!$C$5-(D146/5280)))) -> 
A147: 5 | B147: 145 | D147: =IF(D146="", "", IF(D146+100<='Basic Input'!$Q$14+'Basic Input'!$Q$9, D146+100, "")) ->  | E147: =IF(D147="", "",IF(D147=0, 'Basic Input'!$C$5, IF('Basic Input'!$C$7="Increasing", 'Basic Input'!$C$5+(D147/5280), 'Basic Input'!$C$5-(D147/5280)))) -> 
A148: 5 | B148: 146 | D148: =IF(D147="", "", IF(D147+100<='Basic Input'!$Q$14+'Basic Input'!$Q$9, D147+100, "")) ->  | E148: =IF(D148="", "",IF(D148=0, 'Basic Input'!$C$5, IF('Basic Input'!$C$7="Increasing", 'Basic Input'!$C$5+(D148/5280), 'Basic Input'!$C$5-(D148/5280)))) -> 
A149: 5 | B149: 147 | D149: =IF(D148="", "", IF(D148+100<='Basic Input'!$Q$14+'Basic Input'!$Q$9, D148+100, "")) ->  | E149: =IF(D149="", "",IF(D149=0, 'Basic Input'!$C$5, IF('Basic Input'!$C$7="Increasing", 'Basic Input'!$C$5+(D149/5280), 'Basic Input'!$C$5-(D149/5280)))) -> 
A150: 5 | B150: 148 | D150: =IF(D149="", "", IF(D149+100<='Basic Input'!$Q$14+'Basic Input'!$Q$9, D149+100, "")) ->  | E150: =IF(D150="", "",IF(D150=0, 'Basic Input'!$C$5, IF('Basic Input'!$C$7="Increasing", 'Basic Input'!$C$5+(D150/5280), 'Basic Input'!$C$5-(D150/5280)))) -> 
A151: 5 | B151: 149 | D151: =IF(D150="", "", IF(D150+100<='Basic Input'!$Q$14+'Basic Input'!$Q$9, D150+100, "")) ->  | E151: =IF(D151="", "",IF(D151=0, 'Basic Input'!$C$5, IF('Basic Input'!$C$7="Increasing", 'Basic Input'!$C$5+(D151/5280), 'Basic Input'!$C$5-(D151/5280)))) -> 
A152: 5 | B152: 150 | D152: =IF(D151="", "", IF(D151+100<='Basic Input'!$Q$14+'Basic Input'!$Q$9, D151+100, "")) ->  | E152: =IF(D152="", "",IF(D152=0, 'Basic Input'!$C$5, IF('Basic Input'!$C$7="Increasing", 'Basic Input'!$C$5+(D152/5280), 'Basic Input'!$C$5-(D152/5280)))) -> 
A153: 5 | B153: 151 | D153: =IF(D152="", "", IF(D152+100<='Basic Input'!$Q$14+'Basic Input'!$Q$9, D152+100, "")) ->  | E153: =IF(D153="", "",IF(D153=0, 'Basic Input'!$C$5, IF('Basic Input'!$C$7="Increasing", 'Basic Input'!$C$5+(D153/5280), 'Basic Input'!$C$5-(D153/5280)))) -> 
A154: 5 | B154: 152 | D154: =IF(D153="", "", IF(D153+100<='Basic Input'!$Q$14+'Basic Input'!$Q$9, D153+100, "")) ->  | E154: =IF(D154="", "",IF(D154=0, 'Basic Input'!$C$5, IF('Basic Input'!$C$7="Increasing", 'Basic Input'!$C$5+(D154/5280), 'Basic Input'!$C$5-(D154/5280)))) -> 
A155: 5 | B155: 153 | D155: =IF(D154="", "", IF(D154+100<='Basic Input'!$Q$14+'Basic Input'!$Q$9, D154+100, "")) ->  | E155: =IF(D155="", "",IF(D155=0, 'Basic Input'!$C$5, IF('Basic Input'!$C$7="Increasing", 'Basic Input'!$C$5+(D155/5280), 'Basic Input'!$C$5-(D155/5280)))) -> 
A156: 5 | B156: 154 | D156: =IF(D155="", "", IF(D155+100<='Basic Input'!$Q$14+'Basic Input'!$Q$9, D155+100, "")) ->  | E156: =IF(D156="", "",IF(D156=0, 'Basic Input'!$C$5, IF('Basic Input'!$C$7="Increasing", 'Basic Input'!$C$5+(D156/5280), 'Basic Input'!$C$5-(D156/5280)))) -> 
A157: 5 | B157: 155 | D157: =IF(D156="", "", IF(D156+100<='Basic Input'!$Q$14+'Basic Input'!$Q$9, D156+100, "")) ->  | E157: =IF(D157="", "",IF(D157=0, 'Basic Input'!$C$5, IF('Basic Input'!$C$7="Increasing", 'Basic Input'!$C$5+(D157/5280), 'Basic Input'!$C$5-(D157/5280)))) -> 
A158: 5 | B158: 156 | D158: =IF(D157="", "", IF(D157+100<='Basic Input'!$Q$14+'Basic Input'!$Q$9, D157+100, "")) ->  | E158: =IF(D158="", "",IF(D158=0, 'Basic Input'!$C$5, IF('Basic Input'!$C$7="Increasing", 'Basic Input'!$C$5+(D158/5280), 'Basic Input'!$C$5-(D158/5280)))) -> 
A159: 5 | B159: 157 | D159: =IF(D158="", "", IF(D158+100<='Basic Input'!$Q$14+'Basic Input'!$Q$9, D158+100, "")) ->  | E159: =IF(D159="", "",IF(D159=0, 'Basic Input'!$C$5, IF('Basic Input'!$C$7="Increasing", 'Basic Input'!$C$5+(D159/5280), 'Basic Input'!$C$5-(D159/5280)))) -> 
A160: 5 | B160: 158 | D160: =IF(D159="", "", IF(D159+100<='Basic Input'!$Q$14+'Basic Input'!$Q$9, D159+100, "")) ->  | E160: =IF(D160="", "",IF(D160=0, 'Basic Input'!$C$5, IF('Basic Input'!$C$7="Increasing", 'Basic Input'!$C$5+(D160/5280), 'Basic Input'!$C$5-(D160/5280)))) -> 
A161: 5 | B161: 159 | D161: =IF(D160="", "", IF(D160+100<='Basic Input'!$Q$14+'Basic Input'!$Q$9, D160+100, "")) ->  | E161: =IF(D161="", "",IF(D161=0, 'Basic Input'!$C$5, IF('Basic Input'!$C$7="Increasing", 'Basic Input'!$C$5+(D161/5280), 'Basic Input'!$C$5-(D161/5280)))) -> 
A162: 5 | B162: 160 | D162: =IF(D161="", "", IF(D161+100<='Basic Input'!$Q$14+'Basic Input'!$Q$9, D161+100, "")) ->  | E162: =IF(D162="", "",IF(D162=0, 'Basic Input'!$C$5, IF('Basic Input'!$C$7="Increasing", 'Basic Input'!$C$5+(D162/5280), 'Basic Input'!$C$5-(D162/5280)))) -> 
A163: 5 | B163: 161 | D163: =IF(D162="", "", IF(D162+100<='Basic Input'!$Q$14+'Basic Input'!$Q$9, D162+100, "")) ->  | E163: =IF(D163="", "",IF(D163=0, 'Basic Input'!$C$5, IF('Basic Input'!$C$7="Increasing", 'Basic Input'!$C$5+(D163/5280), 'Basic Input'!$C$5-(D163/5280)))) -> 
A164: 5 | B164: 162 | D164: =IF(D163="", "", IF(D163+100<='Basic Input'!$Q$14+'Basic Input'!$Q$9, D163+100, "")) ->  | E164: =IF(D164="", "",IF(D164=0, 'Basic Input'!$C$5, IF('Basic Input'!$C$7="Increasing", 'Basic Input'!$C$5+(D164/5280), 'Basic Input'!$C$5-(D164/5280)))) -> 
A165: 5 | B165: 163 | D165: =IF(D164="", "", IF(D164+100<='Basic Input'!$Q$14+'Basic Input'!$Q$9, D164+100, "")) ->  | E165: =IF(D165="", "",IF(D165=0, 'Basic Input'!$C$5, IF('Basic Input'!$C$7="Increasing", 'Basic Input'!$C$5+(D165/5280), 'Basic Input'!$C$5-(D165/5280)))) -> 
A166: 5 | B166: 164 | D166: =IF(D165="", "", IF(D165+100<='Basic Input'!$Q$14+'Basic Input'!$Q$9, D165+100, "")) ->  | E166: =IF(D166="", "",IF(D166=0, 'Basic Input'!$C$5, IF('Basic Input'!$C$7="Increasing", 'Basic Input'!$C$5+(D166/5280), 'Basic Input'!$C$5-(D166/5280)))) -> 
A167: 5 | B167: 165 | D167: =IF(D166="", "", IF(D166+100<='Basic Input'!$Q$14+'Basic Input'!$Q$9, D166+100, "")) ->  | E167: =IF(D167="", "",IF(D167=0, 'Basic Input'!$C$5, IF('Basic Input'!$C$7="Increasing", 'Basic Input'!$C$5+(D167/5280), 'Basic Input'!$C$5-(D167/5280)))) -> 
A168: 5 | B168: 166 | D168: =IF(D167="", "", IF(D167+100<='Basic Input'!$Q$14+'Basic Input'!$Q$9, D167+100, "")) ->  | E168: =IF(D168="", "",IF(D168=0, 'Basic Input'!$C$5, IF('Basic Input'!$C$7="Increasing", 'Basic Input'!$C$5+(D168/5280), 'Basic Input'!$C$5-(D168/5280)))) -> 
A169: 5 | B169: 167 | D169: =IF(D168="", "", IF(D168+100<='Basic Input'!$Q$14+'Basic Input'!$Q$9, D168+100, "")) ->  | E169: =IF(D169="", "",IF(D169=0, 'Basic Input'!$C$5, IF('Basic Input'!$C$7="Increasing", 'Basic Input'!$C$5+(D169/5280), 'Basic Input'!$C$5-(D169/5280)))) -> 
A170: 5 | B170: 168 | D170: =IF(D169="", "", IF(D169+100<='Basic Input'!$Q$14+'Basic Input'!$Q$9, D169+100, "")) ->  | E170: =IF(D170="", "",IF(D170=0, 'Basic Input'!$C$5, IF('Basic Input'!$C$7="Increasing", 'Basic Input'!$C$5+(D170/5280), 'Basic Input'!$C$5-(D170/5280)))) -> 
A171: 5 | B171: 169 | D171: =IF(D170="", "", IF(D170+100<='Basic Input'!$Q$14+'Basic Input'!$Q$9, D170+100, "")) ->  | E171: =IF(D171="", "",IF(D171=0, 'Basic Input'!$C$5, IF('Basic Input'!$C$7="Increasing", 'Basic Input'!$C$5+(D171/5280), 'Basic Input'!$C$5-(D171/5280)))) -> 
A172: 5 | B172: 170 | D172: =IF(D171="", "", IF(D171+100<='Basic Input'!$Q$14+'Basic Input'!$Q$9, D171+100, "")) ->  | E172: =IF(D172="", "",IF(D172=0, 'Basic Input'!$C$5, IF('Basic Input'!$C$7="Increasing", 'Basic Input'!$C$5+(D172/5280), 'Basic Input'!$C$5-(D172/5280)))) -> 
A173: 5 | B173: 171 | D173: =IF(D172="", "", IF(D172+100<='Basic Input'!$Q$14+'Basic Input'!$Q$9, D172+100, "")) ->  | E173: =IF(D173="", "",IF(D173=0, 'Basic Input'!$C$5, IF('Basic Input'!$C$7="Increasing", 'Basic Input'!$C$5+(D173/5280), 'Basic Input'!$C$5-(D173/5280)))) -> 
A174: 5 | B174: 172 | D174: =IF(D173="", "", IF(D173+100<='Basic Input'!$Q$14+'Basic Input'!$Q$9, D173+100, "")) ->  | E174: =IF(D174="", "",IF(D174=0, 'Basic Input'!$C$5, IF('Basic Input'!$C$7="Increasing", 'Basic Input'!$C$5+(D174/5280), 'Basic Input'!$C$5-(D174/5280)))) -> 
A175: 5 | B175: 173 | D175: =IF(D174="", "", IF(D174+100<='Basic Input'!$Q$14+'Basic Input'!$Q$9, D174+100, "")) ->  | E175: =IF(D175="", "",IF(D175=0, 'Basic Input'!$C$5, IF('Basic Input'!$C$7="Increasing", 'Basic Input'!$C$5+(D175/5280), 'Basic Input'!$C$5-(D175/5280)))) -> 
A176: 5 | B176: 174 | D176: =IF(D175="", "", IF(D175+100<='Basic Input'!$Q$14+'Basic Input'!$Q$9, D175+100, "")) ->  | E176: =IF(D176="", "",IF(D176=0, 'Basic Input'!$C$5, IF('Basic Input'!$C$7="Increasing", 'Basic Input'!$C$5+(D176/5280), 'Basic Input'!$C$5-(D176/5280)))) -> 
A177: 5 | B177: 175 | D177: =IF(D176="", "", IF(D176+100<='Basic Input'!$Q$14+'Basic Input'!$Q$9, D176+100, "")) ->  | E177: =IF(D177="", "",IF(D177=0, 'Basic Input'!$C$5, IF('Basic Input'!$C$7="Increasing", 'Basic Input'!$C$5+(D177/5280), 'Basic Input'!$C$5-(D177/5280)))) -> 
A178: 5 | B178: 176 | D178: =IF(D177="", "", IF(D177+100<='Basic Input'!$Q$14+'Basic Input'!$Q$9, D177+100, "")) ->  | E178: =IF(D178="", "",IF(D178=0, 'Basic Input'!$C$5, IF('Basic Input'!$C$7="Increasing", 'Basic Input'!$C$5+(D178/5280), 'Basic Input'!$C$5-(D178/5280)))) -> 
A179: 5 | B179: 177 | D179: =IF(D178="", "", IF(D178+100<='Basic Input'!$Q$14+'Basic Input'!$Q$9, D178+100, "")) ->  | E179: =IF(D179="", "",IF(D179=0, 'Basic Input'!$C$5, IF('Basic Input'!$C$7="Increasing", 'Basic Input'!$C$5+(D179/5280), 'Basic Input'!$C$5-(D179/5280)))) -> 
A180: 5 | B180: 178 | D180: =IF(D179="", "", IF(D179+100<='Basic Input'!$Q$14+'Basic Input'!$Q$9, D179+100, "")) ->  | E180: =IF(D180="", "",IF(D180=0, 'Basic Input'!$C$5, IF('Basic Input'!$C$7="Increasing", 'Basic Input'!$C$5+(D180/5280), 'Basic Input'!$C$5-(D180/5280)))) -> 
A181: 5 | B181: 179 | D181: =IF(D180="", "", IF(D180+100<='Basic Input'!$Q$14+'Basic Input'!$Q$9, D180+100, "")) ->  | E181: =IF(D181="", "",IF(D181=0, 'Basic Input'!$C$5, IF('Basic Input'!$C$7="Increasing", 'Basic Input'!$C$5+(D181/5280), 'Basic Input'!$C$5-(D181/5280)))) -> 
A182: 5 | B182: 180 | D182: =IF(D181="", "", IF(D181+100<='Basic Input'!$Q$14+'Basic Input'!$Q$9, D181+100, "")) ->  | E182: =IF(D182="", "",IF(D182=0, 'Basic Input'!$C$5, IF('Basic Input'!$C$7="Increasing", 'Basic Input'!$C$5+(D182/5280), 'Basic Input'!$C$5-(D182/5280)))) -> 
A183: 5 | B183: 181 | D183: =IF(D182="", "", IF(D182+100<='Basic Input'!$Q$14+'Basic Input'!$Q$9, D182+100, "")) ->  | E183: =IF(D183="", "",IF(D183=0, 'Basic Input'!$C$5, IF('Basic Input'!$C$7="Increasing", 'Basic Input'!$C$5+(D183/5280), 'Basic Input'!$C$5-(D183/5280)))) -> 
A184: 5 | B184: 182 | D184: =IF(D183="", "", IF(D183+100<='Basic Input'!$Q$14+'Basic Input'!$Q$9, D183+100, "")) ->  | E184: =IF(D184="", "",IF(D184=0, 'Basic Input'!$C$5, IF('Basic Input'!$C$7="Increasing", 'Basic Input'!$C$5+(D184/5280), 'Basic Input'!$C$5-(D184/5280)))) -> 
A185: 5 | B185: 183 | D185: =IF(D184="", "", IF(D184+100<='Basic Input'!$Q$14+'Basic Input'!$Q$9, D184+100, "")) ->  | E185: =IF(D185="", "",IF(D185=0, 'Basic Input'!$C$5, IF('Basic Input'!$C$7="Increasing", 'Basic Input'!$C$5+(D185/5280), 'Basic Input'!$C$5-(D185/5280)))) -> 
A186: 5 | B186: 184 | D186: =IF(D185="", "", IF(D185+100<='Basic Input'!$Q$14+'Basic Input'!$Q$9, D185+100, "")) ->  | E186: =IF(D186="", "",IF(D186=0, 'Basic Input'!$C$5, IF('Basic Input'!$C$7="Increasing", 'Basic Input'!$C$5+(D186/5280), 'Basic Input'!$C$5-(D186/5280)))) -> 
A187: 5 | B187: 185 | D187: =IF(D186="", "", IF(D186+100<='Basic Input'!$Q$14+'Basic Input'!$Q$9, D186+100, "")) ->  | E187: =IF(D187="", "",IF(D187=0, 'Basic Input'!$C$5, IF('Basic Input'!$C$7="Increasing", 'Basic Input'!$C$5+(D187/5280), 'Basic Input'!$C$5-(D187/5280)))) -> 
A188: 5 | B188: 186 | D188: =IF(D187="", "", IF(D187+100<='Basic Input'!$Q$14+'Basic Input'!$Q$9, D187+100, "")) ->  | E188: =IF(D188="", "",IF(D188=0, 'Basic Input'!$C$5, IF('Basic Input'!$C$7="Increasing", 'Basic Input'!$C$5+(D188/5280), 'Basic Input'!$C$5-(D188/5280)))) -> 
A189: 5 | B189: 187 | D189: =IF(D188="", "", IF(D188+100<='Basic Input'!$Q$14+'Basic Input'!$Q$9, D188+100, "")) ->  | E189: =IF(D189="", "",IF(D189=0, 'Basic Input'!$C$5, IF('Basic Input'!$C$7="Increasing", 'Basic Input'!$C$5+(D189/5280), 'Basic Input'!$C$5-(D189/5280)))) -> 
A190: 5 | B190: 188 | D190: =IF(D189="", "", IF(D189+100<='Basic Input'!$Q$14+'Basic Input'!$Q$9, D189+100, "")) ->  | E190: =IF(D190="", "",IF(D190=0, 'Basic Input'!$C$5, IF('Basic Input'!$C$7="Increasing", 'Basic Input'!$C$5+(D190/5280), 'Basic Input'!$C$5-(D190/5280)))) -> 
A191: 5 | B191: 189 | D191: =IF(D190="", "", IF(D190+100<='Basic Input'!$Q$14+'Basic Input'!$Q$9, D190+100, "")) ->  | E191: =IF(D191="", "",IF(D191=0, 'Basic Input'!$C$5, IF('Basic Input'!$C$7="Increasing", 'Basic Input'!$C$5+(D191/5280), 'Basic Input'!$C$5-(D191/5280)))) -> 
A192: 5 | B192: 190 | D192: =IF(D191="", "", IF(D191+100<='Basic Input'!$Q$14+'Basic Input'!$Q$9, D191+100, "")) ->  | E192: =IF(D192="", "",IF(D192=0, 'Basic Input'!$C$5, IF('Basic Input'!$C$7="Increasing", 'Basic Input'!$C$5+(D192/5280), 'Basic Input'!$C$5-(D192/5280)))) -> 
A193: 5 | B193: 191 | D193: =IF(D192="", "", IF(D192+100<='Basic Input'!$Q$14+'Basic Input'!$Q$9, D192+100, "")) ->  | E193: =IF(D193="", "",IF(D193=0, 'Basic Input'!$C$5, IF('Basic Input'!$C$7="Increasing", 'Basic Input'!$C$5+(D193/5280), 'Basic Input'!$C$5-(D193/5280)))) -> 
A194: 5 | B194: 192 | D194: =IF(D193="", "", IF(D193+100<='Basic Input'!$Q$14+'Basic Input'!$Q$9, D193+100, "")) ->  | E194: =IF(D194="", "",IF(D194=0, 'Basic Input'!$C$5, IF('Basic Input'!$C$7="Increasing", 'Basic Input'!$C$5+(D194/5280), 'Basic Input'!$C$5-(D194/5280)))) -> 
A195: 5 | B195: 193 | D195: =IF(D194="", "", IF(D194+100<='Basic Input'!$Q$14+'Basic Input'!$Q$9, D194+100, "")) ->  | E195: =IF(D195="", "",IF(D195=0, 'Basic Input'!$C$5, IF('Basic Input'!$C$7="Increasing", 'Basic Input'!$C$5+(D195/5280), 'Basic Input'!$C$5-(D195/5280)))) -> 
A196: 5 | B196: 194 | D196: =IF(D195="", "", IF(D195+100<='Basic Input'!$Q$14+'Basic Input'!$Q$9, D195+100, "")) ->  | E196: =IF(D196="", "",IF(D196=0, 'Basic Input'!$C$5, IF('Basic Input'!$C$7="Increasing", 'Basic Input'!$C$5+(D196/5280), 'Basic Input'!$C$5-(D196/5280)))) -> 
A197: 5 | B197: 195 | D197: =IF(D196="", "", IF(D196+100<='Basic Input'!$Q$14+'Basic Input'!$Q$9, D196+100, "")) ->  | E197: =IF(D197="", "",IF(D197=0, 'Basic Input'!$C$5, IF('Basic Input'!$C$7="Increasing", 'Basic Input'!$C$5+(D197/5280), 'Basic Input'!$C$5-(D197/5280)))) -> 
A198: =IF(H198<>"", A197+1, A197) -> 5 | B198: 196 | C198: =IF(D198="", "", D198*0.0001893939) ->  | D198: =IF(D197="", "", IF(D197+100<='Basic Input'!$Q$14+'Basic Input'!$Q$9, D197+100, "")) ->  | E198: =IF(D198="", "",IF(D198=0, 'Basic Input'!$C$5, IF('Basic Input'!$C$7="Increasing", 'Basic Input'!$C$5+(D198/5280), 'Basic Input'!$C$5-(D198/5280)))) -> 
A199: 5 | B199: =IF(F198="", B198+1, B198+2) -> 197 | D199: =IF(D198="", "", IF(D198+100<='Basic Input'!$Q$14+'Basic Input'!$Q$9, D198+100, "")) ->  | E199: =IF(D199="", "",IF(D199=0, 'Basic Input'!$C$5, IF('Basic Input'!$C$7="Increasing", 'Basic Input'!$C$5+(D199/5280), 'Basic Input'!$C$5-(D199/5280)))) -> 
A200: 5 | B200: 198 | D200: =IF(D199="", "", IF(D199+100<='Basic Input'!$Q$14+'Basic Input'!$Q$9, D199+100, "")) ->  | E200: =IF(D200="", "",IF(D200=0, 'Basic Input'!$C$5, IF('Basic Input'!$C$7="Increasing", 'Basic Input'!$C$5+(D200/5280), 'Basic Input'!$C$5-(D200/5280)))) -> 
A201: 5 | B201: 199 | D201: =IF(D200="", "", IF(D200+100<='Basic Input'!$Q$14+'Basic Input'!$Q$9, D200+100, "")) ->  | E201: =IF(D201="", "",IF(D201=0, 'Basic Input'!$C$5, IF('Basic Input'!$C$7="Increasing", 'Basic Input'!$C$5+(D201/5280), 'Basic Input'!$C$5-(D201/5280)))) -> 
... 5 more rows

Sheet Straight-Line Diagram
O6: Graphic
O7: Place an aerial photo at the top of the diagram. Make sure to line up the reference point and the Adjust the vertical lines that designate the transition zone boundaries.
O44: Land Use
O45: Use text boxes to graphically draw land use.

Sheet Working Data (hidden)
B1: WORKING DATA -- DO NOT MODIFY
K2: Speeds
Q3: Crashes (2006-2010) | Z3: per mile | AB3: Geometry
C4: Distance (miles) | D4: Distance (feet) | E4: Mile Post | F4: Key Locations | H4: Inserted Speed | I4: 85% Observed Speeds | J4: Mean Speed | K4: Posted Speed Limit | L4: 85th Percentile Speed | M4: Median | N4: 85%>Posted+5mph | O4: Data Locations | Q4: Property Damage Only | R4: Injury | S4: Fatality | T4: Total | U4: Sliding Window Crash Rate | V4: Avg. Rate for Similar Roads | W4: Threshold Rate | Y4: Access Points | Z4: Access Density | AB4: Vertical Elevation | AC4: Grade | AD4: Horizontal Profile | AE4: Horizontal Curvature | AG4: Volume | BB4: Dist | BC4: 85th | BD4: Mean
B5: 0 | C5: =IF(D5="", "", D5*0.0001893939) -> -0.1893939 | D5: -1000 | E5: =IF(D5="", "", ROUND(VLOOKUP($C5, 'Data Inputs'!$C$5:$F$648, 3, TRUE), 2)) -> 5.16 | H5: =IF(ISNUMBER(VLOOKUP($B5, 'Data Inputs'!$B$5:$F$648, 5, FALSE))=TRUE, VLOOKUP($B5, 'Data Inputs'!$B$5:$F$648, 5, FALSE), "") ->  | I5: =IF(ISNUMBER(VLOOKUP($B5, 'Data Inputs'!$B$5:$H$648, 6, FALSE))=TRUE, VLOOKUP($B5, 'Data Inputs'!$B$5:$H$648, 6, FALSE), "") ->  | J5: =IF(ISNUMBER(VLOOKUP($B5, 'Data Inputs'!$B$5:$H$648, 7, FALSE))=TRUE, VLOOKUP($B5, 'Data Inputs'!$B$5:$H$648, 7, FALSE), "") ->  | K5: =MIN('Data Inputs'!$F$5:$F$206) -> 30 | L5: =IF($D5="","",(IF($D5<=$BB$5,$BC$5,IF($D5=$BB$6,$BC$6,IF($D5=$BB$7,$BC$7,IF($D5=$BB$8,$BC$8,IF(AND($BA$6="N",$D5>$BB$5)=TRUE,$BC$5,IF(AND($BA$7="N",$D5>$BB$6)=TRUE,$BC$6,IF(AND($BA$8="N",$D5>$BB$7)=TRUE,$BC$7,IF(AND($BA$9="N",$D5>$BB$8)=TRUE,$BC$8,IF($BA$6="Y",IF(AND($D5>$BB$5,$D5<$BB$6)=TRUE,(($D5-$BB$5)/($BB$5-$BB$6)*(BC$5-BC$6))+MIN(BC$6,BC$5),IF($BA$7="Y",IF(AND($D5>$BB$6,$D5<$BB$7)=TRUE,(($D5-$BB$6)/($BB$6-$BB$7)*(BC$6-BC$7))+MIN(BC$7,BC$6),IF($BA$8="Y",IF(AND($D5>$BB$7,$D5<$BB$8)=TRUE,(($D5-$BB$7)/($BB$7-$BB$8)*(BC$7-BC$8))+MIN(BC$8,BC$7),IF($BA$9="Y",IF(AND($D5>$BB$8,$D5<$BB$9)=TRUE,(($D5-$BB$8)/($BB$8-$BB$9)*(BC$8-BC$9))+MIN(BC$9,BC$8),IF($D5>=$BB$9,$BC$9,""))))))))))))))))))) -> 34 | M5: =IF($D5="","",(IF($D5<=$BB$5,$BD$5,IF($D5=$BB$6,$BD$6,IF($D5=$BB$7,$BD$7,IF($D5=$BB$8,$BD$8,IF(AND($BA$6="N",$D5>$BB$5)=TRUE,$BD$5,IF(AND($BA$7="N",$D5>$BB$6)=TRUE,$BD$6,IF(AND($BA$8="N",$D5>$BB$7)=TRUE,$BD$7,IF(AND($BA$9="N",$D5>$BB$8)=TRUE,$BD$8,IF($BA$6="Y",IF(AND($D5>$BB$5,$D5<$BB$6)=TRUE,(($D5-$BB$5)/($BB$5-$BB$6)*(BD$5-BD$6))+MIN(BD$6,BD$5),IF($BA$7="Y",IF(AND($D5>$BB$6,$D5<$BB$7)=TRUE,(($D5-$BB$6)/($BB$6-$BB$7)*(BD$6-BD$7))+MIN(BD$7,BD$6),IF($BA$8="Y",IF(AND($D5>$BB$7,$D5<$BB$8)=TRUE,(($D5-$BB$7)/($BB$7-$BB$8)*(BD$7-BD$8))+MIN(BD$8,BD$7),IF($BA$9="Y",IF(AND($D5>$BB$8,$D5<$BB$9)=TRUE,(($D5-$BB$8)/($BB$8-$BB$9)*(BD$8-BD$9))+MIN(BD$9,BD$8),IF($D5>=$BB$9,$BD$9,""))))))))))))))))))) -> 30 | N5: =IF($D5="", "", IF(L5>(K5+5),15,NA())) ->  | Q5: =IF(ISNUMBER(VLOOKUP($B5, 'Data Inputs'!$B$5:$K$648, 8, FALSE))=TRUE, VLOOKUP($B5, 'Data Inputs'!$B$5:$K$648, 8, FALSE), "") ->  | R5: =IF(ISNUMBER(VLOOKUP($B5, 'Data Inputs'!$B$5:$K$648, 9, FALSE))=TRUE, VLOOKUP($B5, 'Data Inputs'!$B$5:$K$648, 9, FALSE), "") ->  | S5: =IF(ISNUMBER(VLOOKUP($B5, 'Data Inputs'!$B$5:$K$648, 10, FALSE))=TRUE, VLOOKUP($B5, 'Data Inputs'!$B$5:$K$648, 10, FALSE), "") ->  | T5: =SUM(Q5:S5) -> 0 | V5: =IF(U5="", "", 'Basic Input'!$C$12) ->  | Y5: =IF(ISNUMBER(VLOOKUP($B5, 'Data Inputs'!$B$5:$L$648, 11, FALSE))=TRUE, VLOOKUP($B5, 'Data Inputs'!$B$5:$L$648, 11, FALSE), "") ->  | AG5: =VLOOKUP(D5,'Working Data - Vol'!D5:G71,4,TRUE) -> 4310 | AZ5: 1 | BA5: =IF(ISNUMBER(BB5)=TRUE, "Y", "N") -> Y | BB5: =IF(ISNUMBER(VLOOKUP($AZ5, 'Data Inputs'!$A$5:$H$206, 4, FALSE)), VLOOKUP($AZ5, 'Data Inputs'!$A$5:$H$206, 4, FALSE), "") -> 100 | BC5: =IF(ISNUMBER(VLOOKUP($AZ5, 'Data Inputs'!$A$5:$H$206, 7, FALSE)), VLOOKUP($AZ5, 'Data Inputs'!$A$5:$H$206, 7, FALSE), "") -> 34 | BD5: =IF(ISNUMBER(VLOOKUP($AZ5, 'Data Inputs'!$A$5:$H$206, 8, FALSE)), VLOOKUP($AZ5, 'Data Inputs'!$A$5:$H$206, 8, FALSE), "") -> 30
B6: 1 | C6: =IF(D6="", "", D6*0.0001893939) -> -0.17045451 | D6: =D5+100 -> -900 | E6: =IF(D6="", "", ROUND(VLOOKUP($C6, 'Data Inputs'!$C$5:$F$648, 3, TRUE), 2)) -> 5.18 | H6: =IF(ISNUMBER(VLOOKUP($B6, 'Data Inputs'!$B$5:$F$648, 5, FALSE))=TRUE, VLOOKUP($B6, 'Data Inputs'!$B$5:$F$648, 5, FALSE), "") ->  | I6: =IF(ISNUMBER(VLOOKUP($B6, 'Data Inputs'!$B$5:$H$648, 6, FALSE))=TRUE, VLOOKUP($B6, 'Data Inputs'!$B$5:$H$648, 6, FALSE), "") ->  | J6: =IF(ISNUMBER(VLOOKUP($B6, 'Data Inputs'!$B$5:$H$648, 7, FALSE))=TRUE, VLOOKUP($B6, 'Data Inputs'!$B$5:$H$648, 7, FALSE), "") ->  | K6: =IF(D6="", $K$69, IF(H6<>"", H6, K7)) -> 30 | L6: =IF(D6="","",(IF(D6<=$BB$5,$BC$5,IF(D6=$BB$6,$BC$6,IF(D6=$BB$7,$BC$7,IF(D6=$BB$8,$BC$8,IF(AND($BA$6="N",D6>$BB$5)=TRUE,$BC$5,IF(AND($BA$7="N",D6>$BB$6)=TRUE,$BC$6,IF(AND($BA$8="N",D6>$BB$7)=TRUE,$BC$7,IF(AND($BA$9="N",D6>$BB$8)=TRUE,$BC$8,IF($BA$6="Y",IF(AND(D6>$BB$5,D6<$BB$6)=TRUE,(($D6-$BB$5)/($BB$5-$BB$6)*(BC$5-BC$6))+MIN(BC$6,BC$5),IF($BA$7="Y",IF(AND(D6>$BB$6,D6<$BB$7)=TRUE,(($D6-$BB$6)/($BB$6-$BB$7)*(BC$6-BC$7))+MIN(BC$7,BC$6),IF($BA$8="Y",IF(AND(D6>$BB$7,D6<$BB$8)=TRUE,(($D6-$BB$7)/($BB$7-$BB$8)*(BC$7-BC$8))+MIN(BC$8,BC$7),IF($BA$9="Y",IF(AND(D6>$BB$8,D6<$BB$9)=TRUE,(($D6-$BB$8)/($BB$8-$BB$9)*(BC$8-BC$9))+MIN(BC$9,BC$8),IF(D6>=$BB$9,$BC$9,""))))))))))))))))))) -> 34 | M6: 30 | N6: =IF($D6="", "", IF(L6>(K6+5),15,NA())) ->  | Q6: =IF(ISNUMBER(VLOOKUP($B6, 'Data Inputs'!$B$5:$K$648, 8, FALSE))=TRUE, VLOOKUP($B6, 'Data Inputs'!$B$5:$K$648, 8, FALSE), "") ->  | R6: =IF(ISNUMBER(VLOOKUP($B6, 'Data Inputs'!$B$5:$K$648, 9, FALSE))=TRUE, VLOOKUP($B6, 'Data Inputs'!$B$5:$K$648, 9, FALSE), "") ->  | S6: =IF(ISNUMBER(VLOOKUP($B6, 'Data Inputs'!$B$5:$K$648, 10, FALSE))=TRUE, VLOOKUP($B6, 'Data Inputs'!$B$5:$K$648, 10, FALSE), "") ->  | T6: 0 | V6: =IF(U6="", "", 'Basic Input'!$C$12) ->  | Y6: =IF(ISNUMBER(VLOOKUP($B6, 'Data Inputs'!$B$5:$L$648, 11, FALSE))=TRUE, VLOOKUP($B6, 'Data Inputs'!$B$5:$L$648, 11, FALSE), "") ->  | AG6: =VLOOKUP(D6,'Working Data - Vol'!D6:G72,4,TRUE) -> 4310 | AZ6: 2 | BA6: =IF(ISNUMBER(BB6)=TRUE, "Y", "N") -> Y | BB6: =IF(ISNUMBER(VLOOKUP($AZ6, 'Data Inputs'!$A$5:$H$206, 4, FALSE)), VLOOKUP($AZ6, 'Data Inputs'!$A$5:$H$206, 4, FALSE), "") -> 500 | BC6: =IF(ISNUMBER(VLOOKUP($AZ6, 'Data Inputs'!$A$5:$H$206, 7, FALSE)), VLOOKUP($AZ6, 'Data Inputs'!$A$5:$H$206, 7, FALSE), "") -> 38 | BD6: =IF(ISNUMBER(VLOOKUP($AZ6, 'Data Inputs'!$A$5:$H$206, 8, FALSE)), VLOOKUP($AZ6, 'Data Inputs'!$A$5:$H$206, 8, FALSE), "") -> 33
B7: 2 | C7: -0.15151512 | D7: =D6+100 -> -800 | E7: =IF(D7="", "", ROUND(VLOOKUP($C7, 'Data Inputs'!$C$5:$F$648, 3, TRUE), 2)) -> 5.2 | H7: =IF(ISNUMBER(VLOOKUP($B7, 'Data Inputs'!$B$5:$F$648, 5, FALSE))=TRUE, VLOOKUP($B7, 'Data Inputs'!$B$5:$F$648, 5, FALSE), "") ->  | I7: =IF(ISNUMBER(VLOOKUP($B7, 'Data Inputs'!$B$5:$H$648, 6, FALSE))=TRUE, VLOOKUP($B7, 'Data Inputs'!$B$5:$H$648, 6, FALSE), "") ->  | J7: =IF(ISNUMBER(VLOOKUP($B7, 'Data Inputs'!$B$5:$H$648, 7, FALSE))=TRUE, VLOOKUP($B7, 'Data Inputs'!$B$5:$H$648, 7, FALSE), "") ->  | K7: =IF(D7="", $K$69, IF(H7<>"", H7, K8)) -> 30 | L7: 34 | M7: 30 | Q7: =IF(ISNUMBER(VLOOKUP($B7, 'Data Inputs'!$B$5:$K$648, 8, FALSE))=TRUE, VLOOKUP($B7, 'Data Inputs'!$B$5:$K$648, 8, FALSE), "") ->  | R7: =IF(ISNUMBER(VLOOKUP($B7, 'Data Inputs'!$B$5:$K$648, 9, FALSE))=TRUE, VLOOKUP($B7, 'Data Inputs'!$B$5:$K$648, 9, FALSE), "") ->  | S7: =IF(ISNUMBER(VLOOKUP($B7, 'Data Inputs'!$B$5:$K$648, 10, FALSE))=TRUE, VLOOKUP($B7, 'Data Inputs'!$B$5:$K$648, 10, FALSE), "") ->  | T7: 0 | V7: =IF(U7="", "", 'Basic Input'!$C$12) ->  | Y7: =IF(ISNUMBER(VLOOKUP($B7, 'Data Inputs'!$B$5:$L$648, 11, FALSE))=TRUE, VLOOKUP($B7, 'Data Inputs'!$B$5:$L$648, 11, FALSE), "") ->  | AG7: =VLOOKUP(D7,'Working Data - Vol'!D7:G73,4,TRUE) -> 4310 | AX7: =-AC7 -> 0 | AZ7: 3 | BA7: Y | BB7: =IF(ISNUMBER(VLOOKUP($AZ7, 'Data Inputs'!$A$5:$H$206, 4, FALSE)), VLOOKUP($AZ7, 'Data Inputs'!$A$5:$H$206, 4, FALSE), "") -> 1200 | BC7: =IF(ISNUMBER(VLOOKUP($AZ7, 'Data Inputs'!$A$5:$H$206, 7, FALSE)), VLOOKUP($AZ7, 'Data Inputs'!$A$5:$H$206, 7, FALSE), "") ->  | BD7: =IF(ISNUMBER(VLOOKUP($AZ7, 'Data Inputs'!$A$5:$H$206, 8, FALSE)), VLOOKUP($AZ7, 'Data Inputs'!$A$5:$H$206, 8, FALSE), "") -> 42.0712
B8: 3 | C8: -0.13257573 | D8: -700 | E8: =IF(D8="", "", ROUND(VLOOKUP($C8, 'Data Inputs'!$C$5:$F$648, 3, TRUE), 2)) -> 5.22 | H8: =IF(ISNUMBER(VLOOKUP($B8, 'Data Inputs'!$B$5:$F$648, 5, FALSE))=TRUE, VLOOKUP($B8, 'Data Inputs'!$B$5:$F$648, 5, FALSE), "") ->  | I8: =IF(ISNUMBER(VLOOKUP($B8, 'Data Inputs'!$B$5:$H$648, 6, FALSE))=TRUE, VLOOKUP($B8, 'Data Inputs'!$B$5:$H$648, 6, FALSE), "") ->  | J8: =IF(ISNUMBER(VLOOKUP($B8, 'Data Inputs'!$B$5:$H$648, 7, FALSE))=TRUE, VLOOKUP($B8, 'Data Inputs'!$B$5:$H$648, 7, FALSE), "") ->  | K8: 30 | L8: 34 | M8: 30 | Q8: =IF(ISNUMBER(VLOOKUP($B8, 'Data Inputs'!$B$5:$K$648, 8, FALSE))=TRUE, VLOOKUP($B8, 'Data Inputs'!$B$5:$K$648, 8, FALSE), "") ->  | R8: =IF(ISNUMBER(VLOOKUP($B8, 'Data Inputs'!$B$5:$K$648, 9, FALSE))=TRUE, VLOOKUP($B8, 'Data Inputs'!$B$5:$K$648, 9, FALSE), "") ->  | S8: =IF(ISNUMBER(VLOOKUP($B8, 'Data Inputs'!$B$5:$K$648, 10, FALSE))=TRUE, VLOOKUP($B8, 'Data Inputs'!$B$5:$K$648, 10, FALSE), "") ->  | T8: 0 | V8: ='Basic Input'!$C$12 -> 1.104 | W8: =IF('Basic Input'!$C$14="","",'Basic Input'!$C$14) ->  | Y8: =IF(ISNUMBER(VLOOKUP($B8, 'Data Inputs'!$B$5:$L$648, 11, FALSE))=TRUE, VLOOKUP($B8, 'Data Inputs'!$B$5:$L$648, 11, FALSE), "") ->  | AG8: =VLOOKUP(D8,'Working Data - Vol'!D8:G74,4,TRUE) -> 4310 | AX8: =-AC8 -> 0 | AZ8: 4 | BA8: Y | BB8: =IF(ISNUMBER(VLOOKUP($AZ8, 'Data Inputs'!$A$5:$H$206, 4, FALSE)), VLOOKUP($AZ8, 'Data Inputs'!$A$5:$H$206, 4, FALSE), "") -> 1600 | BC8: =IF(ISNUMBER(VLOOKUP($AZ8, 'Data Inputs'!$A$5:$H$206, 7, FALSE)), VLOOKUP($AZ8, 'Data Inputs'!$A$5:$H$206, 7, FALSE), "") ->  | BD8: =IF(ISNUMBER(VLOOKUP($AZ8, 'Data Inputs'!$A$5:$H$206, 8, FALSE)), VLOOKUP($AZ8, 'Data Inputs'!$A$5:$H$206, 8, FALSE), "") -> 48.9787
B9: 4 | C9: -0.11363634 | D9: -600 | E9: =IF(D9="", "", ROUND(VLOOKUP($C9, 'Data Inputs'!$C$5:$F$648, 3, TRUE), 2)) -> 5.24 | H9: =IF(ISNUMBER(VLOOKUP($B9, 'Data Inputs'!$B$5:$F$648, 5, FALSE))=TRUE, VLOOKUP($B9, 'Data Inputs'!$B$5:$F$648, 5, FALSE), "") ->  | I9: =IF(ISNUMBER(VLOOKUP($B9, 'Data Inputs'!$B$5:$H$648, 6, FALSE))=TRUE, VLOOKUP($B9, 'Data Inputs'!$B$5:$H$648, 6, FALSE), "") ->  | J9: =IF(ISNUMBER(VLOOKUP($B9, 'Data Inputs'!$B$5:$H$648, 7, FALSE))=TRUE, VLOOKUP($B9, 'Data Inputs'!$B$5:$H$648, 7, FALSE), "") ->  | K9: 30 | L9: 34 | M9: 30 | Q9: =IF(ISNUMBER(VLOOKUP($B9, 'Data Inputs'!$B$5:$K$648, 8, FALSE))=TRUE, VLOOKUP($B9, 'Data Inputs'!$B$5:$K$648, 8, FALSE), "") ->  | R9: =IF(ISNUMBER(VLOOKUP($B9, 'Data Inputs'!$B$5:$K$648, 9, FALSE))=TRUE, VLOOKUP($B9, 'Data Inputs'!$B$5:$K$648, 9, FALSE), "") ->  | S9: =IF(ISNUMBER(VLOOKUP($B9, 'Data Inputs'!$B$5:$K$648, 10, FALSE))=TRUE, VLOOKUP($B9, 'Data Inputs'!$B$5:$K$648, 10, FALSE), "") ->  | T9: 0 | V9: ='Basic Input'!$C$12 -> 1.104 | W9: =IF('Basic Input'!$C$14="","",'Basic Input'!$C$14) ->  | Y9: =IF(ISNUMBER(VLOOKUP($B9, 'Data Inputs'!$B$5:$L$648, 11, FALSE))=TRUE, VLOOKUP($B9, 'Data Inputs'!$B$5:$L$648, 11, FALSE), "") ->  | Z9: =IF(D9="", "",SUM(Y5:Y14)*(5280/1000)) -> 26.4 | AG9: =VLOOKUP(D9,'Working Data - Vol'!D9:G75,4,TRUE) -> 4310 | AX9: =-AC9 -> 0 | AZ9: 5 | BA9: Y | BB9: =IF(ISNUMBER(VLOOKUP($AZ9, 'Data Inputs'!$A$5:$H$206, 4, FALSE)), VLOOKUP($AZ9, 'Data Inputs'!$A$5:$H$206, 4, FALSE), "") -> 2500 | BC9: =IF(ISNUMBER(VLOOKUP($AZ9, 'Data Inputs'!$A$5:$H$206, 7, FALSE)), VLOOKUP($AZ9, 'Data Inputs'!$A$5:$H$206, 7, FALSE), "") -> 64 | BD9: =IF(ISNUMBER(VLOOKUP($AZ9, 'Data Inputs'!$A$5:$H$206, 8, FALSE)), VLOOKUP($AZ9, 'Data Inputs'!$A$5:$H$206, 8, FALSE), "") -> 58
B10: 5 | C10: -0.09469695 | D10: -500 | E10: =IF(D10="", "", ROUND(VLOOKUP($C10, 'Data Inputs'!$C$5:$F$648, 3, TRUE), 2)) -> 5.26 | H10: =IF(ISNUMBER(VLOOKUP($B10, 'Data Inputs'!$B$5:$F$648, 5, FALSE))=TRUE, VLOOKUP($B10, 'Data Inputs'!$B$5:$F$648, 5, FALSE), "") ->  | I10: =IF(ISNUMBER(VLOOKUP($B10, 'Data Inputs'!$B$5:$H$648, 6, FALSE))=TRUE, VLOOKUP($B10, 'Data Inputs'!$B$5:$H$648, 6, FALSE), "") ->  | J10: =IF(ISNUMBER(VLOOKUP($B10, 'Data Inputs'!$B$5:$H$648, 7, FALSE))=TRUE, VLOOKUP($B10, 'Data Inputs'!$B$5:$H$648, 7, FALSE), "") ->  | K10: 30 | L10: 34 | M10: 30 | Q10: =IF(ISNUMBER(VLOOKUP($B10, 'Data Inputs'!$B$5:$K$648, 8, FALSE))=TRUE, VLOOKUP($B10, 'Data Inputs'!$B$5:$K$648, 8, FALSE), "") -> 3 | R10: =IF(ISNUMBER(VLOOKUP($B10, 'Data Inputs'!$B$5:$K$648, 9, FALSE))=TRUE, VLOOKUP($B10, 'Data Inputs'!$B$5:$K$648, 9, FALSE), "") ->  | S10: =IF(ISNUMBER(VLOOKUP($B10, 'Data Inputs'!$B$5:$K$648, 10, FALSE))=TRUE, VLOOKUP($B10, 'Data Inputs'!$B$5:$K$648, 10, FALSE), "") ->  | T10: 3 | V10: ='Basic Input'!$C$12 -> 1.104 | W10: =IF('Basic Input'!$C$14="","",'Basic Input'!$C$14) ->  | Y10: =IF(ISNUMBER(VLOOKUP($B10, 'Data Inputs'!$B$5:$L$648, 11, FALSE))=TRUE, VLOOKUP($B10, 'Data Inputs'!$B$5:$L$648, 11, FALSE), "") -> 2 | Z10: 36.96 | AB10: 930.8 | AC10: -0.003787878788 | AG10: =VLOOKUP(D10,'Working Data - Vol'!D10:G76,4,TRUE) -> 4310 | AX10: 0.003787878788
B11: 6 | C11: -0.07575756 | D11: -400 | E11: =IF(D11="", "", ROUND(VLOOKUP($C11, 'Data Inputs'!$C$5:$F$648, 3, TRUE), 2)) -> 5.27 | H11: =IF(ISNUMBER(VLOOKUP($B11, 'Data Inputs'!$B$5:$F$648, 5, FALSE))=TRUE, VLOOKUP($B11, 'Data Inputs'!$B$5:$F$648, 5, FALSE), "") ->  | I11: =IF(ISNUMBER(VLOOKUP($B11, 'Data Inputs'!$B$5:$H$648, 6, FALSE))=TRUE, VLOOKUP($B11, 'Data Inputs'!$B$5:$H$648, 6, FALSE), "") ->  | J11: =IF(ISNUMBER(VLOOKUP($B11, 'Data Inputs'!$B$5:$H$648, 7, FALSE))=TRUE, VLOOKUP($B11, 'Data Inputs'!$B$5:$H$648, 7, FALSE), "") ->  | K11: 30 | L11: 34 | M11: 30 | Q11: =IF(ISNUMBER(VLOOKUP($B11, 'Data Inputs'!$B$5:$K$648, 8, FALSE))=TRUE, VLOOKUP($B11, 'Data Inputs'!$B$5:$K$648, 8, FALSE), "") ->  | R11: =IF(ISNUMBER(VLOOKUP($B11, 'Data Inputs'!$B$5:$K$648, 9, FALSE))=TRUE, VLOOKUP($B11, 'Data Inputs'!$B$5:$K$648, 9, FALSE), "") ->  | S11: =IF(ISNUMBER(VLOOKUP($B11, 'Data Inputs'!$B$5:$K$648, 10, FALSE))=TRUE, VLOOKUP($B11, 'Data Inputs'!$B$5:$K$648, 10, FALSE), "") ->  | T11: 0 | V11: ='Basic Input'!$C$12 -> 1.104 | W11: =IF('Basic Input'!$C$14="","",'Basic Input'!$C$14) ->  | Y11: =IF(ISNUMBER(VLOOKUP($B11, 'Data Inputs'!$B$5:$L$648, 11, FALSE))=TRUE, VLOOKUP($B11, 'Data Inputs'!$B$5:$L$648, 11, FALSE), "") -> 1 | Z11: 36.96 | AB11: 930.6 | AC11: -0.003787878788 | AG11: =VLOOKUP(D11,'Working Data - Vol'!D11:G77,4,TRUE) -> 4310 | AX11: 0.003787878788
B12: 7 | C12: -0.05681817 | D12: -300 | E12: =IF(D12="", "", ROUND(VLOOKUP($C12, 'Data Inputs'!$C$5:$F$648, 3, TRUE), 2)) -> 5.29 | H12: =IF(ISNUMBER(VLOOKUP($B12, 'Data Inputs'!$B$5:$F$648, 5, FALSE))=TRUE, VLOOKUP($B12, 'Data Inputs'!$B$5:$F$648, 5, FALSE), "") ->  | I12: =IF(ISNUMBER(VLOOKUP($B12, 'Data Inputs'!$B$5:$H$648, 6, FALSE))=TRUE, VLOOKUP($B12, 'Data Inputs'!$B$5:$H$648, 6, FALSE), "") ->  | J12: =IF(ISNUMBER(VLOOKUP($B12, 'Data Inputs'!$B$5:$H$648, 7, FALSE))=TRUE, VLOOKUP($B12, 'Data Inputs'!$B$5:$H$648, 7, FALSE), "") ->  | K12: 30 | L12: 34 | M12: 30 | N12: =IF($D12="", "", IF(L12>(K12+5),15,NA())) ->  | Q12: =IF(ISNUMBER(VLOOKUP($B12, 'Data Inputs'!$B$5:$K$648, 8, FALSE))=TRUE, VLOOKUP($B12, 'Data Inputs'!$B$5:$K$648, 8, FALSE), "") ->  | R12: =IF(ISNUMBER(VLOOKUP($B12, 'Data Inputs'!$B$5:$K$648, 9, FALSE))=TRUE, VLOOKUP($B12, 'Data Inputs'!$B$5:$K$648, 9, FALSE), "") ->  | S12: =IF(ISNUMBER(VLOOKUP($B12, 'Data Inputs'!$B$5:$K$648, 10, FALSE))=TRUE, VLOOKUP($B12, 'Data Inputs'!$B$5:$K$648, 10, FALSE), "") ->  | T12: 0 | U12: =IF(D12="", "",(1000000*SUM(T5:T20))/(365*'Basic Input'!$C$10*AG12)) -> 0.8899342084 | V12: ='Basic Input'!$C$12 -> 1.104 | W12: =IF('Basic Input'!$C$14="","",'Basic Input'!$C$14) ->  | Y12: =IF(ISNUMBER(VLOOKUP($B12, 'Data Inputs'!$B$5:$L$648, 11, FALSE))=TRUE, VLOOKUP($B12, 'Data Inputs'!$B$5:$L$648, 11, FALSE), "") ->  | Z12: 42.24 | AB12: 930.2 | AC12: -0.003787878788 | AG12: =VLOOKUP(D12,'Working Data - Vol'!D12:G78,4,TRUE) -> 4310 | AX12: 0.003787878788
B13: 8 | C13: -0.03787878 | D13: -200 | E13: =IF(D13="", "", ROUND(VLOOKUP($C13, 'Data Inputs'!$C$5:$F$648, 3, TRUE), 2)) -> 5.31 | H13: =IF(ISNUMBER(VLOOKUP($B13, 'Data Inputs'!$B$5:$F$648, 5, FALSE))=TRUE, VLOOKUP($B13, 'Data Inputs'!$B$5:$F$648, 5, FALSE), "") ->  | I13: =IF(ISNUMBER(VLOOKUP($B13, 'Data Inputs'!$B$5:$H$648, 6, FALSE))=TRUE, VLOOKUP($B13, 'Data Inputs'!$B$5:$H$648, 6, FALSE), "") ->  | J13: =IF(ISNUMBER(VLOOKUP($B13, 'Data Inputs'!$B$5:$H$648, 7, FALSE))=TRUE, VLOOKUP($B13, 'Data Inputs'!$B$5:$H$648, 7, FALSE), "") ->  | K13: 30 | L13: 34 | M13: 30 | Q13: =IF(ISNUMBER(VLOOKUP($B13, 'Data Inputs'!$B$5:$K$648, 8, FALSE))=TRUE, VLOOKUP($B13, 'Data Inputs'!$B$5:$K$648, 8, FALSE), "") ->  | R13: =IF(ISNUMBER(VLOOKUP($B13, 'Data Inputs'!$B$5:$K$648, 9, FALSE))=TRUE, VLOOKUP($B13, 'Data Inputs'!$B$5:$K$648, 9, FALSE), "") ->  | S13: =IF(ISNUMBER(VLOOKUP($B13, 'Data Inputs'!$B$5:$K$648, 10, FALSE))=TRUE, VLOOKUP($B13, 'Data Inputs'!$B$5:$K$648, 10, FALSE), "") ->  | T13: 0 | U13: =IF(D13="", "",(1000000*SUM(T6:T21))/(365*'Basic Input'!$C$10*AG13)) -> 0.8899342084 | V13: ='Basic Input'!$C$12 -> 1.104 | W13: =IF('Basic Input'!$C$14="","",'Basic Input'!$C$14) ->  | Y13: =IF(ISNUMBER(VLOOKUP($B13, 'Data Inputs'!$B$5:$L$648, 11, FALSE))=TRUE, VLOOKUP($B13, 'Data Inputs'!$B$5:$L$648, 11, FALSE), "") -> 1 | Z13: 42.24 | AB13: 929.8 | AC13: -0.003787878788 | AG13: =VLOOKUP(D13,'Working Data - Vol'!D13:G79,4,TRUE) -> 4310 | AX13: 0.003787878788
B14: 9 | C14: -0.01893939 | D14: -100 | E14: =IF(D14="", "", ROUND(VLOOKUP($C14, 'Data Inputs'!$C$5:$F$648, 3, TRUE), 2)) -> 5.33 | H14: =IF(ISNUMBER(VLOOKUP($B14, 'Data Inputs'!$B$5:$F$648, 5, FALSE))=TRUE, VLOOKUP($B14, 'Data Inputs'!$B$5:$F$648, 5, FALSE), "") ->  | I14: =IF(ISNUMBER(VLOOKUP($B14, 'Data Inputs'!$B$5:$H$648, 6, FALSE))=TRUE, VLOOKUP($B14, 'Data Inputs'!$B$5:$H$648, 6, FALSE), "") ->  | J14: =IF(ISNUMBER(VLOOKUP($B14, 'Data Inputs'!$B$5:$H$648, 7, FALSE))=TRUE, VLOOKUP($B14, 'Data Inputs'!$B$5:$H$648, 7, FALSE), "") ->  | K14: 30 | L14: 34 | M14: 30 | Q14: =IF(ISNUMBER(VLOOKUP($B14, 'Data Inputs'!$B$5:$K$648, 8, FALSE))=TRUE, VLOOKUP($B14, 'Data Inputs'!$B$5:$K$648, 8, FALSE), "") ->  | R14: =IF(ISNUMBER(VLOOKUP($B14, 'Data Inputs'!$B$5:$K$648, 9, FALSE))=TRUE, VLOOKUP($B14, 'Data Inputs'!$B$5:$K$648, 9, FALSE), "") ->  | S14: =IF(ISNUMBER(VLOOKUP($B14, 'Data Inputs'!$B$5:$K$648, 10, FALSE))=TRUE, VLOOKUP($B14, 'Data Inputs'!$B$5:$K$648, 10, FALSE), "") ->  | T14: =SUM(Q14:S14) -> 0 | U14: =IF(D14="", "",(1000000*SUM(T7:T22))/(365*'Basic Input'!$C$10*AG14)) -> 0.8899342084 | V14: ='Basic Input'!$C$12 -> 1.104 | W14: =IF('Basic Input'!$C$14="","",'Basic Input'!$C$14) ->  | Y14: =IF(ISNUMBER(VLOOKUP($B14, 'Data Inputs'!$B$5:$L$648, 11, FALSE))=TRUE, VLOOKUP($B14, 'Data Inputs'!$B$5:$L$648, 11, FALSE), "") -> 1 | Z14: 47.52 | AB14: 929.4 | AC14: -0.003787878788 | AG14: =VLOOKUP(D14,'Working Data - Vol'!D14:G80,4,TRUE) -> 4310 | AX14: 0.003787878788
B15: 10 | C15: 0 | D15: 0 | E15: =IF(D15="", "", ROUND(VLOOKUP($C15, 'Data Inputs'!$C$5:$F$648, 3, TRUE), 2)) -> 5.35 | H15: =IF(ISNUMBER(VLOOKUP($B15, 'Data Inputs'!$B$5:$F$648, 5, FALSE))=TRUE, VLOOKUP($B15, 'Data Inputs'!$B$5:$F$648, 5, FALSE), "") ->  | I15: =IF(ISNUMBER(VLOOKUP($B15, 'Data Inputs'!$B$5:$H$648, 6, FALSE))=TRUE, VLOOKUP($B15, 'Data Inputs'!$B$5:$H$648, 6, FALSE), "") ->  | J15: =IF(ISNUMBER(VLOOKUP($B15, 'Data Inputs'!$B$5:$H$648, 7, FALSE))=TRUE, VLOOKUP($B15, 'Data Inputs'!$B$5:$H$648, 7, FALSE), "") ->  | K15: 30 | L15: 34 | M15: 30 | Q15: =IF(ISNUMBER(VLOOKUP($B15, 'Data Inputs'!$B$5:$K$648, 8, FALSE))=TRUE, VLOOKUP($B15, 'Data Inputs'!$B$5:$K$648, 8, FALSE), "") -> 1 | R15: =IF(ISNUMBER(VLOOKUP($B15, 'Data Inputs'!$B$5:$K$648, 9, FALSE))=TRUE, VLOOKUP($B15, 'Data Inputs'!$B$5:$K$648, 9, FALSE), "") -> 2 | S15: =IF(ISNUMBER(VLOOKUP($B15, 'Data Inputs'!$B$5:$K$648, 10, FALSE))=TRUE, VLOOKUP($B15, 'Data Inputs'!$B$5:$K$648, 10, FALSE), "") ->  | T15: =SUM(Q15:S15) -> 3 | U15: =IF(D15="", "",(1000000*SUM(T8:T23))/(365*'Basic Input'!$C$10*AG15)) -> 1.017067667 | V15: ='Basic Input'!$C$12 -> 1.104 | W15: =IF('Basic Input'!$C$14="","",'Basic Input'!$C$14) ->  | Y15: =IF(ISNUMBER(VLOOKUP($B15, 'Data Inputs'!$B$5:$L$648, 11, FALSE))=TRUE, VLOOKUP($B15, 'Data Inputs'!$B$5:$L$648, 11, FALSE), "") -> 2 | Z15: 36.96 | AB15: 929 | AC15: 0.001893939394 | AG15: =VLOOKUP(D15,'Working Data - Vol'!D15:G81,4,TRUE) -> 4310 | AX15: -0.001893939394
B16: 11 | C16: 0.01893939 | D16: 100 | E16: =IF(D16="", "", ROUND(VLOOKUP($C16, 'Data Inputs'!$C$5:$F$648, 3, TRUE), 2)) -> 5.37 | H16: =IF(ISNUMBER(VLOOKUP($B16, 'Data Inputs'!$B$5:$F$648, 5, FALSE))=TRUE, VLOOKUP($B16, 'Data Inputs'!$B$5:$F$648, 5, FALSE), "") ->  | I16: =IF(ISNUMBER(VLOOKUP($B16, 'Data Inputs'!$B$5:$H$648, 6, FALSE))=TRUE, VLOOKUP($B16, 'Data Inputs'!$B$5:$H$648, 6, FALSE), "") -> 34 | J16: =IF(ISNUMBER(VLOOKUP($B16, 'Data Inputs'!$B$5:$H$648, 7, FALSE))=TRUE, VLOOKUP($B16, 'Data Inputs'!$B$5:$H$648, 7, FALSE), "") -> 30 | K16: 30 | L16: 34 | M16: 30 | Q16: =IF(ISNUMBER(VLOOKUP($B16, 'Data Inputs'!$B$5:$K$648, 8, FALSE))=TRUE, VLOOKUP($B16, 'Data Inputs'!$B$5:$K$648, 8, FALSE), "") ->  | R16: =IF(ISNUMBER(VLOOKUP($B16, 'Data Inputs'!$B$5:$K$648, 9, FALSE))=TRUE, VLOOKUP($B16, 'Data Inputs'!$B$5:$K$648, 9, FALSE), "") ->  | S16: =IF(ISNUMBER(VLOOKUP($B16, 'Data Inputs'!$B$5:$K$648, 10, FALSE))=TRUE, VLOOKUP($B16, 'Data Inputs'!$B$5:$K$648, 10, FALSE), "") ->  | T16: 0 | U16: =IF(D16="", "",(1000000*SUM(T9:T24))/(365*'Basic Input'!$C$10*AG16)) -> 1.017067667 | V16: ='Basic Input'!$C$12 -> 1.104 | W16: =IF('Basic Input'!$C$14="","",'Basic Input'!$C$14) ->  | Y16: =IF(ISNUMBER(VLOOKUP($B16, 'Data Inputs'!$B$5:$L$648, 11, FALSE))=TRUE, VLOOKUP($B16, 'Data Inputs'!$B$5:$L$648, 11, FALSE), "") ->  | Z16: 31.68 | AB16: 929.8 | AC16: 0.007575757576 | AG16: =VLOOKUP(D16,'Working Data - Vol'!D16:G82,4,TRUE) -> 4310 | AX16: -0.007575757576
B17: 12 | C17: 0.03787878 | D17: 200 | E17: =IF(D17="", "", ROUND(VLOOKUP($C17, 'Data Inputs'!$C$5:$F$648, 3, TRUE), 2)) -> 5.39 | H17: =IF(ISNUMBER(VLOOKUP($B17, 'Data Inputs'!$B$5:$F$648, 5, FALSE))=TRUE, VLOOKUP($B17, 'Data Inputs'!$B$5:$F$648, 5, FALSE), "") ->  | I17: =IF(ISNUMBER(VLOOKUP($B17, 'Data Inputs'!$B$5:$H$648, 6, FALSE))=TRUE, VLOOKUP($B17, 'Data Inputs'!$B$5:$H$648, 6, FALSE), "") ->  | J17: =IF(ISNUMBER(VLOOKUP($B17, 'Data Inputs'!$B$5:$H$648, 7, FALSE))=TRUE, VLOOKUP($B17, 'Data Inputs'!$B$5:$H$648, 7, FALSE), "") ->  | K17: 30 | L17: 35 | M17: 30.75 | Q17: =IF(ISNUMBER(VLOOKUP($B17, 'Data Inputs'!$B$5:$K$648, 8, FALSE))=TRUE, VLOOKUP($B17, 'Data Inputs'!$B$5:$K$648, 8, FALSE), "") ->  | R17: =IF(ISNUMBER(VLOOKUP($B17, 'Data Inputs'!$B$5:$K$648, 9, FALSE))=TRUE, VLOOKUP($B17, 'Data Inputs'!$B$5:$K$648, 9, FALSE), "") ->  | S17: =IF(ISNUMBER(VLOOKUP($B17, 'Data Inputs'!$B$5:$K$648, 10, FALSE))=TRUE, VLOOKUP($B17, 'Data Inputs'!$B$5:$K$648, 10, FALSE), "") ->  | T17: 0 | U17: =IF(D17="", "",(1000000*SUM(T10:T25))/(365*'Basic Input'!$C$10*AG17)) -> 1.017067667 | V17: ='Basic Input'!$C$12 -> 1.104 | W17: =IF('Basic Input'!$C$14="","",'Basic Input'!$C$14) ->  | Y17: =IF(ISNUMBER(VLOOKUP($B17, 'Data Inputs'!$B$5:$L$648, 11, FALSE))=TRUE, VLOOKUP($B17, 'Data Inputs'!$B$5:$L$648, 11, FALSE), "") -> 1 | Z17: 31.68 | AB17: 930.6 | AC17: 0.007575757576 | AG17: =VLOOKUP(D17,'Working Data - Vol'!D17:G83,4,TRUE) -> 4310 | AX17: -0.007575757576
B18: 13 | C18: 0.05681817 | D18: 300 | E18: =IF(D18="", "", ROUND(VLOOKUP($C18, 'Data Inputs'!$C$5:$F$648, 3, TRUE), 2)) -> 5.41 | H18: =IF(ISNUMBER(VLOOKUP($B18, 'Data Inputs'!$B$5:$F$648, 5, FALSE))=TRUE, VLOOKUP($B18, 'Data Inputs'!$B$5:$F$648, 5, FALSE), "") ->  | I18: =IF(ISNUMBER(VLOOKUP($B18, 'Data Inputs'!$B$5:$H$648, 6, FALSE))=TRUE, VLOOKUP($B18, 'Data Inputs'!$B$5:$H$648, 6, FALSE), "") ->  | J18: =IF(ISNUMBER(VLOOKUP($B18, 'Data Inputs'!$B$5:$H$648, 7, FALSE))=TRUE, VLOOKUP($B18, 'Data Inputs'!$B$5:$H$648, 7, FALSE), "") ->  | K18: 30 | L18: 36 | M18: 31.5 | N18: 15 | Q18: =IF(ISNUMBER(VLOOKUP($B18, 'Data Inputs'!$B$5:$K$648, 8, FALSE))=TRUE, VLOOKUP($B18, 'Data Inputs'!$B$5:$K$648, 8, FALSE), "") ->  | R18: =IF(ISNUMBER(VLOOKUP($B18, 'Data Inputs'!$B$5:$K$648, 9, FALSE))=TRUE, VLOOKUP($B18, 'Data Inputs'!$B$5:$K$648, 9, FALSE), "") ->  | S18: =IF(ISNUMBER(VLOOKUP($B18, 'Data Inputs'!$B$5:$K$648, 10, FALSE))=TRUE, VLOOKUP($B18, 'Data Inputs'!$B$5:$K$648, 10, FALSE), "") ->  | T18: 0 | U18: =IF(D18="", "",(1000000*SUM(T11:T26))/(365*'Basic Input'!$C$10*AG18)) -> 0.6356672917 | V18: ='Basic Input'!$C$12 -> 1.104 | W18: =IF('Basic Input'!$C$14="","",'Basic Input'!$C$14) ->  | Y18: =IF(ISNUMBER(VLOOKUP($B18, 'Data Inputs'!$B$5:$L$648, 11, FALSE))=TRUE, VLOOKUP($B18, 'Data Inputs'!$B$5:$L$648, 11, FALSE), "") ->  | Z18: 31.68 | AB18: 931.4 | AC18: 0.007575757576 | AG18: =VLOOKUP(D18,'Working Data - Vol'!D18:G84,4,TRUE) -> 4310 | AX18: -0.007575757576
B19: 14 | C19: 0.07575756 | D19: 400 | E19: =IF(D19="", "", ROUND(VLOOKUP($C19, 'Data Inputs'!$C$5:$F$648, 3, TRUE), 2)) -> 5.43 | H19: =IF(ISNUMBER(VLOOKUP($B19, 'Data Inputs'!$B$5:$F$648, 5, FALSE))=TRUE, VLOOKUP($B19, 'Data Inputs'!$B$5:$F$648, 5, FALSE), "") ->  | I19: =IF(ISNUMBER(VLOOKUP($B19, 'Data Inputs'!$B$5:$H$648, 6, FALSE))=TRUE, VLOOKUP($B19, 'Data Inputs'!$B$5:$H$648, 6, FALSE), "") ->  | J19: =IF(ISNUMBER(VLOOKUP($B19, 'Data Inputs'!$B$5:$H$648, 7, FALSE))=TRUE, VLOOKUP($B19, 'Data Inputs'!$B$5:$H$648, 7, FALSE), "") ->  | K19: 30 | L19: 37 | M19: 32.25 | N19: 15 | Q19: =IF(ISNUMBER(VLOOKUP($B19, 'Data Inputs'!$B$5:$K$648, 8, FALSE))=TRUE, VLOOKUP($B19, 'Data Inputs'!$B$5:$K$648, 8, FALSE), "") -> 1 | R19: =IF(ISNUMBER(VLOOKUP($B19, 'Data Inputs'!$B$5:$K$648, 9, FALSE))=TRUE, VLOOKUP($B19, 'Data Inputs'!$B$5:$K$648, 9, FALSE), "") ->  | S19: =IF(ISNUMBER(VLOOKUP($B19, 'Data Inputs'!$B$5:$K$648, 10, FALSE))=TRUE, VLOOKUP($B19, 'Data Inputs'!$B$5:$K$648, 10, FALSE), "") ->  | T19: 1 | U19: =IF(D19="", "",(1000000*SUM(T12:T27))/(365*'Basic Input'!$C$10*AG19)) -> 0.6356672917 | V19: ='Basic Input'!$C$12 -> 1.104 | W19: =IF('Basic Input'!$C$14="","",'Basic Input'!$C$14) ->  | Y19: =IF(ISNUMBER(VLOOKUP($B19, 'Data Inputs'!$B$5:$L$648, 11, FALSE))=TRUE, VLOOKUP($B19, 'Data Inputs'!$B$5:$L$648, 11, FALSE), "") -> 1 | Z19: 26.4 | AB19: 932.2 | AC19: 0.007575757576 | AE19: 0 | AG19: =VLOOKUP(D19,'Working Data - Vol'!D19:G85,4,TRUE) -> 4310 | AX19: -0.007575757576
B20: 15 | C20: 0.09469695 | D20: 500 | E20: =IF(D20="", "", ROUND(VLOOKUP($C20, 'Data Inputs'!$C$5:$F$648, 3, TRUE), 2)) -> 5.44 | H20: =IF(ISNUMBER(VLOOKUP($B20, 'Data Inputs'!$B$5:$F$648, 5, FALSE))=TRUE, VLOOKUP($B20, 'Data Inputs'!$B$5:$F$648, 5, FALSE), "") ->  | I20: =IF(ISNUMBER(VLOOKUP($B20, 'Data Inputs'!$B$5:$H$648, 6, FALSE))=TRUE, VLOOKUP($B20, 'Data Inputs'!$B$5:$H$648, 6, FALSE), "") -> 38 | J20: =IF(ISNUMBER(VLOOKUP($B20, 'Data Inputs'!$B$5:$H$648, 7, FALSE))=TRUE, VLOOKUP($B20, 'Data Inputs'!$B$5:$H$648, 7, FALSE), "") -> 33 | K20: 30 | L20: 38 | M20: 33 | N20: 15 | Q20: =IF(ISNUMBER(VLOOKUP($B20, 'Data Inputs'!$B$5:$K$648, 8, FALSE))=TRUE, VLOOKUP($B20, 'Data Inputs'!$B$5:$K$648, 8, FALSE), "") ->  | R20: =IF(ISNUMBER(VLOOKUP($B20, 'Data Inputs'!$B$5:$K$648, 9, FALSE))=TRUE, VLOOKUP($B20, 'Data Inputs'!$B$5:$K$648, 9, FALSE), "") ->  | S20: =IF(ISNUMBER(VLOOKUP($B20, 'Data Inputs'!$B$5:$K$648, 10, FALSE))=TRUE, VLOOKUP($B20, 'Data Inputs'!$B$5:$K$648, 10, FALSE), "") ->  | T20: 0 | U20: =IF(D20="", "",(1000000*SUM(T13:T28))/(365*'Basic Input'!$C$10*AG20)) -> 0.6356672917 | V20: ='Basic Input'!$C$12 -> 1.104 | W20: =IF('Basic Input'!$C$14="","",'Basic Input'!$C$14) ->  | Y20: =IF(ISNUMBER(VLOOKUP($B20, 'Data Inputs'!$B$5:$L$648, 11, FALSE))=TRUE, VLOOKUP($B20, 'Data Inputs'!$B$5:$L$648, 11, FALSE), "") ->  | Z20: 15.84 | AB20: 932.6 | AC20: 0.007575757576 | AE20: 0 | AG20: =VLOOKUP(D20,'Working Data - Vol'!D20:G86,4,TRUE) -> 4310 | AX20: -0.007575757576
B21: 16 | C21: 0.11363634 | D21: 600 | E21: =IF(D21="", "", ROUND(VLOOKUP($C21, 'Data Inputs'!$C$5:$F$648, 3, TRUE), 2)) -> 5.46 | H21: =IF(ISNUMBER(VLOOKUP($B21, 'Data Inputs'!$B$5:$F$648, 5, FALSE))=TRUE, VLOOKUP($B21, 'Data Inputs'!$B$5:$F$648, 5, FALSE), "") ->  | I21: =IF(ISNUMBER(VLOOKUP($B21, 'Data Inputs'!$B$5:$H$648, 6, FALSE))=TRUE, VLOOKUP($B21, 'Data Inputs'!$B$5:$H$648, 6, FALSE), "") ->  | J21: =IF(ISNUMBER(VLOOKUP($B21, 'Data Inputs'!$B$5:$H$648, 7, FALSE))=TRUE, VLOOKUP($B21, 'Data Inputs'!$B$5:$H$648, 7, FALSE), "") ->  | K21: 30 | M21: 34.29588571 | Q21: =IF(ISNUMBER(VLOOKUP($B21, 'Data Inputs'!$B$5:$K$648, 8, FALSE))=TRUE, VLOOKUP($B21, 'Data Inputs'!$B$5:$K$648, 8, FALSE), "") ->  | R21: =IF(ISNUMBER(VLOOKUP($B21, 'Data Inputs'!$B$5:$K$648, 9, FALSE))=TRUE, VLOOKUP($B21, 'Data Inputs'!$B$5:$K$648, 9, FALSE), "") ->  | S21: =IF(ISNUMBER(VLOOKUP($B21, 'Data Inputs'!$B$5:$K$648, 10, FALSE))=TRUE, VLOOKUP($B21, 'Data Inputs'!$B$5:$K$648, 10, FALSE), "") ->  | T21: 0 | U21: =IF(D21="", "",(1000000*SUM(T14:T29))/(365*'Basic Input'!$C$10*AG21)) -> 0.6356672917 | V21: ='Basic Input'!$C$12 -> 1.104 | W21: =IF('Basic Input'!$C$14="","",'Basic Input'!$C$14) ->  | Y21: =IF(ISNUMBER(VLOOKUP($B21, 'Data Inputs'!$B$5:$L$648, 11, FALSE))=TRUE, VLOOKUP($B21, 'Data Inputs'!$B$5:$L$648, 11, FALSE), "") ->  | Z21: 15.84 | AB21: 932.6666667 | AC21: -0.006313131313 | AE21: 0 | AG21: =VLOOKUP(D21,'Working Data - Vol'!D21:G87,4,TRUE) -> 4310 | AX21: 0.006313131313
B22: 17 | C22: 0.13257573 | D22: 700 | E22: =IF(D22="", "", ROUND(VLOOKUP($C22, 'Data Inputs'!$C$5:$F$648, 3, TRUE), 2)) -> 5.48 | H22: =IF(ISNUMBER(VLOOKUP($B22, 'Data Inputs'!$B$5:$F$648, 5, FALSE))=TRUE, VLOOKUP($B22, 'Data Inputs'!$B$5:$F$648, 5, FALSE), "") ->  | I22: =IF(ISNUMBER(VLOOKUP($B22, 'Data Inputs'!$B$5:$H$648, 6, FALSE))=TRUE, VLOOKUP($B22, 'Data Inputs'!$B$5:$H$648, 6, FALSE), "") ->  | J22: =IF(ISNUMBER(VLOOKUP($B22, 'Data Inputs'!$B$5:$H$648, 7, FALSE))=TRUE, VLOOKUP($B22, 'Data Inputs'!$B$5:$H$648, 7, FALSE), "") ->  | K22: 30 | M22: 35.59177143 | O22: 20 | Q22: =IF(ISNUMBER(VLOOKUP($B22, 'Data Inputs'!$B$5:$K$648, 8, FALSE))=TRUE, VLOOKUP($B22, 'Data Inputs'!$B$5:$K$648, 8, FALSE), "") ->  | R22: =IF(ISNUMBER(VLOOKUP($B22, 'Data Inputs'!$B$5:$K$648, 9, FALSE))=TRUE, VLOOKUP($B22, 'Data Inputs'!$B$5:$K$648, 9, FALSE), "") ->  | S22: =IF(ISNUMBER(VLOOKUP($B22, 'Data Inputs'!$B$5:$K$648, 10, FALSE))=TRUE, VLOOKUP($B22, 'Data Inputs'!$B$5:$K$648, 10, FALSE), "") ->  | T22: 0 | U22: =IF(D22="", "",(1000000*SUM(T15:T30))/(365*'Basic Input'!$C$10*AG22)) -> 0.6356672917 | V22: ='Basic Input'!$C$12 -> 1.104 | W22: =IF('Basic Input'!$C$14="","",'Basic Input'!$C$14) ->  | Y22: =IF(ISNUMBER(VLOOKUP($B22, 'Data Inputs'!$B$5:$L$648, 11, FALSE))=TRUE, VLOOKUP($B22, 'Data Inputs'!$B$5:$L$648, 11, FALSE), "") ->  | Z22: 10.56 | AB22: 932 | AC22: 0.003156565657 | AE22: 0 | AG22: =VLOOKUP(D22,'Working Data - Vol'!D22:G88,4,TRUE) -> 4310 | AX22: -0.003156565657
B23: 18 | C23: 0.15151512 | D23: 800 | E23: =IF(D23="", "", ROUND(VLOOKUP($C23, 'Data Inputs'!$C$5:$F$648, 3, TRUE), 2)) -> 5.5 | H23: =IF(ISNUMBER(VLOOKUP($B23, 'Data Inputs'!$B$5:$F$648, 5, FALSE))=TRUE, VLOOKUP($B23, 'Data Inputs'!$B$5:$F$648, 5, FALSE), "") ->  | I23: =IF(ISNUMBER(VLOOKUP($B23, 'Data Inputs'!$B$5:$H$648, 6, FALSE))=TRUE, VLOOKUP($B23, 'Data Inputs'!$B$5:$H$648, 6, FALSE), "") ->  | J23: =IF(ISNUMBER(VLOOKUP($B23, 'Data Inputs'!$B$5:$H$648, 7, FALSE))=TRUE, VLOOKUP($B23, 'Data Inputs'!$B$5:$H$648, 7, FALSE), "") ->  | K23: 30 | M23: 36.88765714 | Q23: =IF(ISNUMBER(VLOOKUP($B23, 'Data Inputs'!$B$5:$K$648, 8, FALSE))=TRUE, VLOOKUP($B23, 'Data Inputs'!$B$5:$K$648, 8, FALSE), "") -> 1 | R23: =IF(ISNUMBER(VLOOKUP($B23, 'Data Inputs'!$B$5:$K$648, 9, FALSE))=TRUE, VLOOKUP($B23, 'Data Inputs'!$B$5:$K$648, 9, FALSE), "") ->  | S23: =IF(ISNUMBER(VLOOKUP($B23, 'Data Inputs'!$B$5:$K$648, 10, FALSE))=TRUE, VLOOKUP($B23, 'Data Inputs'!$B$5:$K$648, 10, FALSE), "") ->  | T23: 1 | U23: =IF(D23="", "",(1000000*SUM(T16:T31))/(365*'Basic Input'!$C$10*AG23)) -> 0.2542669167 | V23: ='Basic Input'!$C$12 -> 1.104 | W23: =IF('Basic Input'!$C$14="","",'Basic Input'!$C$14) ->  | Y23: =IF(ISNUMBER(VLOOKUP($B23, 'Data Inputs'!$B$5:$L$648, 11, FALSE))=TRUE, VLOOKUP($B23, 'Data Inputs'!$B$5:$L$648, 11, FALSE), "") -> 1 | Z23: 10.56 | AB23: 933.3333333 | AC23: 0.01262626263 | AE23: 0 | AG23: =VLOOKUP(D23,'Working Data - Vol'!D23:G89,4,TRUE) -> 4310 | AX23: -0.01262626263
B24: 19 | C24: 0.17045451 | D24: 900 | E24: =IF(D24="", "", ROUND(VLOOKUP($C24, 'Data Inputs'!$C$5:$F$648, 3, TRUE), 2)) -> 5.52 | H24: =IF(ISNUMBER(VLOOKUP($B24, 'Data Inputs'!$B$5:$F$648, 5, FALSE))=TRUE, VLOOKUP($B24, 'Data Inputs'!$B$5:$F$648, 5, FALSE), "") -> 30 | I24: =IF(ISNUMBER(VLOOKUP($B24, 'Data Inputs'!$B$5:$H$648, 6, FALSE))=TRUE, VLOOKUP($B24, 'Data Inputs'!$B$5:$H$648, 6, FALSE), "") ->  | J24: =IF(ISNUMBER(VLOOKUP($B24, 'Data Inputs'!$B$5:$H$648, 7, FALSE))=TRUE, VLOOKUP($B24, 'Data Inputs'!$B$5:$H$648, 7, FALSE), "") ->  | K24: 30 | M24: 38.18354286 | Q24: =IF(ISNUMBER(VLOOKUP($B24, 'Data Inputs'!$B$5:$K$648, 8, FALSE))=TRUE, VLOOKUP($B24, 'Data Inputs'!$B$5:$K$648, 8, FALSE), "") ->  | R24: =IF(ISNUMBER(VLOOKUP($B24, 'Data Inputs'!$B$5:$K$648, 9, FALSE))=TRUE, VLOOKUP($B24, 'Data Inputs'!$B$5:$K$648, 9, FALSE), "") ->  | S24: =IF(ISNUMBER(VLOOKUP($B24, 'Data Inputs'!$B$5:$K$648, 10, FALSE))=TRUE, VLOOKUP($B24, 'Data Inputs'!$B$5:$K$648, 10, FALSE), "") ->  | T24: 0 | U24: =IF(D24="", "",(1000000*SUM(T17:T32))/(365*'Basic Input'!$C$10*AG24)) -> 0.2542669167 | V24: ='Basic Input'!$C$12 -> 1.104 | W24: =IF('Basic Input'!$C$14="","",'Basic Input'!$C$14) ->  | Y24: =IF(ISNUMBER(VLOOKUP($B24, 'Data Inputs'!$B$5:$L$648, 11, FALSE))=TRUE, VLOOKUP($B24, 'Data Inputs'!$B$5:$L$648, 11, FALSE), "") ->  | Z24: 10.56 | AB24: 933.5 | AC24: -0.00946969697 | AE24: 0 | AG24: =VLOOKUP(D24,'Working Data - Vol'!D24:G90,4,TRUE) -> 4310 | AX24: 0.00946969697
B25: 20 | C25: 0.1893939 | D25: 1000 | E25: =IF(D25="", "", ROUND(VLOOKUP($C25, 'Data Inputs'!$C$5:$F$648, 3, TRUE), 2)) -> 5.54 | H25: =IF(ISNUMBER(VLOOKUP($B25, 'Data Inputs'!$B$5:$F$648, 5, FALSE))=TRUE, VLOOKUP($B25, 'Data Inputs'!$B$5:$F$648, 5, FALSE), "") ->  | I25: =IF(ISNUMBER(VLOOKUP($B25, 'Data Inputs'!$B$5:$H$648, 6, FALSE))=TRUE, VLOOKUP($B25, 'Data Inputs'!$B$5:$H$648, 6, FALSE), "") ->  | J25: =IF(ISNUMBER(VLOOKUP($B25, 'Data Inputs'!$B$5:$H$648, 7, FALSE))=TRUE, VLOOKUP($B25, 'Data Inputs'!$B$5:$H$648, 7, FALSE), "") ->  | K25: 50 | M25: 39.47942857 | Q25: =IF(ISNUMBER(VLOOKUP($B25, 'Data Inputs'!$B$5:$K$648, 8, FALSE))=TRUE, VLOOKUP($B25, 'Data Inputs'!$B$5:$K$648, 8, FALSE), "") ->  | R25: =IF(ISNUMBER(VLOOKUP($B25, 'Data Inputs'!$B$5:$K$648, 9, FALSE))=TRUE, VLOOKUP($B25, 'Data Inputs'!$B$5:$K$648, 9, FALSE), "") ->  | S25: =IF(ISNUMBER(VLOOKUP($B25, 'Data Inputs'!$B$5:$K$648, 10, FALSE))=TRUE, VLOOKUP($B25, 'Data Inputs'!$B$5:$K$648, 10, FALSE), "") ->  | T25: 0 | U25: =IF(D25="", "",(1000000*SUM(T18:T33))/(365*'Basic Input'!$C$10*AG25)) -> 0.2542669167 | V25: ='Basic Input'!$C$12 -> 1.104 | W25: =IF('Basic Input'!$C$14="","",'Basic Input'!$C$14) ->  | Y25: =IF(ISNUMBER(VLOOKUP($B25, 'Data Inputs'!$B$5:$L$648, 11, FALSE))=TRUE, VLOOKUP($B25, 'Data Inputs'!$B$5:$L$648, 11, FALSE), "") ->  | Z25: =IF(D25="", "",SUM(Y21:Y30)*(5280/1000)) -> 10.56 | AB25: 932.5 | AC25: -0.00946969697 | AE25: -0.01 | AG25: =VLOOKUP(D25,'Working Data - Vol'!D25:G91,4,TRUE) -> 4310 | AX25: 0.00946969697
B26: 21 | C26: 0.20833329 | D26: 1100 | E26: =IF(D26="", "", ROUND(VLOOKUP($C26, 'Data Inputs'!$C$5:$F$648, 3, TRUE), 2)) -> 5.56 | H26: =IF(ISNUMBER(VLOOKUP($B26, 'Data Inputs'!$B$5:$F$648, 5, FALSE))=TRUE, VLOOKUP($B26, 'Data Inputs'!$B$5:$F$648, 5, FALSE), "") ->  | I26: =IF(ISNUMBER(VLOOKUP($B26, 'Data Inputs'!$B$5:$H$648, 6, FALSE))=TRUE, VLOOKUP($B26, 'Data Inputs'!$B$5:$H$648, 6, FALSE), "") ->  | J26: =IF(ISNUMBER(VLOOKUP($B26, 'Data Inputs'!$B$5:$H$648, 7, FALSE))=TRUE, VLOOKUP($B26, 'Data Inputs'!$B$5:$H$648, 7, FALSE), "") ->  | K26: 50 | M26: 40.77531429 | Q26: =IF(ISNUMBER(VLOOKUP($B26, 'Data Inputs'!$B$5:$K$648, 8, FALSE))=TRUE, VLOOKUP($B26, 'Data Inputs'!$B$5:$K$648, 8, FALSE), "") ->  | R26: =IF(ISNUMBER(VLOOKUP($B26, 'Data Inputs'!$B$5:$K$648, 9, FALSE))=TRUE, VLOOKUP($B26, 'Data Inputs'!$B$5:$K$648, 9, FALSE), "") ->  | S26: =IF(ISNUMBER(VLOOKUP($B26, 'Data Inputs'!$B$5:$K$648, 10, FALSE))=TRUE, VLOOKUP($B26, 'Data Inputs'!$B$5:$K$648, 10, FALSE), "") ->  | T26: 0 | U26: =IF(D26="", "",(1000000*SUM(T19:T34))/(365*'Basic Input'!$C$10*AG26)) -> 0.2542669167 | V26: ='Basic Input'!$C$12 -> 1.104 | W26: =IF('Basic Input'!$C$14="","",'Basic Input'!$C$14) ->  | Y26: =IF(ISNUMBER(VLOOKUP($B26, 'Data Inputs'!$B$5:$L$648, 11, FALSE))=TRUE, VLOOKUP($B26, 'Data Inputs'!$B$5:$L$648, 11, FALSE), "") ->  | Z26: 10.56 | AB26: 932 | AC26: 0 | AE26: -0.01 | AG26: =VLOOKUP(D26,'Working Data - Vol'!D26:G92,4,TRUE) -> 4310 | AX26: 0
B27: 22 | C27: 0.22727268 | D27: 1200 | E27: =IF(D27="", "", ROUND(VLOOKUP($C27, 'Data Inputs'!$C$5:$F$648, 3, TRUE), 2)) -> 5.58 | H27: =IF(ISNUMBER(VLOOKUP($B27, 'Data Inputs'!$B$5:$F$648, 5, FALSE))=TRUE, VLOOKUP($B27, 'Data Inputs'!$B$5:$F$648, 5, FALSE), "") ->  | I27: =IF(ISNUMBER(VLOOKUP($B27, 'Data Inputs'!$B$5:$H$648, 6, FALSE))=TRUE, VLOOKUP($B27, 'Data Inputs'!$B$5:$H$648, 6, FALSE), "") ->  | J27: =IF(ISNUMBER(VLOOKUP($B27, 'Data Inputs'!$B$5:$H$648, 7, FALSE))=TRUE, VLOOKUP($B27, 'Data Inputs'!$B$5:$H$648, 7, FALSE), "") ->  | K27: 50 | M27: 42.0712 | N27: 15 | Q27: =IF(ISNUMBER(VLOOKUP($B27, 'Data Inputs'!$B$5:$K$648, 8, FALSE))=TRUE, VLOOKUP($B27, 'Data Inputs'!$B$5:$K$648, 8, FALSE), "") ->  | R27: =IF(ISNUMBER(VLOOKUP($B27, 'Data Inputs'!$B$5:$K$648, 9, FALSE))=TRUE, VLOOKUP($B27, 'Data Inputs'!$B$5:$K$648, 9, FALSE), "") ->  | S27: =IF(ISNUMBER(VLOOKUP($B27, 'Data Inputs'!$B$5:$K$648, 10, FALSE))=TRUE, VLOOKUP($B27, 'Data Inputs'!$B$5:$K$648, 10, FALSE), "") ->  | T27: 0 | U27: =IF(D27="", "",(1000000*SUM(T20:T35))/(365*'Basic Input'!$C$10*AG27)) -> 0.1271334583 | V27: ='Basic Input'!$C$12 -> 1.104 | W27: =IF('Basic Input'!$C$14="","",'Basic Input'!$C$14) ->  | Y27: =IF(ISNUMBER(VLOOKUP($B27, 'Data Inputs'!$B$5:$L$648, 11, FALSE))=TRUE, VLOOKUP($B27, 'Data Inputs'!$B$5:$L$648, 11, FALSE), "") ->  | Z27: 10.56 | AB27: 932 | AC27: 0 | AE27: -0.01 | AG27: =VLOOKUP(D27,'Working Data - Vol'!D27:G93,4,TRUE) -> 4310 | AX27: 0
B28: 23 | C28: 0.24621207 | D28: 1300 | E28: =IF(D28="", "", ROUND(VLOOKUP($C28, 'Data Inputs'!$C$5:$F$648, 3, TRUE), 2)) -> 5.6 | H28: =IF(ISNUMBER(VLOOKUP($B28, 'Data Inputs'!$B$5:$F$648, 5, FALSE))=TRUE, VLOOKUP($B28, 'Data Inputs'!$B$5:$F$648, 5, FALSE), "") ->  | I28: =IF(ISNUMBER(VLOOKUP($B28, 'Data Inputs'!$B$5:$H$648, 6, FALSE))=TRUE, VLOOKUP($B28, 'Data Inputs'!$B$5:$H$648, 6, FALSE), "") ->  | J28: =IF(ISNUMBER(VLOOKUP($B28, 'Data Inputs'!$B$5:$H$648, 7, FALSE))=TRUE, VLOOKUP($B28, 'Data Inputs'!$B$5:$H$648, 7, FALSE), "") -> 42.0712 | K28: 50 | M28: 43.798075 | O28: 20 | Q28: =IF(ISNUMBER(VLOOKUP($B28, 'Data Inputs'!$B$5:$K$648, 8, FALSE))=TRUE, VLOOKUP($B28, 'Data Inputs'!$B$5:$K$648, 8, FALSE), "") ->  | R28: =IF(ISNUMBER(VLOOKUP($B28, 'Data Inputs'!$B$5:$K$648, 9, FALSE))=TRUE, VLOOKUP($B28, 'Data Inputs'!$B$5:$K$648, 9, FALSE), "") ->  | S28: =IF(ISNUMBER(VLOOKUP($B28, 'Data Inputs'!$B$5:$K$648, 10, FALSE))=TRUE, VLOOKUP($B28, 'Data Inputs'!$B$5:$K$648, 10, FALSE), "") ->  | T28: 0 | U28: =IF(D28="", "",(1000000*SUM(T21:T36))/(365*'Basic Input'!$C$10*AG28)) -> 0.1271334583 | V28: ='Basic Input'!$C$12 -> 1.104 | W28: =IF('Basic Input'!$C$14="","",'Basic Input'!$C$14) ->  | Y28: =IF(ISNUMBER(VLOOKUP($B28, 'Data Inputs'!$B$5:$L$648, 11, FALSE))=TRUE, VLOOKUP($B28, 'Data Inputs'!$B$5:$L$648, 11, FALSE), "") ->  | Z28: 5.28 | AB28: 931 | AC28: -0.01893939394 | AE28: 0 | AG28: =VLOOKUP(D28,'Working Data - Vol'!D28:G94,4,TRUE) -> 4310 | AX28: 0.01893939394
B29: 24 | C29: 0.26515146 | D29: 1400 | E29: =IF(D29="", "", ROUND(VLOOKUP($C29, 'Data Inputs'!$C$5:$F$648, 3, TRUE), 2)) -> 5.62 | H29: =IF(ISNUMBER(VLOOKUP($B29, 'Data Inputs'!$B$5:$F$648, 5, FALSE))=TRUE, VLOOKUP($B29, 'Data Inputs'!$B$5:$F$648, 5, FALSE), "") ->  | I29: =IF(ISNUMBER(VLOOKUP($B29, 'Data Inputs'!$B$5:$H$648, 6, FALSE))=TRUE, VLOOKUP($B29, 'Data Inputs'!$B$5:$H$648, 6, FALSE), "") ->  | J29: =IF(ISNUMBER(VLOOKUP($B29, 'Data Inputs'!$B$5:$H$648, 7, FALSE))=TRUE, VLOOKUP($B29, 'Data Inputs'!$B$5:$H$648, 7, FALSE), "") ->  | K29: 50 | M29: 45.52495 | Q29: =IF(ISNUMBER(VLOOKUP($B29, 'Data Inputs'!$B$5:$K$648, 8, FALSE))=TRUE, VLOOKUP($B29, 'Data Inputs'!$B$5:$K$648, 8, FALSE), "") ->  | R29: =IF(ISNUMBER(VLOOKUP($B29, 'Data Inputs'!$B$5:$K$648, 9, FALSE))=TRUE, VLOOKUP($B29, 'Data Inputs'!$B$5:$K$648, 9, FALSE), "") ->  | S29: =IF(ISNUMBER(VLOOKUP($B29, 'Data Inputs'!$B$5:$K$648, 10, FALSE))=TRUE, VLOOKUP($B29, 'Data Inputs'!$B$5:$K$648, 10, FALSE), "") ->  | T29: 0 | U29: =IF(D29="", "",(1000000*SUM(T22:T37))/(365*'Basic Input'!$C$10*AG29)) -> 0.1271334583 | V29: ='Basic Input'!$C$12 -> 1.104 | W29: =IF('Basic Input'!$C$14="","",'Basic Input'!$C$14) ->  | Y29: =IF(ISNUMBER(VLOOKUP($B29, 'Data Inputs'!$B$5:$L$648, 11, FALSE))=TRUE, VLOOKUP($B29, 'Data Inputs'!$B$5:$L$648, 11, FALSE), "") -> 1 | Z29: 5.28 | AB29: 929 | AC29: -0.01893939394 | AE29: 0 | AG29: =VLOOKUP(D29,'Working Data - Vol'!D29:G95,4,TRUE) -> 4310 | AX29: 0.01893939394
B30: 25 | C30: 0.28409085 | D30: 1500 | E30: =IF(D30="", "", ROUND(VLOOKUP($C30, 'Data Inputs'!$C$5:$F$648, 3, TRUE), 2)) -> 5.63 | H30: =IF(ISNUMBER(VLOOKUP($B30, 'Data Inputs'!$B$5:$F$648, 5, FALSE))=TRUE, VLOOKUP($B30, 'Data Inputs'!$B$5:$F$648, 5, FALSE), "") ->  | I30: =IF(ISNUMBER(VLOOKUP($B30, 'Data Inputs'!$B$5:$H$648, 6, FALSE))=TRUE, VLOOKUP($B30, 'Data Inputs'!$B$5:$H$648, 6, FALSE), "") ->  | J30: =IF(ISNUMBER(VLOOKUP($B30, 'Data Inputs'!$B$5:$H$648, 7, FALSE))=TRUE, VLOOKUP($B30, 'Data Inputs'!$B$5:$H$648, 7, FALSE), "") ->  | K30: 50 | M30: 47.251825 | Q30: =IF(ISNUMBER(VLOOKUP($B30, 'Data Inputs'!$B$5:$K$648, 8, FALSE))=TRUE, VLOOKUP($B30, 'Data Inputs'!$B$5:$K$648, 8, FALSE), "") ->  | R30: =IF(ISNUMBER(VLOOKUP($B30, 'Data Inputs'!$B$5:$K$648, 9, FALSE))=TRUE, VLOOKUP($B30, 'Data Inputs'!$B$5:$K$648, 9, FALSE), "") ->  | S30: =IF(ISNUMBER(VLOOKUP($B30, 'Data Inputs'!$B$5:$K$648, 10, FALSE))=TRUE, VLOOKUP($B30, 'Data Inputs'!$B$5:$K$648, 10, FALSE), "") ->  | T30: 0 | U30: =IF(D30="", "",(1000000*SUM(T23:T38))/(365*'Basic Input'!$C$10*AG30)) -> 0.2542669167 | V30: ='Basic Input'!$C$12 -> 1.104 | W30: =IF('Basic Input'!$C$14="","",'Basic Input'!$C$14) ->  | Y30: =IF(ISNUMBER(VLOOKUP($B30, 'Data Inputs'!$B$5:$L$648, 11, FALSE))=TRUE, VLOOKUP($B30, 'Data Inputs'!$B$5:$L$648, 11, FALSE), "") ->  | Z30: 5.28 | AB30: 928 | AC30: -0.008116883117 | AE30: 0 | AG30: =VLOOKUP(D30,'Working Data - Vol'!D30:G96,4,TRUE) -> 4310 | AX30: 0.008116883117
B31: 26 | C31: 0.30303024 | D31: 1600 | E31: =IF(D31="", "", ROUND(VLOOKUP($C31, 'Data Inputs'!$C$5:$F$648, 3, TRUE), 2)) -> 5.65 | H31: =IF(ISNUMBER(VLOOKUP($B31, 'Data Inputs'!$B$5:$F$648, 5, FALSE))=TRUE, VLOOKUP($B31, 'Data Inputs'!$B$5:$F$648, 5, FALSE), "") ->  | I31: =IF(ISNUMBER(VLOOKUP($B31, 'Data Inputs'!$B$5:$H$648, 6, FALSE))=TRUE, VLOOKUP($B31, 'Data Inputs'!$B$5:$H$648, 6, FALSE), "") ->  | J31: =IF(ISNUMBER(VLOOKUP($B31, 'Data Inputs'!$B$5:$H$648, 7, FALSE))=TRUE, VLOOKUP($B31, 'Data Inputs'!$B$5:$H$648, 7, FALSE), "") ->  | K31: 50 | M31: 48.9787 | N31: 15 | O31: 20 | Q31: =IF(ISNUMBER(VLOOKUP($B31, 'Data Inputs'!$B$5:$K$648, 8, FALSE))=TRUE, VLOOKUP($B31, 'Data Inputs'!$B$5:$K$648, 8, FALSE), "") ->  | R31: =IF(ISNUMBER(VLOOKUP($B31, 'Data Inputs'!$B$5:$K$648, 9, FALSE))=TRUE, VLOOKUP($B31, 'Data Inputs'!$B$5:$K$648, 9, FALSE), "") ->  | S31: =IF(ISNUMBER(VLOOKUP($B31, 'Data Inputs'!$B$5:$K$648, 10, FALSE))=TRUE, VLOOKUP($B31, 'Data Inputs'!$B$5:$K$648, 10, FALSE), "") ->  | T31: 0 | U31: =IF(D31="", "",(1000000*SUM(T24:T39))/(365*'Basic Input'!$C$10*AG31)) -> 0.1271334583 | V31: ='Basic Input'!$C$12 -> 1.104 | W31: =IF('Basic Input'!$C$14="","",'Basic Input'!$C$14) ->  | Y31: =IF(ISNUMBER(VLOOKUP($B31, 'Data Inputs'!$B$5:$L$648, 11, FALSE))=TRUE, VLOOKUP($B31, 'Data Inputs'!$B$5:$L$648, 11, FALSE), "") ->  | Z31: 5.28 | AB31: 928.2857143 | AC31: 0.002705627706 | AE31: 0.01 | AG31: =VLOOKUP(D31,'Working Data - Vol'!D31:G97,4,TRUE) -> 4310 | AX31: -0.002705627706
B32: 27 | C32: 0.32196963 | D32: 1700 | E32: =IF(D32="", "", ROUND(VLOOKUP($C32, 'Data Inputs'!$C$5:$F$648, 3, TRUE), 2)) -> 5.67 | H32: =IF(ISNUMBER(VLOOKUP($B32, 'Data Inputs'!$B$5:$F$648, 5, FALSE))=TRUE, VLOOKUP($B32, 'Data Inputs'!$B$5:$F$648, 5, FALSE), "") ->  | I32: =IF(ISNUMBER(VLOOKUP($B32, 'Data Inputs'!$B$5:$H$648, 6, FALSE))=TRUE, VLOOKUP($B32, 'Data Inputs'!$B$5:$H$648, 6, FALSE), "") ->  | J32: =IF(ISNUMBER(VLOOKUP($B32, 'Data Inputs'!$B$5:$H$648, 7, FALSE))=TRUE, VLOOKUP($B32, 'Data Inputs'!$B$5:$H$648, 7, FALSE), "") -> 48.9787 | K32: 50 | M32: 49.98106667 | Q32: =IF(ISNUMBER(VLOOKUP($B32, 'Data Inputs'!$B$5:$K$648, 8, FALSE))=TRUE, VLOOKUP($B32, 'Data Inputs'!$B$5:$K$648, 8, FALSE), "") ->  | R32: =IF(ISNUMBER(VLOOKUP($B32, 'Data Inputs'!$B$5:$K$648, 9, FALSE))=TRUE, VLOOKUP($B32, 'Data Inputs'!$B$5:$K$648, 9, FALSE), "") ->  | S32: =IF(ISNUMBER(VLOOKUP($B32, 'Data Inputs'!$B$5:$K$648, 10, FALSE))=TRUE, VLOOKUP($B32, 'Data Inputs'!$B$5:$K$648, 10, FALSE), "") ->  | T32: 0 | U32: =IF(D32="", "",(1000000*SUM(T25:T40))/(365*'Basic Input'!$C$10*AG32)) -> 0.1271334583 | V32: ='Basic Input'!$C$12 -> 1.104 | W32: =IF('Basic Input'!$C$14="","",'Basic Input'!$C$14) ->  | Y32: =IF(ISNUMBER(VLOOKUP($B32, 'Data Inputs'!$B$5:$L$648, 11, FALSE))=TRUE, VLOOKUP($B32, 'Data Inputs'!$B$5:$L$648, 11, FALSE), "") ->  | Z32: 5.28 | AB32: 928.5714286 | AC32: 0.002705627706 | AE32: 0.01 | AG32: =VLOOKUP(D32,'Working Data - Vol'!D32:G98,4,TRUE) -> 4310 | AX32: -0.002705627706
B33: 28 | C33: 0.34090902 | D33: 1800 | E33: =IF(D33="", "", ROUND(VLOOKUP($C33, 'Data Inputs'!$C$5:$F$648, 3, TRUE), 2)) -> 5.69 | H33: =IF(ISNUMBER(VLOOKUP($B33, 'Data Inputs'!$B$5:$F$648, 5, FALSE))=TRUE, VLOOKUP($B33, 'Data Inputs'!$B$5:$F$648, 5, FALSE), "") ->  | I33: =IF(ISNUMBER(VLOOKUP($B33, 'Data Inputs'!$B$5:$H$648, 6, FALSE))=TRUE, VLOOKUP($B33, 'Data Inputs'!$B$5:$H$648, 6, FALSE), "") ->  | J33: =IF(ISNUMBER(VLOOKUP($B33, 'Data Inputs'!$B$5:$H$648, 7, FALSE))=TRUE, VLOOKUP($B33, 'Data Inputs'!$B$5:$H$648, 7, FALSE), "") ->  | K33: 50 | M33: 50.98343333 | Q33: =IF(ISNUMBER(VLOOKUP($B33, 'Data Inputs'!$B$5:$K$648, 8, FALSE))=TRUE, VLOOKUP($B33, 'Data Inputs'!$B$5:$K$648, 8, FALSE), "") ->  | R33: =IF(ISNUMBER(VLOOKUP($B33, 'Data Inputs'!$B$5:$K$648, 9, FALSE))=TRUE, VLOOKUP($B33, 'Data Inputs'!$B$5:$K$648, 9, FALSE), "") ->  | S33: =IF(ISNUMBER(VLOOKUP($B33, 'Data Inputs'!$B$5:$K$648, 10, FALSE))=TRUE, VLOOKUP($B33, 'Data Inputs'!$B$5:$K$648, 10, FALSE), "") ->  | T33: 0 | U33: =IF(D33="", "",(1000000*SUM(T26:T41))/(365*'Basic Input'!$C$10*AG33)) -> 0.1271334583 | V33: ='Basic Input'!$C$12 -> 1.104 | W33: =IF('Basic Input'!$C$14="","",'Basic Input'!$C$14) ->  | Y33: =IF(ISNUMBER(VLOOKUP($B33, 'Data Inputs'!$B$5:$L$648, 11, FALSE))=TRUE, VLOOKUP($B33, 'Data Inputs'!$B$5:$L$648, 11, FALSE), "") ->  | Z33: 5.28 | AB33: 928.8571429 | AC33: 0.002705627706 | AE33: 0.02 | AG33: =VLOOKUP(D33,'Working Data - Vol'!D33:G99,4,TRUE) -> 4310 | AX33: -0.002705627706
B34: 29 | C34: 0.35984841 | D34: 1900 | E34: =IF(D34="", "", ROUND(VLOOKUP($C34, 'Data Inputs'!$C$5:$F$648, 3, TRUE), 2)) -> 5.71 | H34: =IF(ISNUMBER(VLOOKUP($B34, 'Data Inputs'!$B$5:$F$648, 5, FALSE))=TRUE, VLOOKUP($B34, 'Data Inputs'!$B$5:$F$648, 5, FALSE), "") ->  | I34: =IF(ISNUMBER(VLOOKUP($B34, 'Data Inputs'!$B$5:$H$648, 6, FALSE))=TRUE, VLOOKUP($B34, 'Data Inputs'!$B$5:$H$648, 6, FALSE), "") ->  | J34: =IF(ISNUMBER(VLOOKUP($B34, 'Data Inputs'!$B$5:$H$648, 7, FALSE))=TRUE, VLOOKUP($B34, 'Data Inputs'!$B$5:$H$648, 7, FALSE), "") ->  | K34: 50 | M34: 51.9858 | Q34: =IF(ISNUMBER(VLOOKUP($B34, 'Data Inputs'!$B$5:$K$648, 8, FALSE))=TRUE, VLOOKUP($B34, 'Data Inputs'!$B$5:$K$648, 8, FALSE), "") ->  | R34: =IF(ISNUMBER(VLOOKUP($B34, 'Data Inputs'!$B$5:$K$648, 9, FALSE))=TRUE, VLOOKUP($B34, 'Data Inputs'!$B$5:$K$648, 9, FALSE), "") ->  | S34: =IF(ISNUMBER(VLOOKUP($B34, 'Data Inputs'!$B$5:$K$648, 10, FALSE))=TRUE, VLOOKUP($B34, 'Data Inputs'!$B$5:$K$648, 10, FALSE), "") ->  | T34: 0 | U34: =IF(D34="", "",(1000000*SUM(T27:T42))/(365*'Basic Input'!$C$10*AG34)) -> 0.1271334583 | V34: ='Basic Input'!$C$12 -> 1.104 | W34: =IF('Basic Input'!$C$14="","",'Basic Input'!$C$14) ->  | Y34: =IF(ISNUMBER(VLOOKUP($B34, 'Data Inputs'!$B$5:$L$648, 11, FALSE))=TRUE, VLOOKUP($B34, 'Data Inputs'!$B$5:$L$648, 11, FALSE), "") ->  | Z34: 0 | AB34: 929.125 | AC34: 0.002367424242 | AE34: 0.02 | AG34: =VLOOKUP(D34,'Working Data - Vol'!D34:G100,4,TRUE) -> 4310 | AX34: -0.002367424242
B35: 30 | C35: 0.3787878 | D35: 2000 | E35: =IF(D35="", "", ROUND(VLOOKUP($C35, 'Data Inputs'!$C$5:$F$648, 3, TRUE), 2)) -> 5.73 | H35: =IF(ISNUMBER(VLOOKUP($B35, 'Data Inputs'!$B$5:$F$648, 5, FALSE))=TRUE, VLOOKUP($B35, 'Data Inputs'!$B$5:$F$648, 5, FALSE), "") ->  | I35: =IF(ISNUMBER(VLOOKUP($B35, 'Data Inputs'!$B$5:$H$648, 6, FALSE))=TRUE, VLOOKUP($B35, 'Data Inputs'!$B$5:$H$648, 6, FALSE), "") ->  | J35: =IF(ISNUMBER(VLOOKUP($B35, 'Data Inputs'!$B$5:$H$648, 7, FALSE))=TRUE, VLOOKUP($B35, 'Data Inputs'!$B$5:$H$648, 7, FALSE), "") ->  | K35: 50 | M35: 52.98816667 | Q35: =IF(ISNUMBER(VLOOKUP($B35, 'Data Inputs'!$B$5:$K$648, 8, FALSE))=TRUE, VLOOKUP($B35, 'Data Inputs'!$B$5:$K$648, 8, FALSE), "") ->  | R35: =IF(ISNUMBER(VLOOKUP($B35, 'Data Inputs'!$B$5:$K$648, 9, FALSE))=TRUE, VLOOKUP($B35, 'Data Inputs'!$B$5:$K$648, 9, FALSE), "") ->  | S35: =IF(ISNUMBER(VLOOKUP($B35, 'Data Inputs'!$B$5:$K$648, 10, FALSE))=TRUE, VLOOKUP($B35, 'Data Inputs'!$B$5:$K$648, 10, FALSE), "") ->  | T35: 0 | U35: =IF(D35="", "",(1000000*SUM(T28:T43))/(365*'Basic Input'!$C$10*AG35)) -> 0.1271334583 | V35: ='Basic Input'!$C$12 -> 1.104 | W35: =IF('Basic Input'!$C$14="","",'Basic Input'!$C$14) ->  | Y35: =IF(ISNUMBER(VLOOKUP($B35, 'Data Inputs'!$B$5:$L$648, 11, FALSE))=TRUE, VLOOKUP($B35, 'Data Inputs'!$B$5:$L$648, 11, FALSE), "") ->  | Z35: 0 | AB35: 929.375 | AC35: 0.002367424242 | AE35: 0.02 | AG35: =VLOOKUP(D35,'Working Data - Vol'!D35:G101,4,TRUE) -> 4310 | AX35: -0.002367424242
B36: 31 | C36: 0.39772719 | D36: 2100 | E36: =IF(D36="", "", ROUND(VLOOKUP($C36, 'Data Inputs'!$C$5:$F$648, 3, TRUE), 2)) -> 5.75 | H36: =IF(ISNUMBER(VLOOKUP($B36, 'Data Inputs'!$B$5:$F$648, 5, FALSE))=TRUE, VLOOKUP($B36, 'Data Inputs'!$B$5:$F$648, 5, FALSE), "") ->  | I36: =IF(ISNUMBER(VLOOKUP($B36, 'Data Inputs'!$B$5:$H$648, 6, FALSE))=TRUE, VLOOKUP($B36, 'Data Inputs'!$B$5:$H$648, 6, FALSE), "") ->  | J36: =IF(ISNUMBER(VLOOKUP($B36, 'Data Inputs'!$B$5:$H$648, 7, FALSE))=TRUE, VLOOKUP($B36, 'Data Inputs'!$B$5:$H$648, 7, FALSE), "") ->  | K36: 50 | M36: 53.99053333 | O36: 20 | Q36: =IF(ISNUMBER(VLOOKUP($B36, 'Data Inputs'!$B$5:$K$648, 8, FALSE))=TRUE, VLOOKUP($B36, 'Data Inputs'!$B$5:$K$648, 8, FALSE), "") ->  | R36: =IF(ISNUMBER(VLOOKUP($B36, 'Data Inputs'!$B$5:$K$648, 9, FALSE))=TRUE, VLOOKUP($B36, 'Data Inputs'!$B$5:$K$648, 9, FALSE), "") ->  | S36: =IF(ISNUMBER(VLOOKUP($B36, 'Data Inputs'!$B$5:$K$648, 10, FALSE))=TRUE, VLOOKUP($B36, 'Data Inputs'!$B$5:$K$648, 10, FALSE), "") ->  | T36: 0 | U36: =IF(D36="", "",(1000000*SUM(T29:T44))/(365*'Basic Input'!$C$10*AG36)) -> 0.1271334583 | V36: ='Basic Input'!$C$12 -> 1.104 | W36: =IF('Basic Input'!$C$14="","",'Basic Input'!$C$14) ->  | Y36: =IF(ISNUMBER(VLOOKUP($B36, 'Data Inputs'!$B$5:$L$648, 11, FALSE))=TRUE, VLOOKUP($B36, 'Data Inputs'!$B$5:$L$648, 11, FALSE), "") ->  | Z36: 0 | AB36: 929.625 | AC36: 0.002367424242 | AE36: 0.01 | AG36: =VLOOKUP(D36,'Working Data - Vol'!D36:G102,4,TRUE) -> 4310 | AX36: -0.002367424242
B37: 32 | C37: 0.41666658 | D37: 2200 | E37: =IF(D37="", "", ROUND(VLOOKUP($C37, 'Data Inputs'!$C$5:$F$648, 3, TRUE), 2)) -> 5.77 | H37: =IF(ISNUMBER(VLOOKUP($B37, 'Data Inputs'!$B$5:$F$648, 5, FALSE))=TRUE, VLOOKUP($B37, 'Data Inputs'!$B$5:$F$648, 5, FALSE), "") ->  | I37: =IF(ISNUMBER(VLOOKUP($B37, 'Data Inputs'!$B$5:$H$648, 6, FALSE))=TRUE, VLOOKUP($B37, 'Data Inputs'!$B$5:$H$648, 6, FALSE), "") ->  | J37: =IF(ISNUMBER(VLOOKUP($B37, 'Data Inputs'!$B$5:$H$648, 7, FALSE))=TRUE, VLOOKUP($B37, 'Data Inputs'!$B$5:$H$648, 7, FALSE), "") ->  | K37: 50 | M37: =IF($D37="","",(IF($D37<=$BB$5,$BD$5,IF($D37=$BB$6,$BD$6,IF($D37=$BB$7,$BD$7,IF($D37=$BB$8,$BD$8,IF(AND($BA$6="N",$D37>$BB$5)=TRUE,$BD$5,IF(AND($BA$7="N",$D37>$BB$6)=TRUE,$BD$6,IF(AND($BA$8="N",$D37>$BB$7)=TRUE,$BD$7,IF(AND($BA$9="N",$D37>$BB$8)=TRUE,$BD$8,IF($BA$6="Y",IF(AND($D37>$BB$5,$D37<$BB$6)=TRUE,(($D37-$BB$5)/($BB$5-$BB$6)*(BD$5-BD$6))+MIN(BD$6,BD$5),IF($BA$7="Y",IF(AND($D37>$BB$6,$D37<$BB$7)=TRUE,(($D37-$BB$6)/($BB$6-$BB$7)*(BD$6-BD$7))+MIN(BD$7,BD$6),IF($BA$8="Y",IF(AND($D37>$BB$7,$D37<$BB$8)=TRUE,(($D37-$BB$7)/($BB$7-$BB$8)*(BD$7-BD$8))+MIN(BD$8,BD$7),IF($BA$9="Y",IF(AND($D37>$BB$8,$D37<$BB$9)=TRUE,(($D37-$BB$8)/($BB$8-$BB$9)*(BD$8-BD$9))+MIN(BD$9,BD$8),IF($D37>=$BB$9,$BD$9,""))))))))))))))))))) -> 54.9929 | Q37: =IF(ISNUMBER(VLOOKUP($B37, 'Data Inputs'!$B$5:$K$648, 8, FALSE))=TRUE, VLOOKUP($B37, 'Data Inputs'!$B$5:$K$648, 8, FALSE), "") ->  | R37: =IF(ISNUMBER(VLOOKUP($B37, 'Data Inputs'!$B$5:$K$648, 9, FALSE))=TRUE, VLOOKUP($B37, 'Data Inputs'!$B$5:$K$648, 9, FALSE), "") ->  | S37: =IF(ISNUMBER(VLOOKUP($B37, 'Data Inputs'!$B$5:$K$648, 10, FALSE))=TRUE, VLOOKUP($B37, 'Data Inputs'!$B$5:$K$648, 10, FALSE), "") ->  | T37: 0 | U37: =IF(D37="", "",(1000000*SUM(T30:T45))/(365*'Basic Input'!$C$10*AG37)) -> 0.1271334583 | V37: ='Basic Input'!$C$12 -> 1.104 | W37: =IF('Basic Input'!$C$14="","",'Basic Input'!$C$14) ->  | Y37: =IF(ISNUMBER(VLOOKUP($B37, 'Data Inputs'!$B$5:$L$648, 11, FALSE))=TRUE, VLOOKUP($B37, 'Data Inputs'!$B$5:$L$648, 11, FALSE), "") ->  | Z37: 0 | AB37: 929.875 | AC37: 0.002367424242 | AE37: 0.01 | AG37: =VLOOKUP(D37,'Working Data - Vol'!D37:G103,4,TRUE) -> 4310 | AX37: =-AC37 -> -0.002367424242
B38: 33 | C38: 0.43560597 | D38: 2300 | E38: =IF(D38="", "", ROUND(VLOOKUP($C38, 'Data Inputs'!$C$5:$F$648, 3, TRUE), 2)) -> 5.79 | H38: =IF(ISNUMBER(VLOOKUP($B38, 'Data Inputs'!$B$5:$F$648, 5, FALSE))=TRUE, VLOOKUP($B38, 'Data Inputs'!$B$5:$F$648, 5, FALSE), "") -> 50 | I38: =IF(ISNUMBER(VLOOKUP($B38, 'Data Inputs'!$B$5:$H$648, 6, FALSE))=TRUE, VLOOKUP($B38, 'Data Inputs'!$B$5:$H$648, 6, FALSE), "") ->  | J38: =IF(ISNUMBER(VLOOKUP($B38, 'Data Inputs'!$B$5:$H$648, 7, FALSE))=TRUE, VLOOKUP($B38, 'Data Inputs'!$B$5:$H$648, 7, FALSE), "") ->  | K38: 50 | L38: =IF(D38="","",(IF(D38<=$BB$5,$BC$5,IF(D38=$BB$6,$BC$6,IF(D38=$BB$7,$BC$7,IF(D38=$BB$8,$BC$8,IF(AND($BA$6="N",D38>$BB$5)=TRUE,$BC$5,IF(AND($BA$7="N",D38>$BB$6)=TRUE,$BC$6,IF(AND($BA$8="N",D38>$BB$7)=TRUE,$BC$7,IF(AND($BA$9="N",D38>$BB$8)=TRUE,$BC$8,IF($BA$6="Y",IF(AND(D38>$BB$5,D38<$BB$6)=TRUE,(($D38-$BB$5)/($BB$5-$BB$6)*(BC$5-BC$6))+MIN(BC$6,BC$5),IF($BA$7="Y",IF(AND(D38>$BB$6,D38<$BB$7)=TRUE,(($D38-$BB$6)/($BB$6-$BB$7)*(BC$6-BC$7))+MIN(BC$7,BC$6),IF($BA$8="Y",IF(AND(D38>$BB$7,D38<$BB$8)=TRUE,(($D38-$BB$7)/($BB$7-$BB$8)*(BC$7-BC$8))+MIN(BC$8,BC$7),IF($BA$9="Y",IF(AND(D38>$BB$8,D38<$BB$9)=TRUE,(($D38-$BB$8)/($BB$8-$BB$9)*(BC$8-BC$9))+MIN(BC$9,BC$8),IF(D38>=$BB$9,$BC$9,""))))))))))))))))))) ->  | M38: 55.99526667 | Q38: =IF(ISNUMBER(VLOOKUP($B38, 'Data Inputs'!$B$5:$K$648, 8, FALSE))=TRUE, VLOOKUP($B38, 'Data Inputs'!$B$5:$K$648, 8, FALSE), "") -> 1 | R38: =IF(ISNUMBER(VLOOKUP($B38, 'Data Inputs'!$B$5:$K$648, 9, FALSE))=TRUE, VLOOKUP($B38, 'Data Inputs'!$B$5:$K$648, 9, FALSE), "") ->  | S38: =IF(ISNUMBER(VLOOKUP($B38, 'Data Inputs'!$B$5:$K$648, 10, FALSE))=TRUE, VLOOKUP($B38, 'Data Inputs'!$B$5:$K$648, 10, FALSE), "") ->  | T38: 1 | U38: =IF(D38="", "",(1000000*SUM(T31:T46))/(365*'Basic Input'!$C$10*AG38)) -> 0.1271334583 | V38: ='Basic Input'!$C$12 -> 1.104 | W38: =IF('Basic Input'!$C$14="","",'Basic Input'!$C$14) ->  | Y38: =IF(ISNUMBER(VLOOKUP($B38, 'Data Inputs'!$B$5:$L$648, 11, FALSE))=TRUE, VLOOKUP($B38, 'Data Inputs'!$B$5:$L$648, 11, FALSE), "") ->  | Z38: 0 | AB38: 929.8571429 | AC38: -0.002705627706 | AE38: 0 | AG38: =VLOOKUP(D38,'Working Data - Vol'!D38:G104,4,TRUE) -> 4310 | AX38: =-AC38 -> 0.002705627706
B39: 34 | C39: 0.45454536 | D39: 2400 | E39: =IF(D39="", "", ROUND(VLOOKUP($C39, 'Data Inputs'!$C$5:$F$648, 3, TRUE), 2)) -> 5.8 | H39: =IF(ISNUMBER(VLOOKUP($B39, 'Data Inputs'!$B$5:$F$648, 5, FALSE))=TRUE, VLOOKUP($B39, 'Data Inputs'!$B$5:$F$648, 5, FALSE), "") ->  | I39: =IF(ISNUMBER(VLOOKUP($B39, 'Data Inputs'!$B$5:$H$648, 6, FALSE))=TRUE, VLOOKUP($B39, 'Data Inputs'!$B$5:$H$648, 6, FALSE), "") ->  | J39: =IF(ISNUMBER(VLOOKUP($B39, 'Data Inputs'!$B$5:$H$648, 7, FALSE))=TRUE, VLOOKUP($B39, 'Data Inputs'!$B$5:$H$648, 7, FALSE), "") ->  | K39: 65 | M39: 56.99763333 | Q39: =IF(ISNUMBER(VLOOKUP($B39, 'Data Inputs'!$B$5:$K$648, 8, FALSE))=TRUE, VLOOKUP($B39, 'Data Inputs'!$B$5:$K$648, 8, FALSE), "") ->  | R39: =IF(ISNUMBER(VLOOKUP($B39, 'Data Inputs'!$B$5:$K$648, 9, FALSE))=TRUE, VLOOKUP($B39, 'Data Inputs'!$B$5:$K$648, 9, FALSE), "") ->  | S39: =IF(ISNUMBER(VLOOKUP($B39, 'Data Inputs'!$B$5:$K$648, 10, FALSE))=TRUE, VLOOKUP($B39, 'Data Inputs'!$B$5:$K$648, 10, FALSE), "") ->  | T39: 0 | U39: =IF(D39="", "",(1000000*SUM(T32:T47))/(365*'Basic Input'!$C$10*AG39)) -> 0.1271334583 | V39: ='Basic Input'!$C$12 -> 1.104 | W39: =IF('Basic Input'!$C$14="","",'Basic Input'!$C$14) ->  | Y39: =IF(ISNUMBER(VLOOKUP($B39, 'Data Inputs'!$B$5:$L$648, 11, FALSE))=TRUE, VLOOKUP($B39, 'Data Inputs'!$B$5:$L$648, 11, FALSE), "") ->  | Z39: 5.28 | AB39: 929.7142857 | AC39: -0.002705627706 | AE39: 0 | AG39: =VLOOKUP(D39,'Working Data - Vol'!D39:G105,4,TRUE) -> 4310 | AX39: =-AC39 -> 0.002705627706
B40: 35 | C40: 0.47348475 | D40: 2500 | E40: =IF(D40="", "", ROUND(VLOOKUP($C40, 'Data Inputs'!$C$5:$F$648, 3, TRUE), 2)) -> 5.82 | H40: =IF(ISNUMBER(VLOOKUP($B40, 'Data Inputs'!$B$5:$F$648, 5, FALSE))=TRUE, VLOOKUP($B40, 'Data Inputs'!$B$5:$F$648, 5, FALSE), "") ->  | I40: =IF(ISNUMBER(VLOOKUP($B40, 'Data Inputs'!$B$5:$H$648, 6, FALSE))=TRUE, VLOOKUP($B40, 'Data Inputs'!$B$5:$H$648, 6, FALSE), "") ->  | J40: =IF(ISNUMBER(VLOOKUP($B40, 'Data Inputs'!$B$5:$H$648, 7, FALSE))=TRUE, VLOOKUP($B40, 'Data Inputs'!$B$5:$H$648, 7, FALSE), "") ->  | K40: 65 | L40: 64 | M40: 58 | Q40: =IF(ISNUMBER(VLOOKUP($B40, 'Data Inputs'!$B$5:$K$648, 8, FALSE))=TRUE, VLOOKUP($B40, 'Data Inputs'!$B$5:$K$648, 8, FALSE), "") ->  | R40: =IF(ISNUMBER(VLOOKUP($B40, 'Data Inputs'!$B$5:$K$648, 9, FALSE))=TRUE, VLOOKUP($B40, 'Data Inputs'!$B$5:$K$648, 9, FALSE), "") ->  | S40: =IF(ISNUMBER(VLOOKUP($B40, 'Data Inputs'!$B$5:$K$648, 10, FALSE))=TRUE, VLOOKUP($B40, 'Data Inputs'!$B$5:$K$648, 10, FALSE), "") ->  | T40: 0 | U40: =IF(D40="", "",(1000000*SUM(T33:T48))/(365*'Basic Input'!$C$10*AG40)) -> 0.1271334583 | V40: ='Basic Input'!$C$12 -> 1.104 | W40: =IF('Basic Input'!$C$14="","",'Basic Input'!$C$14) ->  | Y40: =IF(ISNUMBER(VLOOKUP($B40, 'Data Inputs'!$B$5:$L$648, 11, FALSE))=TRUE, VLOOKUP($B40, 'Data Inputs'!$B$5:$L$648, 11, FALSE), "") ->  | Z40: 5.28 | AB40: 929.4285714 | AC40: -0.002705627706 | AE40: 0 | AG40: =VLOOKUP(D40,'Working Data - Vol'!D40:G106,4,TRUE) -> 4310 | AX40: 0.002705627706
B41: 36 | C41: 0.49242414 | D41: 2600 | E41: =IF(D41="", "", ROUND(VLOOKUP($C41, 'Data Inputs'!$C$5:$F$648, 3, TRUE), 2)) -> 5.84 | H41: =IF(ISNUMBER(VLOOKUP($B41, 'Data Inputs'!$B$5:$F$648, 5, FALSE))=TRUE, VLOOKUP($B41, 'Data Inputs'!$B$5:$F$648, 5, FALSE), "") ->  | I41: =IF(ISNUMBER(VLOOKUP($B41, 'Data Inputs'!$B$5:$H$648, 6, FALSE))=TRUE, VLOOKUP($B41, 'Data Inputs'!$B$5:$H$648, 6, FALSE), "") ->  | J41: =IF(ISNUMBER(VLOOKUP($B41, 'Data Inputs'!$B$5:$H$648, 7, FALSE))=TRUE, VLOOKUP($B41, 'Data Inputs'!$B$5:$H$648, 7, FALSE), "") ->  | K41: 65 | L41: 64 | M41: 58 | O41: 20 | Q41: =IF(ISNUMBER(VLOOKUP($B41, 'Data Inputs'!$B$5:$K$648, 8, FALSE))=TRUE, VLOOKUP($B41, 'Data Inputs'!$B$5:$K$648, 8, FALSE), "") ->  | R41: =IF(ISNUMBER(VLOOKUP($B41, 'Data Inputs'!$B$5:$K$648, 9, FALSE))=TRUE, VLOOKUP($B41, 'Data Inputs'!$B$5:$K$648, 9, FALSE), "") ->  | S41: =IF(ISNUMBER(VLOOKUP($B41, 'Data Inputs'!$B$5:$K$648, 10, FALSE))=TRUE, VLOOKUP($B41, 'Data Inputs'!$B$5:$K$648, 10, FALSE), "") ->  | T41: 0 | U41: =IF(D41="", "",(1000000*SUM(T34:T49))/(365*'Basic Input'!$C$10*AG41)) -> 0.1271334583 | V41: ='Basic Input'!$C$12 -> 1.104 | W41: =IF('Basic Input'!$C$14="","",'Basic Input'!$C$14) ->  | Y41: =IF(ISNUMBER(VLOOKUP($B41, 'Data Inputs'!$B$5:$L$648, 11, FALSE))=TRUE, VLOOKUP($B41, 'Data Inputs'!$B$5:$L$648, 11, FALSE), "") ->  | Z41: 5.28 | AB41: 929.1428571 | AC41: -0.002705627706 | AE41: 0 | AG41: =VLOOKUP(D41,'Working Data - Vol'!D41:G107,4,TRUE) -> 4310 | AX41: 0.002705627706
B42: 37 | C42: 0.51136353 | D42: 2700 | E42: =IF(D42="", "", ROUND(VLOOKUP($C42, 'Data Inputs'!$C$5:$F$648, 3, TRUE), 2)) -> 5.86 | H42: =IF(ISNUMBER(VLOOKUP($B42, 'Data Inputs'!$B$5:$F$648, 5, FALSE))=TRUE, VLOOKUP($B42, 'Data Inputs'!$B$5:$F$648, 5, FALSE), "") ->  | I42: =IF(ISNUMBER(VLOOKUP($B42, 'Data Inputs'!$B$5:$H$648, 6, FALSE))=TRUE, VLOOKUP($B42, 'Data Inputs'!$B$5:$H$648, 6, FALSE), "") -> 64 | J42: =IF(ISNUMBER(VLOOKUP($B42, 'Data Inputs'!$B$5:$H$648, 7, FALSE))=TRUE, VLOOKUP($B42, 'Data Inputs'!$B$5:$H$648, 7, FALSE), "") -> 58 | K42: 65 | L42: 64 | M42: 58 | Q42: =IF(ISNUMBER(VLOOKUP($B42, 'Data Inputs'!$B$5:$K$648, 8, FALSE))=TRUE, VLOOKUP($B42, 'Data Inputs'!$B$5:$K$648, 8, FALSE), "") ->  | R42: =IF(ISNUMBER(VLOOKUP($B42, 'Data Inputs'!$B$5:$K$648, 9, FALSE))=TRUE, VLOOKUP($B42, 'Data Inputs'!$B$5:$K$648, 9, FALSE), "") ->  | S42: =IF(ISNUMBER(VLOOKUP($B42, 'Data Inputs'!$B$5:$K$648, 10, FALSE))=TRUE, VLOOKUP($B42, 'Data Inputs'!$B$5:$K$648, 10, FALSE), "") ->  | T42: 0 | U42: =IF(D42="", "",(1000000*SUM(T35:T50))/(365*'Basic Input'!$C$10*AG42)) -> 0.1271334583 | V42: ='Basic Input'!$C$12 -> 1.104 | W42: =IF('Basic Input'!$C$14="","",'Basic Input'!$C$14) ->  | Y42: =IF(ISNUMBER(VLOOKUP($B42, 'Data Inputs'!$B$5:$L$648, 11, FALSE))=TRUE, VLOOKUP($B42, 'Data Inputs'!$B$5:$L$648, 11, FALSE), "") ->  | Z42: 5.28 | AB42: 929.25 | AC42: 0.004734848485 | AE42: 0 | AG42: =VLOOKUP(D42,'Working Data - Vol'!D42:G108,4,TRUE) -> 4310 | AX42: -0.004734848485
B43: 38 | C43: 0.53030292 | D43: 2800 | E43: =IF(D43="", "", ROUND(VLOOKUP($C43, 'Data Inputs'!$C$5:$F$648, 3, TRUE), 2)) -> 5.88 | H43: =IF(ISNUMBER(VLOOKUP($B43, 'Data Inputs'!$B$5:$F$648, 5, FALSE))=TRUE, VLOOKUP($B43, 'Data Inputs'!$B$5:$F$648, 5, FALSE), "") ->  | I43: =IF(ISNUMBER(VLOOKUP($B43, 'Data Inputs'!$B$5:$H$648, 6, FALSE))=TRUE, VLOOKUP($B43, 'Data Inputs'!$B$5:$H$648, 6, FALSE), "") ->  | J43: =IF(ISNUMBER(VLOOKUP($B43, 'Data Inputs'!$B$5:$H$648, 7, FALSE))=TRUE, VLOOKUP($B43, 'Data Inputs'!$B$5:$H$648, 7, FALSE), "") ->  | K43: 65 | L43: 64 | M43: 58 | Q43: =IF(ISNUMBER(VLOOKUP($B43, 'Data Inputs'!$B$5:$K$648, 8, FALSE))=TRUE, VLOOKUP($B43, 'Data Inputs'!$B$5:$K$648, 8, FALSE), "") ->  | R43: =IF(ISNUMBER(VLOOKUP($B43, 'Data Inputs'!$B$5:$K$648, 9, FALSE))=TRUE, VLOOKUP($B43, 'Data Inputs'!$B$5:$K$648, 9, FALSE), "") ->  | S43: =IF(ISNUMBER(VLOOKUP($B43, 'Data Inputs'!$B$5:$K$648, 10, FALSE))=TRUE, VLOOKUP($B43, 'Data Inputs'!$B$5:$K$648, 10, FALSE), "") ->  | T43: 0 | V43: ='Basic Input'!$C$12 -> 1.104 | W43: =IF('Basic Input'!$C$14="","",'Basic Input'!$C$14) ->  | Y43: =IF(ISNUMBER(VLOOKUP($B43, 'Data Inputs'!$B$5:$L$648, 11, FALSE))=TRUE, VLOOKUP($B43, 'Data Inputs'!$B$5:$L$648, 11, FALSE), "") ->  | Z43: 5.28 | AB43: 929.75 | AC43: 0.004734848485 | AE43: 0 | AG43: =VLOOKUP(D43,'Working Data - Vol'!D43:G109,4,TRUE) -> 4310 | AX43: -0.004734848485
B44: 39 | C44: 0.54924231 | D44: 2900 | E44: =IF(D44="", "", ROUND(VLOOKUP($C44, 'Data Inputs'!$C$5:$F$648, 3, TRUE), 2)) -> 5.9 | H44: =IF(ISNUMBER(VLOOKUP($B44, 'Data Inputs'!$B$5:$F$648, 5, FALSE))=TRUE, VLOOKUP($B44, 'Data Inputs'!$B$5:$F$648, 5, FALSE), "") ->  | I44: =IF(ISNUMBER(VLOOKUP($B44, 'Data Inputs'!$B$5:$H$648, 6, FALSE))=TRUE, VLOOKUP($B44, 'Data Inputs'!$B$5:$H$648, 6, FALSE), "") ->  | J44: =IF(ISNUMBER(VLOOKUP($B44, 'Data Inputs'!$B$5:$H$648, 7, FALSE))=TRUE, VLOOKUP($B44, 'Data Inputs'!$B$5:$H$648, 7, FALSE), "") ->  | K44: 65 | L44: 64 | M44: 58 | Q44: =IF(ISNUMBER(VLOOKUP($B44, 'Data Inputs'!$B$5:$K$648, 8, FALSE))=TRUE, VLOOKUP($B44, 'Data Inputs'!$B$5:$K$648, 8, FALSE), "") ->  | R44: =IF(ISNUMBER(VLOOKUP($B44, 'Data Inputs'!$B$5:$K$648, 9, FALSE))=TRUE, VLOOKUP($B44, 'Data Inputs'!$B$5:$K$648, 9, FALSE), "") ->  | S44: =IF(ISNUMBER(VLOOKUP($B44, 'Data Inputs'!$B$5:$K$648, 10, FALSE))=TRUE, VLOOKUP($B44, 'Data Inputs'!$B$5:$K$648, 10, FALSE), "") ->  | T44: 0 | V44: ='Basic Input'!$C$12 -> 1.104 | W44: =IF('Basic Input'!$C$14="","",'Basic Input'!$C$14) ->  | Y44: =IF(ISNUMBER(VLOOKUP($B44, 'Data Inputs'!$B$5:$L$648, 11, FALSE))=TRUE, VLOOKUP($B44, 'Data Inputs'!$B$5:$L$648, 11, FALSE), "") -> 1 | Z44: 5.28 | AE44: 1 | AG44: =VLOOKUP(D44,'Working Data - Vol'!D44:G110,4,TRUE) -> 4310 | AX44: 0
B45: 40 | C45: 0.5681817 | D45: 3000 | E45: =IF(D45="", "", ROUND(VLOOKUP($C45, 'Data Inputs'!$C$5:$F$648, 3, TRUE), 2)) -> 5.92 | H45: =IF(ISNUMBER(VLOOKUP($B45, 'Data Inputs'!$B$5:$F$648, 5, FALSE))=TRUE, VLOOKUP($B45, 'Data Inputs'!$B$5:$F$648, 5, FALSE), "") ->  | I45: =IF(ISNUMBER(VLOOKUP($B45, 'Data Inputs'!$B$5:$H$648, 6, FALSE))=TRUE, VLOOKUP($B45, 'Data Inputs'!$B$5:$H$648, 6, FALSE), "") ->  | J45: =IF(ISNUMBER(VLOOKUP($B45, 'Data Inputs'!$B$5:$H$648, 7, FALSE))=TRUE, VLOOKUP($B45, 'Data Inputs'!$B$5:$H$648, 7, FALSE), "") ->  | K45: 65 | L45: 64 | M45: 58 | Q45: =IF(ISNUMBER(VLOOKUP($B45, 'Data Inputs'!$B$5:$K$648, 8, FALSE))=TRUE, VLOOKUP($B45, 'Data Inputs'!$B$5:$K$648, 8, FALSE), "") ->  | R45: =IF(ISNUMBER(VLOOKUP($B45, 'Data Inputs'!$B$5:$K$648, 9, FALSE))=TRUE, VLOOKUP($B45, 'Data Inputs'!$B$5:$K$648, 9, FALSE), "") ->  | S45: =IF(ISNUMBER(VLOOKUP($B45, 'Data Inputs'!$B$5:$K$648, 10, FALSE))=TRUE, VLOOKUP($B45, 'Data Inputs'!$B$5:$K$648, 10, FALSE), "") ->  | T45: 0 | V45: ='Basic Input'!$C$12 -> 1.104 | W45: =IF('Basic Input'!$C$14="","",'Basic Input'!$C$14) ->  | Y45: =IF(ISNUMBER(VLOOKUP($B45, 'Data Inputs'!$B$5:$L$648, 11, FALSE))=TRUE, VLOOKUP($B45, 'Data Inputs'!$B$5:$L$648, 11, FALSE), "") ->  | Z45: 5.28 | AG45: =VLOOKUP(D45,'Working Data - Vol'!D45:G111,4,TRUE) -> 4310 | AX45: 0
B46: 41 | C46: 0.58712109 | D46: 3100 | E46: =IF(D46="", "", ROUND(VLOOKUP($C46, 'Data Inputs'!$C$5:$F$648, 3, TRUE), 2)) -> 5.94 | H46: =IF(ISNUMBER(VLOOKUP($B46, 'Data Inputs'!$B$5:$F$648, 5, FALSE))=TRUE, VLOOKUP($B46, 'Data Inputs'!$B$5:$F$648, 5, FALSE), "") ->  | I46: =IF(ISNUMBER(VLOOKUP($B46, 'Data Inputs'!$B$5:$H$648, 6, FALSE))=TRUE, VLOOKUP($B46, 'Data Inputs'!$B$5:$H$648, 6, FALSE), "") ->  | J46: =IF(ISNUMBER(VLOOKUP($B46, 'Data Inputs'!$B$5:$H$648, 7, FALSE))=TRUE, VLOOKUP($B46, 'Data Inputs'!$B$5:$H$648, 7, FALSE), "") ->  | K46: 65 | L46: 64 | M46: 58 | Q46: =IF(ISNUMBER(VLOOKUP($B46, 'Data Inputs'!$B$5:$K$648, 8, FALSE))=TRUE, VLOOKUP($B46, 'Data Inputs'!$B$5:$K$648, 8, FALSE), "") ->  | R46: =IF(ISNUMBER(VLOOKUP($B46, 'Data Inputs'!$B$5:$K$648, 9, FALSE))=TRUE, VLOOKUP($B46, 'Data Inputs'!$B$5:$K$648, 9, FALSE), "") ->  | S46: =IF(ISNUMBER(VLOOKUP($B46, 'Data Inputs'!$B$5:$K$648, 10, FALSE))=TRUE, VLOOKUP($B46, 'Data Inputs'!$B$5:$K$648, 10, FALSE), "") ->  | T46: 0 | V46: ='Basic Input'!$C$12 -> 1.104 | W46: =IF('Basic Input'!$C$14="","",'Basic Input'!$C$14) ->  | Y46: =IF(ISNUMBER(VLOOKUP($B46, 'Data Inputs'!$B$5:$L$648, 11, FALSE))=TRUE, VLOOKUP($B46, 'Data Inputs'!$B$5:$L$648, 11, FALSE), "") ->  | AG46: =VLOOKUP(D46,'Working Data - Vol'!D46:G112,4,TRUE) -> 4310 | AX46: 0
B47: 42 | C47: 0.60606048 | D47: 3200 | E47: =IF(D47="", "", ROUND(VLOOKUP($C47, 'Data Inputs'!$C$5:$F$648, 3, TRUE), 2)) -> 5.96 | H47: =IF(ISNUMBER(VLOOKUP($B47, 'Data Inputs'!$B$5:$F$648, 5, FALSE))=TRUE, VLOOKUP($B47, 'Data Inputs'!$B$5:$F$648, 5, FALSE), "") ->  | I47: =IF(ISNUMBER(VLOOKUP($B47, 'Data Inputs'!$B$5:$H$648, 6, FALSE))=TRUE, VLOOKUP($B47, 'Data Inputs'!$B$5:$H$648, 6, FALSE), "") ->  | J47: =IF(ISNUMBER(VLOOKUP($B47, 'Data Inputs'!$B$5:$H$648, 7, FALSE))=TRUE, VLOOKUP($B47, 'Data Inputs'!$B$5:$H$648, 7, FALSE), "") ->  | K47: 65 | L47: 64 | M47: 58 | Q47: =IF(ISNUMBER(VLOOKUP($B47, 'Data Inputs'!$B$5:$K$648, 8, FALSE))=TRUE, VLOOKUP($B47, 'Data Inputs'!$B$5:$K$648, 8, FALSE), "") ->  | R47: =IF(ISNUMBER(VLOOKUP($B47, 'Data Inputs'!$B$5:$K$648, 9, FALSE))=TRUE, VLOOKUP($B47, 'Data Inputs'!$B$5:$K$648, 9, FALSE), "") ->  | S47: =IF(ISNUMBER(VLOOKUP($B47, 'Data Inputs'!$B$5:$K$648, 10, FALSE))=TRUE, VLOOKUP($B47, 'Data Inputs'!$B$5:$K$648, 10, FALSE), "") ->  | T47: 0 | Y47: =IF(ISNUMBER(VLOOKUP($B47, 'Data Inputs'!$B$5:$L$648, 11, FALSE))=TRUE, VLOOKUP($B47, 'Data Inputs'!$B$5:$L$648, 11, FALSE), "") ->  | AG47: =VLOOKUP(D47,'Working Data - Vol'!D47:G113,4,TRUE) -> 4310 | AX47: 0
B48: 43 | C48: 0.62499987 | D48: 3300 | E48: =IF(D48="", "", ROUND(VLOOKUP($C48, 'Data Inputs'!$C$5:$F$648, 3, TRUE), 2)) -> 5.98 | H48: =IF(ISNUMBER(VLOOKUP($B48, 'Data Inputs'!$B$5:$F$648, 5, FALSE))=TRUE, VLOOKUP($B48, 'Data Inputs'!$B$5:$F$648, 5, FALSE), "") -> 65 | I48: =IF(ISNUMBER(VLOOKUP($B48, 'Data Inputs'!$B$5:$H$648, 6, FALSE))=TRUE, VLOOKUP($B48, 'Data Inputs'!$B$5:$H$648, 6, FALSE), "") ->  | J48: =IF(ISNUMBER(VLOOKUP($B48, 'Data Inputs'!$B$5:$H$648, 7, FALSE))=TRUE, VLOOKUP($B48, 'Data Inputs'!$B$5:$H$648, 7, FALSE), "") ->  | K48: 65 | L48: 64 | M48: 58 | Q48: =IF(ISNUMBER(VLOOKUP($B48, 'Data Inputs'!$B$5:$K$648, 8, FALSE))=TRUE, VLOOKUP($B48, 'Data Inputs'!$B$5:$K$648, 8, FALSE), "") ->  | R48: =IF(ISNUMBER(VLOOKUP($B48, 'Data Inputs'!$B$5:$K$648, 9, FALSE))=TRUE, VLOOKUP($B48, 'Data Inputs'!$B$5:$K$648, 9, FALSE), "") ->  | S48: =IF(ISNUMBER(VLOOKUP($B48, 'Data Inputs'!$B$5:$K$648, 10, FALSE))=TRUE, VLOOKUP($B48, 'Data Inputs'!$B$5:$K$648, 10, FALSE), "") ->  | T48: 0 | Y48: =IF(ISNUMBER(VLOOKUP($B48, 'Data Inputs'!$B$5:$L$648, 11, FALSE))=TRUE, VLOOKUP($B48, 'Data Inputs'!$B$5:$L$648, 11, FALSE), "") ->  | AG48: =VLOOKUP(D48,'Working Data - Vol'!D48:G114,4,TRUE) -> 4310 | AX48: 0
B49: 44 | C49: 0.64393926 | D49: 3400 | E49: =IF(D49="", "", ROUND(VLOOKUP($C49, 'Data Inputs'!$C$5:$F$648, 3, TRUE), 2)) -> 5.99 | H49: =IF(ISNUMBER(VLOOKUP($B49, 'Data Inputs'!$B$5:$F$648, 5, FALSE))=TRUE, VLOOKUP($B49, 'Data Inputs'!$B$5:$F$648, 5, FALSE), "") ->  | I49: =IF(ISNUMBER(VLOOKUP($B49, 'Data Inputs'!$B$5:$H$648, 6, FALSE))=TRUE, VLOOKUP($B49, 'Data Inputs'!$B$5:$H$648, 6, FALSE), "") ->  | J49: =IF(ISNUMBER(VLOOKUP($B49, 'Data Inputs'!$B$5:$H$648, 7, FALSE))=TRUE, VLOOKUP($B49, 'Data Inputs'!$B$5:$H$648, 7, FALSE), "") ->  | K49: 65 | L49: 64 | M49: 58 | Q49: =IF(ISNUMBER(VLOOKUP($B49, 'Data Inputs'!$B$5:$K$648, 8, FALSE))=TRUE, VLOOKUP($B49, 'Data Inputs'!$B$5:$K$648, 8, FALSE), "") ->  | R49: =IF(ISNUMBER(VLOOKUP($B49, 'Data Inputs'!$B$5:$K$648, 9, FALSE))=TRUE, VLOOKUP($B49, 'Data Inputs'!$B$5:$K$648, 9, FALSE), "") ->  | S49: =IF(ISNUMBER(VLOOKUP($B49, 'Data Inputs'!$B$5:$K$648, 10, FALSE))=TRUE, VLOOKUP($B49, 'Data Inputs'!$B$5:$K$648, 10, FALSE), "") ->  | T49: 0 | Y49: =IF(ISNUMBER(VLOOKUP($B49, 'Data Inputs'!$B$5:$L$648, 11, FALSE))=TRUE, VLOOKUP($B49, 'Data Inputs'!$B$5:$L$648, 11, FALSE), "") ->  | AG49: =VLOOKUP(D49,'Working Data - Vol'!D49:G115,4,TRUE) -> 4310 | AX49: 0
B50: 45 | C50: 0.66287865 | D50: 3500 | E50: =IF(D50="", "", ROUND(VLOOKUP($C50, 'Data Inputs'!$C$5:$F$648, 3, TRUE), 2)) -> 6.01 | H50: =IF(ISNUMBER(VLOOKUP($B50, 'Data Inputs'!$B$5:$F$648, 5, FALSE))=TRUE, VLOOKUP($B50, 'Data Inputs'!$B$5:$F$648, 5, FALSE), "") ->  | I50: =IF(ISNUMBER(VLOOKUP($B50, 'Data Inputs'!$B$5:$H$648, 6, FALSE))=TRUE, VLOOKUP($B50, 'Data Inputs'!$B$5:$H$648, 6, FALSE), "") ->  | J50: =IF(ISNUMBER(VLOOKUP($B50, 'Data Inputs'!$B$5:$H$648, 7, FALSE))=TRUE, VLOOKUP($B50, 'Data Inputs'!$B$5:$H$648, 7, FALSE), "") ->  | K50: 65 | L50: 64 | M50: 58 | Q50: =IF(ISNUMBER(VLOOKUP($B50, 'Data Inputs'!$B$5:$K$648, 8, FALSE))=TRUE, VLOOKUP($B50, 'Data Inputs'!$B$5:$K$648, 8, FALSE), "") ->  | R50: =IF(ISNUMBER(VLOOKUP($B50, 'Data Inputs'!$B$5:$K$648, 9, FALSE))=TRUE, VLOOKUP($B50, 'Data Inputs'!$B$5:$K$648, 9, FALSE), "") ->  | S50: =IF(ISNUMBER(VLOOKUP($B50, 'Data Inputs'!$B$5:$K$648, 10, FALSE))=TRUE, VLOOKUP($B50, 'Data Inputs'!$B$5:$K$648, 10, FALSE), "") ->  | T50: 0 | Y50: =IF(ISNUMBER(VLOOKUP($B50, 'Data Inputs'!$B$5:$L$648, 11, FALSE))=TRUE, VLOOKUP($B50, 'Data Inputs'!$B$5:$L$648, 11, FALSE), "") ->  | AG50: =VLOOKUP(D50,'Working Data - Vol'!D50:G116,4,TRUE) ->  | AX50: 0
B51: 46 | E51: =IF(D51="", "", ROUND(VLOOKUP($C51, 'Data Inputs'!$C$5:$F$648, 3, TRUE), 2)) ->  | H51: =IF(ISNUMBER(VLOOKUP($B51, 'Data Inputs'!$B$5:$F$648, 5, FALSE))=TRUE, VLOOKUP($B51, 'Data Inputs'!$B$5:$F$648, 5, FALSE), "") ->  | I51: =IF(ISNUMBER(VLOOKUP($B51, 'Data Inputs'!$B$5:$H$648, 6, FALSE))=TRUE, VLOOKUP($B51, 'Data Inputs'!$B$5:$H$648, 6, FALSE), "") ->  | J51: =IF(ISNUMBER(VLOOKUP($B51, 'Data Inputs'!$B$5:$H$648, 7, FALSE))=TRUE, VLOOKUP($B51, 'Data Inputs'!$B$5:$H$648, 7, FALSE), "") ->  | K51: 65 | Q51: =IF(ISNUMBER(VLOOKUP($B51, 'Data Inputs'!$B$5:$K$648, 8, FALSE))=TRUE, VLOOKUP($B51, 'Data Inputs'!$B$5:$K$648, 8, FALSE), "") ->  | R51: =IF(ISNUMBER(VLOOKUP($B51, 'Data Inputs'!$B$5:$K$648, 9, FALSE))=TRUE, VLOOKUP($B51, 'Data Inputs'!$B$5:$K$648, 9, FALSE), "") ->  | S51: =IF(ISNUMBER(VLOOKUP($B51, 'Data Inputs'!$B$5:$K$648, 10, FALSE))=TRUE, VLOOKUP($B51, 'Data Inputs'!$B$5:$K$648, 10, FALSE), "") ->  | T51: 0 | U51: =IF(D51="", "",(1000000*SUM(T44:T59))/(365*'Basic Input'!$C$10*AG51)) ->  | Y51: =IF(ISNUMBER(VLOOKUP($B51, 'Data Inputs'!$B$5:$L$648, 11, FALSE))=TRUE, VLOOKUP($B51, 'Data Inputs'!$B$5:$L$648, 11, FALSE), "") -> 
B52: 47 | E52: =IF(D52="", "", ROUND(VLOOKUP($C52, 'Data Inputs'!$C$5:$F$648, 3, TRUE), 2)) ->  | H52: =IF(ISNUMBER(VLOOKUP($B52, 'Data Inputs'!$B$5:$F$648, 5, FALSE))=TRUE, VLOOKUP($B52, 'Data Inputs'!$B$5:$F$648, 5, FALSE), "") ->  | I52: =IF(ISNUMBER(VLOOKUP($B52, 'Data Inputs'!$B$5:$H$648, 6, FALSE))=TRUE, VLOOKUP($B52, 'Data Inputs'!$B$5:$H$648, 6, FALSE), "") ->  | J52: =IF(ISNUMBER(VLOOKUP($B52, 'Data Inputs'!$B$5:$H$648, 7, FALSE))=TRUE, VLOOKUP($B52, 'Data Inputs'!$B$5:$H$648, 7, FALSE), "") ->  | K52: 65 | Q52: =IF(ISNUMBER(VLOOKUP($B52, 'Data Inputs'!$B$5:$K$648, 8, FALSE))=TRUE, VLOOKUP($B52, 'Data Inputs'!$B$5:$K$648, 8, FALSE), "") ->  | R52: =IF(ISNUMBER(VLOOKUP($B52, 'Data Inputs'!$B$5:$K$648, 9, FALSE))=TRUE, VLOOKUP($B52, 'Data Inputs'!$B$5:$K$648, 9, FALSE), "") ->  | S52: =IF(ISNUMBER(VLOOKUP($B52, 'Data Inputs'!$B$5:$K$648, 10, FALSE))=TRUE, VLOOKUP($B52, 'Data Inputs'!$B$5:$K$648, 10, FALSE), "") ->  | T52: 0 | U52: =IF(D52="", "",(1000000*SUM(T45:T60))/(365*'Basic Input'!$C$10*AG52)) ->  | V52: =IF(U52="", "", 'Basic Input'!$C$12) ->  | Y52: =IF(ISNUMBER(VLOOKUP($B52, 'Data Inputs'!$B$5:$L$648, 11, FALSE))=TRUE, VLOOKUP($B52, 'Data Inputs'!$B$5:$L$648, 11, FALSE), "") -> 
B53: 48 | E53: =IF(D53="", "", ROUND(VLOOKUP($C53, 'Data Inputs'!$C$5:$F$648, 3, TRUE), 2)) ->  | H53: =IF(ISNUMBER(VLOOKUP($B53, 'Data Inputs'!$B$5:$F$648, 5, FALSE))=TRUE, VLOOKUP($B53, 'Data Inputs'!$B$5:$F$648, 5, FALSE), "") ->  | I53: =IF(ISNUMBER(VLOOKUP($B53, 'Data Inputs'!$B$5:$H$648, 6, FALSE))=TRUE, VLOOKUP($B53, 'Data Inputs'!$B$5:$H$648, 6, FALSE), "") ->  | J53: =IF(ISNUMBER(VLOOKUP($B53, 'Data Inputs'!$B$5:$H$648, 7, FALSE))=TRUE, VLOOKUP($B53, 'Data Inputs'!$B$5:$H$648, 7, FALSE), "") ->  | K53: 65 | Q53: =IF(ISNUMBER(VLOOKUP($B53, 'Data Inputs'!$B$5:$K$648, 8, FALSE))=TRUE, VLOOKUP($B53, 'Data Inputs'!$B$5:$K$648, 8, FALSE), "") ->  | R53: =IF(ISNUMBER(VLOOKUP($B53, 'Data Inputs'!$B$5:$K$648, 9, FALSE))=TRUE, VLOOKUP($B53, 'Data Inputs'!$B$5:$K$648, 9, FALSE), "") ->  | S53: =IF(ISNUMBER(VLOOKUP($B53, 'Data Inputs'!$B$5:$K$648, 10, FALSE))=TRUE, VLOOKUP($B53, 'Data Inputs'!$B$5:$K$648, 10, FALSE), "") ->  | T53: 0 | U53: =IF(D53="", "",(1000000*SUM(T46:T61))/(365*'Basic Input'!$C$10*AG53)) ->  | V53: =IF(U53="", "", 'Basic Input'!$C$12) ->  | W53: =IF('Basic Input'!$C$14="","",'Basic Input'!$C$14) ->  | Y53: =IF(ISNUMBER(VLOOKUP($B53, 'Data Inputs'!$B$5:$L$648, 11, FALSE))=TRUE, VLOOKUP($B53, 'Data Inputs'!$B$5:$L$648, 11, FALSE), "") ->  | AM53: 2500 | AN53: 1.7
B54: 49 | E54: =IF(D54="", "", ROUND(VLOOKUP($C54, 'Data Inputs'!$C$5:$F$648, 3, TRUE), 2)) ->  | H54: =IF(ISNUMBER(VLOOKUP($B54, 'Data Inputs'!$B$5:$F$648, 5, FALSE))=TRUE, VLOOKUP($B54, 'Data Inputs'!$B$5:$F$648, 5, FALSE), "") ->  | I54: =IF(ISNUMBER(VLOOKUP($B54, 'Data Inputs'!$B$5:$H$648, 6, FALSE))=TRUE, VLOOKUP($B54, 'Data Inputs'!$B$5:$H$648, 6, FALSE), "") ->  | J54: =IF(ISNUMBER(VLOOKUP($B54, 'Data Inputs'!$B$5:$H$648, 7, FALSE))=TRUE, VLOOKUP($B54, 'Data Inputs'!$B$5:$H$648, 7, FALSE), "") ->  | K54: 65 | Q54: =IF(ISNUMBER(VLOOKUP($B54, 'Data Inputs'!$B$5:$K$648, 8, FALSE))=TRUE, VLOOKUP($B54, 'Data Inputs'!$B$5:$K$648, 8, FALSE), "") ->  | R54: =IF(ISNUMBER(VLOOKUP($B54, 'Data Inputs'!$B$5:$K$648, 9, FALSE))=TRUE, VLOOKUP($B54, 'Data Inputs'!$B$5:$K$648, 9, FALSE), "") ->  | S54: =IF(ISNUMBER(VLOOKUP($B54, 'Data Inputs'!$B$5:$K$648, 10, FALSE))=TRUE, VLOOKUP($B54, 'Data Inputs'!$B$5:$K$648, 10, FALSE), "") ->  | T54: 0 | U54: =IF(D54="", "",(1000000*SUM(T47:T62))/(365*'Basic Input'!$C$10*AG54)) ->  | V54: =IF(U54="", "", 'Basic Input'!$C$12) ->  | W54: =IF('Basic Input'!$C$14="","",'Basic Input'!$C$14) ->  | Y54: =IF(ISNUMBER(VLOOKUP($B54, 'Data Inputs'!$B$5:$L$648, 11, FALSE))=TRUE, VLOOKUP($B54, 'Data Inputs'!$B$5:$L$648, 11, FALSE), "") ->  | AM54: 3000 | AN54: =((AM54-$AM$53)/($AM$56-$AM$53)*($AN$56-$AN$53))+$AN$53 -> 1.632
B55: 50 | D55: =VLOOKUP($B55, 'Data Inputs'!$B$5:$F$648, 3, TRUE) ->  | E55: =IF(D55="", "", ROUND(VLOOKUP($C55, 'Data Inputs'!$C$5:$F$648, 3, TRUE), 2)) ->  | H55: =IF(ISNUMBER(VLOOKUP($B55, 'Data Inputs'!$B$5:$F$648, 5, FALSE))=TRUE, VLOOKUP($B55, 'Data Inputs'!$B$5:$F$648, 5, FALSE), "") ->  | I55: =IF(ISNUMBER(VLOOKUP($B55, 'Data Inputs'!$B$5:$H$648, 6, FALSE))=TRUE, VLOOKUP($B55, 'Data Inputs'!$B$5:$H$648, 6, FALSE), "") ->  | J55: =IF(ISNUMBER(VLOOKUP($B55, 'Data Inputs'!$B$5:$H$648, 7, FALSE))=TRUE, VLOOKUP($B55, 'Data Inputs'!$B$5:$H$648, 7, FALSE), "") ->  | K55: 65 | Q55: =IF(ISNUMBER(VLOOKUP($B55, 'Data Inputs'!$B$5:$K$648, 8, FALSE))=TRUE, VLOOKUP($B55, 'Data Inputs'!$B$5:$K$648, 8, FALSE), "") ->  | R55: =IF(ISNUMBER(VLOOKUP($B55, 'Data Inputs'!$B$5:$K$648, 9, FALSE))=TRUE, VLOOKUP($B55, 'Data Inputs'!$B$5:$K$648, 9, FALSE), "") ->  | S55: =IF(ISNUMBER(VLOOKUP($B55, 'Data Inputs'!$B$5:$K$648, 10, FALSE))=TRUE, VLOOKUP($B55, 'Data Inputs'!$B$5:$K$648, 10, FALSE), "") ->  | T55: 0 | U55: =IF(D55="", "",(1000000*SUM(T48:T63))/(365*'Basic Input'!$C$10*AG55)) ->  | V55: =IF(U55="", "", 'Basic Input'!$C$12) ->  | W55: =IF('Basic Input'!$C$14="","",'Basic Input'!$C$14) ->  | Y55: =IF(ISNUMBER(VLOOKUP($B55, 'Data Inputs'!$B$5:$L$648, 11, FALSE))=TRUE, VLOOKUP($B55, 'Data Inputs'!$B$5:$L$648, 11, FALSE), "") ->  | AM55: 4500 | AN55: =((AM55-$AM$53)/($AM$56-$AM$53)*($AN$56-$AN$53))+$AN$53 -> 1.428
B56: 51 | D56: =VLOOKUP($B56, 'Data Inputs'!$B$5:$F$648, 3, TRUE) ->  | E56: =IF(D56="", "", ROUND(VLOOKUP($C56, 'Data Inputs'!$C$5:$F$648, 3, TRUE), 2)) ->  | H56: =IF(ISNUMBER(VLOOKUP($B56, 'Data Inputs'!$B$5:$F$648, 5, FALSE))=TRUE, VLOOKUP($B56, 'Data Inputs'!$B$5:$F$648, 5, FALSE), "") ->  | I56: =IF(ISNUMBER(VLOOKUP($B56, 'Data Inputs'!$B$5:$H$648, 6, FALSE))=TRUE, VLOOKUP($B56, 'Data Inputs'!$B$5:$H$648, 6, FALSE), "") ->  | J56: =IF(ISNUMBER(VLOOKUP($B56, 'Data Inputs'!$B$5:$H$648, 7, FALSE))=TRUE, VLOOKUP($B56, 'Data Inputs'!$B$5:$H$648, 7, FALSE), "") ->  | K56: 65 | Q56: =IF(ISNUMBER(VLOOKUP($B56, 'Data Inputs'!$B$5:$K$648, 8, FALSE))=TRUE, VLOOKUP($B56, 'Data Inputs'!$B$5:$K$648, 8, FALSE), "") ->  | R56: =IF(ISNUMBER(VLOOKUP($B56, 'Data Inputs'!$B$5:$K$648, 9, FALSE))=TRUE, VLOOKUP($B56, 'Data Inputs'!$B$5:$K$648, 9, FALSE), "") ->  | S56: =IF(ISNUMBER(VLOOKUP($B56, 'Data Inputs'!$B$5:$K$648, 10, FALSE))=TRUE, VLOOKUP($B56, 'Data Inputs'!$B$5:$K$648, 10, FALSE), "") ->  | T56: 0 | U56: =IF(D56="", "",(1000000*SUM(T49:T64))/(365*'Basic Input'!$C$10*AG56)) ->  | V56: =IF(U56="", "", 'Basic Input'!$C$12) ->  | W56: =IF('Basic Input'!$C$14="","",'Basic Input'!$C$14) ->  | Y56: =IF(ISNUMBER(VLOOKUP($B56, 'Data Inputs'!$B$5:$L$648, 11, FALSE))=TRUE, VLOOKUP($B56, 'Data Inputs'!$B$5:$L$648, 11, FALSE), "") ->  | AM56: 5000 | AN56: 1.36
B57: 52 | D57: =VLOOKUP($B57, 'Data Inputs'!$B$5:$F$648, 3, TRUE) ->  | E57: =IF(D57="", "", ROUND(VLOOKUP($C57, 'Data Inputs'!$C$5:$F$648, 3, TRUE), 2)) ->  | H57: =IF(ISNUMBER(VLOOKUP($B57, 'Data Inputs'!$B$5:$F$648, 5, FALSE))=TRUE, VLOOKUP($B57, 'Data Inputs'!$B$5:$F$648, 5, FALSE), "") ->  | I57: =IF(ISNUMBER(VLOOKUP($B57, 'Data Inputs'!$B$5:$H$648, 6, FALSE))=TRUE, VLOOKUP($B57, 'Data Inputs'!$B$5:$H$648, 6, FALSE), "") ->  | J57: =IF(ISNUMBER(VLOOKUP($B57, 'Data Inputs'!$B$5:$H$648, 7, FALSE))=TRUE, VLOOKUP($B57, 'Data Inputs'!$B$5:$H$648, 7, FALSE), "") ->  | K57: 65 | Q57: =IF(ISNUMBER(VLOOKUP($B57, 'Data Inputs'!$B$5:$K$648, 8, FALSE))=TRUE, VLOOKUP($B57, 'Data Inputs'!$B$5:$K$648, 8, FALSE), "") ->  | R57: =IF(ISNUMBER(VLOOKUP($B57, 'Data Inputs'!$B$5:$K$648, 9, FALSE))=TRUE, VLOOKUP($B57, 'Data Inputs'!$B$5:$K$648, 9, FALSE), "") ->  | S57: =IF(ISNUMBER(VLOOKUP($B57, 'Data Inputs'!$B$5:$K$648, 10, FALSE))=TRUE, VLOOKUP($B57, 'Data Inputs'!$B$5:$K$648, 10, FALSE), "") ->  | T57: 0 | U57: =IF(D57="", "",(1000000*SUM(T50:T65))/(365*'Basic Input'!$C$10*AG57)) ->  | V57: =IF(U57="", "", 'Basic Input'!$C$12) ->  | W57: =IF('Basic Input'!$C$14="","",'Basic Input'!$C$14) ->  | Y57: =IF(ISNUMBER(VLOOKUP($B57, 'Data Inputs'!$B$5:$L$648, 11, FALSE))=TRUE, VLOOKUP($B57, 'Data Inputs'!$B$5:$L$648, 11, FALSE), "") -> 
B58: 53 | D58: =VLOOKUP($B58, 'Data Inputs'!$B$5:$F$648, 3, TRUE) ->  | E58: =IF(D58="", "", ROUND(VLOOKUP($C58, 'Data Inputs'!$C$5:$F$648, 3, TRUE), 2)) ->  | H58: =IF(ISNUMBER(VLOOKUP($B58, 'Data Inputs'!$B$5:$F$648, 5, FALSE))=TRUE, VLOOKUP($B58, 'Data Inputs'!$B$5:$F$648, 5, FALSE), "") ->  | I58: =IF(ISNUMBER(VLOOKUP($B58, 'Data Inputs'!$B$5:$H$648, 6, FALSE))=TRUE, VLOOKUP($B58, 'Data Inputs'!$B$5:$H$648, 6, FALSE), "") ->  | J58: =IF(ISNUMBER(VLOOKUP($B58, 'Data Inputs'!$B$5:$H$648, 7, FALSE))=TRUE, VLOOKUP($B58, 'Data Inputs'!$B$5:$H$648, 7, FALSE), "") ->  | K58: 65 | Q58: =IF(ISNUMBER(VLOOKUP($B58, 'Data Inputs'!$B$5:$K$648, 8, FALSE))=TRUE, VLOOKUP($B58, 'Data Inputs'!$B$5:$K$648, 8, FALSE), "") ->  | R58: =IF(ISNUMBER(VLOOKUP($B58, 'Data Inputs'!$B$5:$K$648, 9, FALSE))=TRUE, VLOOKUP($B58, 'Data Inputs'!$B$5:$K$648, 9, FALSE), "") ->  | S58: =IF(ISNUMBER(VLOOKUP($B58, 'Data Inputs'!$B$5:$K$648, 10, FALSE))=TRUE, VLOOKUP($B58, 'Data Inputs'!$B$5:$K$648, 10, FALSE), "") ->  | T58: 0 | U58: =IF(D58="", "",(1000000*SUM(T51:T66))/(365*'Basic Input'!$C$10*AG58)) ->  | V58: =IF(U58="", "", 'Basic Input'!$C$12) ->  | W58: =IF('Basic Input'!$C$14="","",'Basic Input'!$C$14) ->  | Y58: =IF(ISNUMBER(VLOOKUP($B58, 'Data Inputs'!$B$5:$L$648, 11, FALSE))=TRUE, VLOOKUP($B58, 'Data Inputs'!$B$5:$L$648, 11, FALSE), "") -> 
B59: 54 | D59: =VLOOKUP($B59, 'Data Inputs'!$B$5:$F$648, 3, TRUE) ->  | E59: =IF(D59="", "", ROUND(VLOOKUP($C59, 'Data Inputs'!$C$5:$F$648, 3, TRUE), 2)) ->  | H59: =IF(ISNUMBER(VLOOKUP($B59, 'Data Inputs'!$B$5:$F$648, 5, FALSE))=TRUE, VLOOKUP($B59, 'Data Inputs'!$B$5:$F$648, 5, FALSE), "") ->  | I59: =IF(ISNUMBER(VLOOKUP($B59, 'Data Inputs'!$B$5:$H$648, 6, FALSE))=TRUE, VLOOKUP($B59, 'Data Inputs'!$B$5:$H$648, 6, FALSE), "") ->  | J59: =IF(ISNUMBER(VLOOKUP($B59, 'Data Inputs'!$B$5:$H$648, 7, FALSE))=TRUE, VLOOKUP($B59, 'Data Inputs'!$B$5:$H$648, 7, FALSE), "") ->  | K59: 65 | Q59: =IF(ISNUMBER(VLOOKUP($B59, 'Data Inputs'!$B$5:$K$648, 8, FALSE))=TRUE, VLOOKUP($B59, 'Data Inputs'!$B$5:$K$648, 8, FALSE), "") ->  | R59: =IF(ISNUMBER(VLOOKUP($B59, 'Data Inputs'!$B$5:$K$648, 9, FALSE))=TRUE, VLOOKUP($B59, 'Data Inputs'!$B$5:$K$648, 9, FALSE), "") ->  | S59: =IF(ISNUMBER(VLOOKUP($B59, 'Data Inputs'!$B$5:$K$648, 10, FALSE))=TRUE, VLOOKUP($B59, 'Data Inputs'!$B$5:$K$648, 10, FALSE), "") ->  | T59: 0 | U59: =IF(D59="", "",(1000000*SUM(T52:T67))/(365*'Basic Input'!$C$10*AG59)) ->  | V59: =IF(U59="", "", 'Basic Input'!$C$12) ->  | W59: =IF('Basic Input'!$C$14="","",'Basic Input'!$C$14) ->  | Y59: =IF(ISNUMBER(VLOOKUP($B59, 'Data Inputs'!$B$5:$L$648, 11, FALSE))=TRUE, VLOOKUP($B59, 'Data Inputs'!$B$5:$L$648, 11, FALSE), "") -> 
B60: 55 | D60: =VLOOKUP($B60, 'Data Inputs'!$B$5:$F$648, 3, TRUE) ->  | E60: =IF(D60="", "", ROUND(VLOOKUP($C60, 'Data Inputs'!$C$5:$F$648, 3, TRUE), 2)) ->  | H60: =IF(ISNUMBER(VLOOKUP($B60, 'Data Inputs'!$B$5:$F$648, 5, FALSE))=TRUE, VLOOKUP($B60, 'Data Inputs'!$B$5:$F$648, 5, FALSE), "") ->  | I60: =IF(ISNUMBER(VLOOKUP($B60, 'Data Inputs'!$B$5:$H$648, 6, FALSE))=TRUE, VLOOKUP($B60, 'Data Inputs'!$B$5:$H$648, 6, FALSE), "") ->  | J60: =IF(ISNUMBER(VLOOKUP($B60, 'Data Inputs'!$B$5:$H$648, 7, FALSE))=TRUE, VLOOKUP($B60, 'Data Inputs'!$B$5:$H$648, 7, FALSE), "") ->  | K60: 65 | Q60: =IF(ISNUMBER(VLOOKUP($B60, 'Data Inputs'!$B$5:$K$648, 8, FALSE))=TRUE, VLOOKUP($B60, 'Data Inputs'!$B$5:$K$648, 8, FALSE), "") ->  | R60: =IF(ISNUMBER(VLOOKUP($B60, 'Data Inputs'!$B$5:$K$648, 9, FALSE))=TRUE, VLOOKUP($B60, 'Data Inputs'!$B$5:$K$648, 9, FALSE), "") ->  | S60: =IF(ISNUMBER(VLOOKUP($B60, 'Data Inputs'!$B$5:$K$648, 10, FALSE))=TRUE, VLOOKUP($B60, 'Data Inputs'!$B$5:$K$648, 10, FALSE), "") ->  | T60: 0 | U60: =IF(D60="", "",(1000000*SUM(T53:T68))/(365*'Basic Input'!$C$10*AG60)) ->  | V60: =IF(U60="", "", 0.63) ->  | W60: =IF('Basic Input'!$C$14="","",'Basic Input'!$C$14) ->  | Y60: =IF(ISNUMBER(VLOOKUP($B60, 'Data Inputs'!$B$5:$L$648, 11, FALSE))=TRUE, VLOOKUP($B60, 'Data Inputs'!$B$5:$L$648, 11, FALSE), "") -> 
B61: 56 | D61: =VLOOKUP($B61, 'Data Inputs'!$B$5:$F$648, 3, TRUE) ->  | E61: =IF(D61="", "", ROUND(VLOOKUP($C61, 'Data Inputs'!$C$5:$F$648, 3, TRUE), 2)) ->  | H61: =IF(ISNUMBER(VLOOKUP($B61, 'Data Inputs'!$B$5:$F$648, 5, FALSE))=TRUE, VLOOKUP($B61, 'Data Inputs'!$B$5:$F$648, 5, FALSE), "") ->  | I61: =IF(ISNUMBER(VLOOKUP($B61, 'Data Inputs'!$B$5:$H$648, 6, FALSE))=TRUE, VLOOKUP($B61, 'Data Inputs'!$B$5:$H$648, 6, FALSE), "") ->  | J61: =IF(ISNUMBER(VLOOKUP($B61, 'Data Inputs'!$B$5:$H$648, 7, FALSE))=TRUE, VLOOKUP($B61, 'Data Inputs'!$B$5:$H$648, 7, FALSE), "") ->  | K61: 65 | Q61: =IF(ISNUMBER(VLOOKUP($B61, 'Data Inputs'!$B$5:$K$648, 8, FALSE))=TRUE, VLOOKUP($B61, 'Data Inputs'!$B$5:$K$648, 8, FALSE), "") ->  | R61: =IF(ISNUMBER(VLOOKUP($B61, 'Data Inputs'!$B$5:$K$648, 9, FALSE))=TRUE, VLOOKUP($B61, 'Data Inputs'!$B$5:$K$648, 9, FALSE), "") ->  | S61: =IF(ISNUMBER(VLOOKUP($B61, 'Data Inputs'!$B$5:$K$648, 10, FALSE))=TRUE, VLOOKUP($B61, 'Data Inputs'!$B$5:$K$648, 10, FALSE), "") ->  | T61: 0 | U61: =IF(D61="", "",(1000000*SUM(T54:T69))/(365*'Basic Input'!$C$10*AG61)) ->  | W61: =IF('Basic Input'!$C$14="","",'Basic Input'!$C$14) ->  | Y61: =IF(ISNUMBER(VLOOKUP($B61, 'Data Inputs'!$B$5:$L$648, 11, FALSE))=TRUE, VLOOKUP($B61, 'Data Inputs'!$B$5:$L$648, 11, FALSE), "") -> 
B62: 57 | D62: =VLOOKUP($B62, 'Data Inputs'!$B$5:$F$648, 3, TRUE) ->  | E62: =IF(D62="", "", ROUND(VLOOKUP($C62, 'Data Inputs'!$C$5:$F$648, 3, TRUE), 2)) ->  | H62: =IF(ISNUMBER(VLOOKUP($B62, 'Data Inputs'!$B$5:$F$648, 5, FALSE))=TRUE, VLOOKUP($B62, 'Data Inputs'!$B$5:$F$648, 5, FALSE), "") ->  | I62: =IF(ISNUMBER(VLOOKUP($B62, 'Data Inputs'!$B$5:$H$648, 6, FALSE))=TRUE, VLOOKUP($B62, 'Data Inputs'!$B$5:$H$648, 6, FALSE), "") ->  | J62: =IF(ISNUMBER(VLOOKUP($B62, 'Data Inputs'!$B$5:$H$648, 7, FALSE))=TRUE, VLOOKUP($B62, 'Data Inputs'!$B$5:$H$648, 7, FALSE), "") ->  | K62: 65 | Q62: =IF(ISNUMBER(VLOOKUP($B62, 'Data Inputs'!$B$5:$K$648, 8, FALSE))=TRUE, VLOOKUP($B62, 'Data Inputs'!$B$5:$K$648, 8, FALSE), "") ->  | R62: =IF(ISNUMBER(VLOOKUP($B62, 'Data Inputs'!$B$5:$K$648, 9, FALSE))=TRUE, VLOOKUP($B62, 'Data Inputs'!$B$5:$K$648, 9, FALSE), "") ->  | S62: =IF(ISNUMBER(VLOOKUP($B62, 'Data Inputs'!$B$5:$K$648, 10, FALSE))=TRUE, VLOOKUP($B62, 'Data Inputs'!$B$5:$K$648, 10, FALSE), "") ->  | T62: 0 | U62: =IF(D62="", "",(1000000*SUM(T55:T70))/(365*'Basic Input'!$C$10*AG62)) ->  | W62: =IF('Basic Input'!$C$14="","",'Basic Input'!$C$14) ->  | Y62: =IF(ISNUMBER(VLOOKUP($B62, 'Data Inputs'!$B$5:$L$648, 11, FALSE))=TRUE, VLOOKUP($B62, 'Data Inputs'!$B$5:$L$648, 11, FALSE), "") -> 
B63: 58 | D63: =VLOOKUP($B63, 'Data Inputs'!$B$5:$F$648, 3, TRUE) ->  | E63: =IF(D63="", "", ROUND(VLOOKUP($C63, 'Data Inputs'!$C$5:$F$648, 3, TRUE), 2)) ->  | H63: =IF(ISNUMBER(VLOOKUP($B63, 'Data Inputs'!$B$5:$F$648, 5, FALSE))=TRUE, VLOOKUP($B63, 'Data Inputs'!$B$5:$F$648, 5, FALSE), "") ->  | I63: =IF(ISNUMBER(VLOOKUP($B63, 'Data Inputs'!$B$5:$H$648, 6, FALSE))=TRUE, VLOOKUP($B63, 'Data Inputs'!$B$5:$H$648, 6, FALSE), "") ->  | J63: =IF(ISNUMBER(VLOOKUP($B63, 'Data Inputs'!$B$5:$H$648, 7, FALSE))=TRUE, VLOOKUP($B63, 'Data Inputs'!$B$5:$H$648, 7, FALSE), "") ->  | K63: 65 | Q63: =IF(ISNUMBER(VLOOKUP($B63, 'Data Inputs'!$B$5:$K$648, 8, FALSE))=TRUE, VLOOKUP($B63, 'Data Inputs'!$B$5:$K$648, 8, FALSE), "") ->  | R63: =IF(ISNUMBER(VLOOKUP($B63, 'Data Inputs'!$B$5:$K$648, 9, FALSE))=TRUE, VLOOKUP($B63, 'Data Inputs'!$B$5:$K$648, 9, FALSE), "") ->  | S63: =IF(ISNUMBER(VLOOKUP($B63, 'Data Inputs'!$B$5:$K$648, 10, FALSE))=TRUE, VLOOKUP($B63, 'Data Inputs'!$B$5:$K$648, 10, FALSE), "") ->  | T63: 0 | U63: =IF(D63="", "",(1000000*SUM(T56:T71))/(365*'Basic Input'!$C$10*AG63)) ->  | W63: =IF('Basic Input'!$C$14="","",'Basic Input'!$C$14) ->  | Y63: =IF(ISNUMBER(VLOOKUP($B63, 'Data Inputs'!$B$5:$L$648, 11, FALSE))=TRUE, VLOOKUP($B63, 'Data Inputs'!$B$5:$L$648, 11, FALSE), "") -> 
B64: 59 | D64: =VLOOKUP($B64, 'Data Inputs'!$B$5:$F$648, 3, TRUE) ->  | E64: =IF(D64="", "", ROUND(VLOOKUP($C64, 'Data Inputs'!$C$5:$F$648, 3, TRUE), 2)) ->  | H64: =IF(ISNUMBER(VLOOKUP($B64, 'Data Inputs'!$B$5:$F$648, 5, FALSE))=TRUE, VLOOKUP($B64, 'Data Inputs'!$B$5:$F$648, 5, FALSE), "") ->  | I64: =IF(ISNUMBER(VLOOKUP($B64, 'Data Inputs'!$B$5:$H$648, 6, FALSE))=TRUE, VLOOKUP($B64, 'Data Inputs'!$B$5:$H$648, 6, FALSE), "") ->  | J64: =IF(ISNUMBER(VLOOKUP($B64, 'Data Inputs'!$B$5:$H$648, 7, FALSE))=TRUE, VLOOKUP($B64, 'Data Inputs'!$B$5:$H$648, 7, FALSE), "") ->  | K64: 65 | Q64: =IF(ISNUMBER(VLOOKUP($B64, 'Data Inputs'!$B$5:$K$648, 8, FALSE))=TRUE, VLOOKUP($B64, 'Data Inputs'!$B$5:$K$648, 8, FALSE), "") ->  | R64: =IF(ISNUMBER(VLOOKUP($B64, 'Data Inputs'!$B$5:$K$648, 9, FALSE))=TRUE, VLOOKUP($B64, 'Data Inputs'!$B$5:$K$648, 9, FALSE), "") ->  | S64: =IF(ISNUMBER(VLOOKUP($B64, 'Data Inputs'!$B$5:$K$648, 10, FALSE))=TRUE, VLOOKUP($B64, 'Data Inputs'!$B$5:$K$648, 10, FALSE), "") ->  | T64: 0 | U64: =IF(D64="", "",(1000000*SUM(T57:T72))/(365*'Basic Input'!$C$10*AG64)) ->  | W64: =IF('Basic Input'!$C$14="","",'Basic Input'!$C$14) ->  | Y64: =IF(ISNUMBER(VLOOKUP($B64, 'Data Inputs'!$B$5:$L$648, 11, FALSE))=TRUE, VLOOKUP($B64, 'Data Inputs'!$B$5:$L$648, 11, FALSE), "") -> 
B65: 60 | D65: =VLOOKUP($B65, 'Data Inputs'!$B$5:$F$648, 3, TRUE) ->  | E65: =IF(D65="", "", ROUND(VLOOKUP($C65, 'Data Inputs'!$C$5:$F$648, 3, TRUE), 2)) ->  | H65: =IF(ISNUMBER(VLOOKUP($B65, 'Data Inputs'!$B$5:$F$648, 5, FALSE))=TRUE, VLOOKUP($B65, 'Data Inputs'!$B$5:$F$648, 5, FALSE), "") ->  | I65: =IF(ISNUMBER(VLOOKUP($B65, 'Data Inputs'!$B$5:$H$648, 6, FALSE))=TRUE, VLOOKUP($B65, 'Data Inputs'!$B$5:$H$648, 6, FALSE), "") ->  | J65: =IF(ISNUMBER(VLOOKUP($B65, 'Data Inputs'!$B$5:$H$648, 7, FALSE))=TRUE, VLOOKUP($B65, 'Data Inputs'!$B$5:$H$648, 7, FALSE), "") ->  | K65: 65 | Q65: =IF(ISNUMBER(VLOOKUP($B65, 'Data Inputs'!$B$5:$K$648, 8, FALSE))=TRUE, VLOOKUP($B65, 'Data Inputs'!$B$5:$K$648, 8, FALSE), "") ->  | R65: =IF(ISNUMBER(VLOOKUP($B65, 'Data Inputs'!$B$5:$K$648, 9, FALSE))=TRUE, VLOOKUP($B65, 'Data Inputs'!$B$5:$K$648, 9, FALSE), "") ->  | S65: =IF(ISNUMBER(VLOOKUP($B65, 'Data Inputs'!$B$5:$K$648, 10, FALSE))=TRUE, VLOOKUP($B65, 'Data Inputs'!$B$5:$K$648, 10, FALSE), "") ->  | T65: 0 | U65: =IF(D65="", "",(1000000*SUM(T58:T73))/(365*'Basic Input'!$C$10*AG65)) ->  | W65: =IF('Basic Input'!$C$14="","",'Basic Input'!$C$14) ->  | Y65: =IF(ISNUMBER(VLOOKUP($B65, 'Data Inputs'!$B$5:$L$648, 11, FALSE))=TRUE, VLOOKUP($B65, 'Data Inputs'!$B$5:$L$648, 11, FALSE), "") -> 
K69: =MAX('Data Inputs'!$F$5:$F$206) -> 65
B72: Land Use
B73: Right | C73: -0.03 | D73: -0.03
B84: Left | C84: 0.03 | D84: 0.03

Sheet Working Data - 2 (hidden)
B1: WORKING DATA -- DO NOT MODIFY
K2: Speeds
AD3: Data Inputs | AG3: For Interpolation
C4: Distance (miles) | D4: Distance (feet) | E4: Mile Post | F4: Key Locations | H4: Inserted Speed | I4: 85% Observed Speeds | J4: Mean Speed | K4: Posted Speed Limit | L4: 85th Percentile Speed | M4: Mean Speed | N4: 85%>Posted+5mph | O4: Data Locations | AC4: Dist | AD4: 85th | AE4: Mean | AG4: 85th
B5: 0 | C5: =VLOOKUP($B5, 'Data Inputs'!$B$5:$F$214, 2, TRUE) -> -0.1893939 | D5: =VLOOKUP($B5, 'Data Inputs'!$B$5:$F$648, 3, TRUE) -> -1000 | E5: =VLOOKUP($B5, 'Data Inputs'!$B$5:$F$648, 4, TRUE) -> 5.160606061 | H5: =IF(ISNUMBER(VLOOKUP($B5, 'Data Inputs'!$B$5:$F$648, 5, FALSE))=TRUE, VLOOKUP($B5, 'Data Inputs'!$B$5:$F$648, 5, FALSE), "") ->  | I5: =IF(ISNUMBER(VLOOKUP($B5, 'Data Inputs'!$B$5:$H$648, 6, FALSE))=TRUE, VLOOKUP($B5, 'Data Inputs'!$B$5:$H$648, 6, FALSE), "") ->  | J5: =IF(ISNUMBER(VLOOKUP($B5, 'Data Inputs'!$B$5:$H$648, 7, FALSE))=TRUE, VLOOKUP($B5, 'Data Inputs'!$B$5:$H$648, 7, FALSE), "") ->  | K5: =MIN('Data Inputs'!$F$5:$F$206) -> 30 | L5: =IF($D5="","",(IF($D5<=$AC$5,$AG$5,IF($D5=$AC$6,$AG$6,IF($D5=$AC$7,$AG$7,IF($D5=$AC$8,$AG$8,IF(AND($AB$6="N",$D5>$AC$5)=TRUE,$AG$5,IF(AND($AB$7="N",$D5>$AC$6)=TRUE,$AG$6,IF(AND($AB$8="N",$D5>$AC$7)=TRUE,$AG$7,IF(AND($AB$9="N",$D5>$AC$8)=TRUE,$AG$8,IF($AB$6="Y",IF(AND($D5>$AC$5,$D5<$AC$6)=TRUE,(($D5-$AC$5)/($AC$5-$AC$6)*(AG$5-AG$6))+MIN(AG$6,AG$5),IF($AB$7="Y",IF(AND($D5>$AC$6,$D5<$AC$7)=TRUE,(($D5-$AC$6)/($AC$6-$AC$7)*(AG$6-AG$7))+MIN(AG$7,AG$6),IF($AB$8="Y",IF(AND($D5>$AC$7,$D5<$AC$8)=TRUE,(($D5-$AC$7)/($AC$7-$AC$8)*(AG$7-AG$8))+MIN(AG$8,AG$7),IF($AB$9="Y",IF(AND($D5>$AC$8,$D5<$AC$9)=TRUE,(($D5-$AC$8)/($AC$8-$AC$9)*(AG$8-AG$9))+MIN(AG$9,AG$8),IF($D5>=$AC$9,$AG$9,""))))))))))))))))))) -> 34 | M5: =IF($D5="","",(IF($D5<=$AC$5,$AE$5,IF($D5=$AC$6,$AE$6,IF($D5=$AC$7,$AE$7,IF($D5=$AC$8,$AE$8,IF(AND($AB$6="N",$D5>$AC$5)=TRUE,$AE$5,IF(AND($AB$7="N",$D5>$AC$6)=TRUE,$AE$6,IF(AND($AB$8="N",$D5>$AC$7)=TRUE,$AE$7,IF(AND($AB$9="N",$D5>$AC$8)=TRUE,$AE$8,IF($AB$6="Y",IF(AND($D5>$AC$5,$D5<$AC$6)=TRUE,(($D5-$AC$5)/($AC$5-$AC$6)*(AE$5-AE$6))+MIN(AE$6,AE$5),IF($AB$7="Y",IF(AND($D5>$AC$6,$D5<$AC$7)=TRUE,(($D5-$AC$6)/($AC$6-$AC$7)*(AE$6-AE$7))+MIN(AE$7,AE$6),IF($AB$8="Y",IF(AND($D5>$AC$7,$D5<$AC$8)=TRUE,(($D5-$AC$7)/($AC$7-$AC$8)*(AE$7-AE$8))+MIN(AE$8,AE$7),IF($AB$9="Y",IF(AND($D5>$AC$8,$D5<$AC$9)=TRUE,(($D5-$AC$8)/($AC$8-$AC$9)*(AE$8-AE$9))+MIN(AE$9,AE$8),IF($D5>=$AC$9,$AE$9,""))))))))))))))))))) -> 30 | N5: =IF($D5="", "", IF(L5>(K5+5),15,NA())) ->  | AA5: 1 | AB5: =IF(ISNUMBER(AC5)=TRUE, "Y", "N") -> Y | AC5: =IF(ISNUMBER(VLOOKUP($AA5, 'Data Inputs'!$A$5:$H$206, 4, FALSE)), VLOOKUP($AA5, 'Data Inputs'!$A$5:$H$206, 4, FALSE), "") -> 100 | AD5: =IF(ISNUMBER(VLOOKUP($AA5, 'Data Inputs'!$A$5:$H$206, 7, FALSE)), VLOOKUP($AA5, 'Data Inputs'!$A$5:$H$206, 7, FALSE), "") -> 34 | AE5: =IF(ISNUMBER(VLOOKUP($AA5, 'Data Inputs'!$A$5:$H$206, 8, FALSE)), VLOOKUP($AA5, 'Data Inputs'!$A$5:$H$206, 8, FALSE), "") -> 30 | AG5: =IF(ISNUMBER(VLOOKUP($AA5, 'Data Inputs'!$A$5:$H$206, 7, FALSE)), VLOOKUP($AA5, 'Data Inputs'!$A$5:$H$206, 7, FALSE), "") -> 34
B6: 1 | C6: =VLOOKUP($B6, 'Data Inputs'!$B$5:$F$214, 2, TRUE) -> -0.17045451 | D6: =VLOOKUP($B6, 'Data Inputs'!$B$5:$F$648, 3, TRUE) -> -900 | E6: =VLOOKUP($B6, 'Data Inputs'!$B$5:$F$648, 4, TRUE) -> 5.179545455 | H6: =IF(ISNUMBER(VLOOKUP($B6, 'Data Inputs'!$B$5:$F$648, 5, FALSE))=TRUE, VLOOKUP($B6, 'Data Inputs'!$B$5:$F$648, 5, FALSE), "") ->  | I6: =IF(ISNUMBER(VLOOKUP($B6, 'Data Inputs'!$B$5:$H$648, 6, FALSE))=TRUE, VLOOKUP($B6, 'Data Inputs'!$B$5:$H$648, 6, FALSE), "") ->  | J6: =IF(ISNUMBER(VLOOKUP($B6, 'Data Inputs'!$B$5:$H$648, 7, FALSE))=TRUE, VLOOKUP($B6, 'Data Inputs'!$B$5:$H$648, 7, FALSE), "") ->  | K6: =IF(D6="", $K$69, IF(H6<>"", H6, K7)) -> 30 | L6: =IF($D6="","",(IF($D6<=$AC$5,$AG$5,IF($D6=$AC$6,$AG$6,IF($D6=$AC$7,$AG$7,IF($D6=$AC$8,$AG$8,IF(AND($AB$6="N",$D6>$AC$5)=TRUE,$AG$5,IF(AND($AB$7="N",$D6>$AC$6)=TRUE,$AG$6,IF(AND($AB$8="N",$D6>$AC$7)=TRUE,$AG$7,IF(AND($AB$9="N",$D6>$AC$8)=TRUE,$AG$8,IF($AB$6="Y",IF(AND($D6>$AC$5,$D6<$AC$6)=TRUE,(($D6-$AC$5)/($AC$5-$AC$6)*(AG$5-AG$6))+MIN(AG$6,AG$5),IF($AB$7="Y",IF(AND($D6>$AC$6,$D6<$AC$7)=TRUE,(($D6-$AC$6)/($AC$6-$AC$7)*(AG$6-AG$7))+MIN(AG$7,AG$6),IF($AB$8="Y",IF(AND($D6>$AC$7,$D6<$AC$8)=TRUE,(($D6-$AC$7)/($AC$7-$AC$8)*(AG$7-AG$8))+MIN(AG$8,AG$7),IF($AB$9="Y",IF(AND($D6>$AC$8,$D6<$AC$9)=TRUE,(($D6-$AC$8)/($AC$8-$AC$9)*(AG$8-AG$9))+MIN(AG$9,AG$8),IF($D6>=$AC$9,$AG$9,""))))))))))))))))))) -> 34 | M6: =IF($D6="","",(IF($D6<=$AC$5,$AE$5,IF($D6=$AC$6,$AE$6,IF($D6=$AC$7,$AE$7,IF($D6=$AC$8,$AE$8,IF(AND($AB$6="N",$D6>$AC$5)=TRUE,$AE$5,IF(AND($AB$7="N",$D6>$AC$6)=TRUE,$AE$6,IF(AND($AB$8="N",$D6>$AC$7)=TRUE,$AE$7,IF(AND($AB$9="N",$D6>$AC$8)=TRUE,$AE$8,IF($AB$6="Y",IF(AND($D6>$AC$5,$D6<$AC$6)=TRUE,(($D6-$AC$5)/($AC$5-$AC$6)*(AE$5-AE$6))+MIN(AE$6,AE$5),IF($AB$7="Y",IF(AND($D6>$AC$6,$D6<$AC$7)=TRUE,(($D6-$AC$6)/($AC$6-$AC$7)*(AE$6-AE$7))+MIN(AE$7,AE$6),IF($AB$8="Y",IF(AND($D6>$AC$7,$D6<$AC$8)=TRUE,(($D6-$AC$7)/($AC$7-$AC$8)*(AE$7-AE$8))+MIN(AE$8,AE$7),IF($AB$9="Y",IF(AND($D6>$AC$8,$D6<$AC$9)=TRUE,(($D6-$AC$8)/($AC$8-$AC$9)*(AE$8-AE$9))+MIN(AE$9,AE$8),IF($D6>=$AC$9,$AE$9,""))))))))))))))))))) -> 30 | N6: =IF($D6="", "", IF(L6>(K6+5),15,NA())) ->  | AA6: 2 | AB6: =IF(ISNUMBER(AC6)=TRUE, "Y", "N") -> Y | AC6: =IF(ISNUMBER(VLOOKUP($AA6, 'Data Inputs'!$A$5:$H$206, 4, FALSE)), VLOOKUP($AA6, 'Data Inputs'!$A$5:$H$206, 4, FALSE), "") -> 500 | AD6: =IF(ISNUMBER(VLOOKUP($AA6, 'Data Inputs'!$A$5:$H$206, 7, FALSE)), VLOOKUP($AA6, 'Data Inputs'!$A$5:$H$206, 7, FALSE), "") -> 38 | AE6: =IF(ISNUMBER(VLOOKUP($AA6, 'Data Inputs'!$A$5:$H$206, 8, FALSE)), VLOOKUP($AA6, 'Data Inputs'!$A$5:$H$206, 8, FALSE), "") -> 33 | AG6: =IF(ISNUMBER(VLOOKUP($AA6,'Data Inputs'!$A$5:$H$206,7,FALSE)),VLOOKUP($AA6,'Data Inputs'!$A$5:$H$206,7,FALSE),IF(ISNUMBER(AE6),((AC6-AC5)/(AC5-MAX(AC7:AC9)))*(AG5-MIN(AD7:AD9))+AG5)) -> 38
B7: 2 | C7: =VLOOKUP($B7, 'Data Inputs'!$B$5:$F$214, 2, TRUE) -> -0.15151512 | D7: =VLOOKUP($B7, 'Data Inputs'!$B$5:$F$648, 3, TRUE) -> -800 | E7: =VLOOKUP($B7, 'Data Inputs'!$B$5:$F$648, 4, TRUE) -> 5.198484848 | H7: =IF(ISNUMBER(VLOOKUP($B7, 'Data Inputs'!$B$5:$F$648, 5, FALSE))=TRUE, VLOOKUP($B7, 'Data Inputs'!$B$5:$F$648, 5, FALSE), "") ->  | I7: =IF(ISNUMBER(VLOOKUP($B7, 'Data Inputs'!$B$5:$H$648, 6, FALSE))=TRUE, VLOOKUP($B7, 'Data Inputs'!$B$5:$H$648, 6, FALSE), "") ->  | J7: =IF(ISNUMBER(VLOOKUP($B7, 'Data Inputs'!$B$5:$H$648, 7, FALSE))=TRUE, VLOOKUP($B7, 'Data Inputs'!$B$5:$H$648, 7, FALSE), "") ->  | K7: =IF(D7="", $K$69, IF(H7<>"", H7, K8)) -> 30 | L7: 34 | M7: 30 | AA7: 3 | AB7: Y | AC7: =IF(ISNUMBER(VLOOKUP($AA7, 'Data Inputs'!$A$5:$H$206, 4, FALSE)), VLOOKUP($AA7, 'Data Inputs'!$A$5:$H$206, 4, FALSE), "") -> 1200 | AD7: =IF(ISNUMBER(VLOOKUP($AA7, 'Data Inputs'!$A$5:$H$206, 7, FALSE)), VLOOKUP($AA7, 'Data Inputs'!$A$5:$H$206, 7, FALSE), "") ->  | AE7: =IF(ISNUMBER(VLOOKUP($AA7, 'Data Inputs'!$A$5:$H$206, 8, FALSE)), VLOOKUP($AA7, 'Data Inputs'!$A$5:$H$206, 8, FALSE), "") -> 42.0712 | AG7: =IF(ISNUMBER(VLOOKUP($AA7,'Data Inputs'!$A$5:$H$206,7,FALSE)),VLOOKUP($AA7,'Data Inputs'!$A$5:$H$206,7,FALSE),IF(ISNUMBER(AE7),((AC7-AC6)/(AC6-MAX(AC8:AC10)))*(AG6-MIN(AD8:AD10))+AG6)) -> 47.1
B8: 3 | C8: =VLOOKUP($B8, 'Data Inputs'!$B$5:$F$214, 2, TRUE) -> -0.13257573 | D8: =VLOOKUP($B8, 'Data Inputs'!$B$5:$F$648, 3, TRUE) -> -700 | E8: =VLOOKUP($B8, 'Data Inputs'!$B$5:$F$648, 4, TRUE) -> 5.217424242 | H8: =IF(ISNUMBER(VLOOKUP($B8, 'Data Inputs'!$B$5:$F$648, 5, FALSE))=TRUE, VLOOKUP($B8, 'Data Inputs'!$B$5:$F$648, 5, FALSE), "") ->  | I8: =IF(ISNUMBER(VLOOKUP($B8, 'Data Inputs'!$B$5:$H$648, 6, FALSE))=TRUE, VLOOKUP($B8, 'Data Inputs'!$B$5:$H$648, 6, FALSE), "") ->  | J8: =IF(ISNUMBER(VLOOKUP($B8, 'Data Inputs'!$B$5:$H$648, 7, FALSE))=TRUE, VLOOKUP($B8, 'Data Inputs'!$B$5:$H$648, 7, FALSE), "") ->  | K8: 30 | L8: 34 | M8: =IF($D8="","",(IF($D8<=$AC$5,$AE$5,IF($D8=$AC$6,$AE$6,IF($D8=$AC$7,$AE$7,IF($D8=$AC$8,$AE$8,IF(AND($AB$6="N",$D8>$AC$5)=TRUE,$AE$5,IF(AND($AB$7="N",$D8>$AC$6)=TRUE,$AE$6,IF(AND($AB$8="N",$D8>$AC$7)=TRUE,$AE$7,IF(AND($AB$9="N",$D8>$AC$8)=TRUE,$AE$8,IF($AB$6="Y",IF(AND($D8>$AC$5,$D8<$AC$6)=TRUE,(($D8-$AC$5)/($AC$5-$AC$6)*(AE$5-AE$6))+MIN(AE$6,AE$5),IF($AB$7="Y",IF(AND($D8>$AC$6,$D8<$AC$7)=TRUE,(($D8-$AC$6)/($AC$6-$AC$7)*(AE$6-AE$7))+MIN(AE$7,AE$6),IF($AB$8="Y",IF(AND($D8>$AC$7,$D8<$AC$8)=TRUE,(($D8-$AC$7)/($AC$7-$AC$8)*(AE$7-AE$8))+MIN(AE$8,AE$7),IF($AB$9="Y",IF(AND($D8>$AC$8,$D8<$AC$9)=TRUE,(($D8-$AC$8)/($AC$8-$AC$9)*(AE$8-AE$9))+MIN(AE$9,AE$8),IF($D8>=$AC$9,$AE$9,""))))))))))))))))))) -> 30 | AA8: 4 | AB8: Y | AC8: =IF(ISNUMBER(VLOOKUP($AA8, 'Data Inputs'!$A$5:$H$206, 4, FALSE)), VLOOKUP($AA8, 'Data Inputs'!$A$5:$H$206, 4, FALSE), "") -> 1600 | AD8: =IF(ISNUMBER(VLOOKUP($AA8, 'Data Inputs'!$A$5:$H$206, 7, FALSE)), VLOOKUP($AA8, 'Data Inputs'!$A$5:$H$206, 7, FALSE), "") ->  | AE8: =IF(ISNUMBER(VLOOKUP($AA8, 'Data Inputs'!$A$5:$H$206, 8, FALSE)), VLOOKUP($AA8, 'Data Inputs'!$A$5:$H$206, 8, FALSE), "") -> 48.9787 | AG8: =IF(ISNUMBER(VLOOKUP($AA8,'Data Inputs'!$A$5:$H$206,7,FALSE)),VLOOKUP($AA8,'Data Inputs'!$A$5:$H$206,7,FALSE),IF(ISNUMBER(AE8),((AC8-AC7)/(AC7-MAX(AC9:AC11)))*(AG7-MIN(AD9:AD11))+AG7)) -> 52.3
B9: 4 | C9: =VLOOKUP($B9, 'Data Inputs'!$B$5:$F$214, 2, TRUE) -> -0.11363634 | D9: =VLOOKUP($B9, 'Data Inputs'!$B$5:$F$648, 3, TRUE) -> -600 | E9: =VLOOKUP($B9, 'Data Inputs'!$B$5:$F$648, 4, TRUE) -> 5.236363636 | H9: =IF(ISNUMBER(VLOOKUP($B9, 'Data Inputs'!$B$5:$F$648, 5, FALSE))=TRUE, VLOOKUP($B9, 'Data Inputs'!$B$5:$F$648, 5, FALSE), "") ->  | I9: =IF(ISNUMBER(VLOOKUP($B9, 'Data Inputs'!$B$5:$H$648, 6, FALSE))=TRUE, VLOOKUP($B9, 'Data Inputs'!$B$5:$H$648, 6, FALSE), "") ->  | J9: =IF(ISNUMBER(VLOOKUP($B9, 'Data Inputs'!$B$5:$H$648, 7, FALSE))=TRUE, VLOOKUP($B9, 'Data Inputs'!$B$5:$H$648, 7, FALSE), "") ->  | K9: 30 | L9: 34 | M9: 30 | AA9: 5 | AB9: Y | AC9: =IF(ISNUMBER(VLOOKUP($AA9, 'Data Inputs'!$A$5:$H$206, 4, FALSE)), VLOOKUP($AA9, 'Data Inputs'!$A$5:$H$206, 4, FALSE), "") -> 2500 | AD9: =IF(ISNUMBER(VLOOKUP($AA9, 'Data Inputs'!$A$5:$H$206, 7, FALSE)), VLOOKUP($AA9, 'Data Inputs'!$A$5:$H$206, 7, FALSE), "") -> 64 | AE9: =IF(ISNUMBER(VLOOKUP($AA9, 'Data Inputs'!$A$5:$H$206, 8, FALSE)), VLOOKUP($AA9, 'Data Inputs'!$A$5:$H$206, 8, FALSE), "") -> 58 | AG9: =IF(ISNUMBER(VLOOKUP($AA9,'Data Inputs'!$A$5:$H$206,7,FALSE)),VLOOKUP($AA9,'Data Inputs'!$A$5:$H$206,7,FALSE),IF(ISNUMBER(AE9),((AC9-AC8)/(AC8-MAX(AC10:AC12)))*(AG8-MIN(AD10:AD12))+AG8)) -> 64
B10: 5 | C10: =VLOOKUP($B10, 'Data Inputs'!$B$5:$F$214, 2, TRUE) -> -0.09469695 | D10: =VLOOKUP($B10, 'Data Inputs'!$B$5:$F$648, 3, TRUE) -> -500 | E10: =VLOOKUP($B10, 'Data Inputs'!$B$5:$F$648, 4, TRUE) -> 5.25530303 | H10: =IF(ISNUMBER(VLOOKUP($B10, 'Data Inputs'!$B$5:$F$648, 5, FALSE))=TRUE, VLOOKUP($B10, 'Data Inputs'!$B$5:$F$648, 5, FALSE), "") ->  | I10: =IF(ISNUMBER(VLOOKUP($B10, 'Data Inputs'!$B$5:$H$648, 6, FALSE))=TRUE, VLOOKUP($B10, 'Data Inputs'!$B$5:$H$648, 6, FALSE), "") ->  | J10: =IF(ISNUMBER(VLOOKUP($B10, 'Data Inputs'!$B$5:$H$648, 7, FALSE))=TRUE, VLOOKUP($B10, 'Data Inputs'!$B$5:$H$648, 7, FALSE), "") ->  | K10: 30 | L10: 34 | M10: 30
B11: 6 | C11: =VLOOKUP($B11, 'Data Inputs'!$B$5:$F$214, 2, TRUE) -> -0.07575756 | D11: =VLOOKUP($B11, 'Data Inputs'!$B$5:$F$648, 3, TRUE) -> -400 | E11: =VLOOKUP($B11, 'Data Inputs'!$B$5:$F$648, 4, TRUE) -> 5.274242424 | H11: =IF(ISNUMBER(VLOOKUP($B11, 'Data Inputs'!$B$5:$F$648, 5, FALSE))=TRUE, VLOOKUP($B11, 'Data Inputs'!$B$5:$F$648, 5, FALSE), "") ->  | I11: =IF(ISNUMBER(VLOOKUP($B11, 'Data Inputs'!$B$5:$H$648, 6, FALSE))=TRUE, VLOOKUP($B11, 'Data Inputs'!$B$5:$H$648, 6, FALSE), "") ->  | J11: =IF(ISNUMBER(VLOOKUP($B11, 'Data Inputs'!$B$5:$H$648, 7, FALSE))=TRUE, VLOOKUP($B11, 'Data Inputs'!$B$5:$H$648, 7, FALSE), "") ->  | K11: 30 | L11: 34 | M11: 30
B12: 7 | C12: =VLOOKUP($B12, 'Data Inputs'!$B$5:$F$214, 2, TRUE) -> -0.05681817 | D12: =VLOOKUP($B12, 'Data Inputs'!$B$5:$F$648, 3, TRUE) -> -300 | E12: =VLOOKUP($B12, 'Data Inputs'!$B$5:$F$648, 4, TRUE) -> 5.293181818 | H12: =IF(ISNUMBER(VLOOKUP($B12, 'Data Inputs'!$B$5:$F$648, 5, FALSE))=TRUE, VLOOKUP($B12, 'Data Inputs'!$B$5:$F$648, 5, FALSE), "") ->  | I12: =IF(ISNUMBER(VLOOKUP($B12, 'Data Inputs'!$B$5:$H$648, 6, FALSE))=TRUE, VLOOKUP($B12, 'Data Inputs'!$B$5:$H$648, 6, FALSE), "") ->  | J12: =IF(ISNUMBER(VLOOKUP($B12, 'Data Inputs'!$B$5:$H$648, 7, FALSE))=TRUE, VLOOKUP($B12, 'Data Inputs'!$B$5:$H$648, 7, FALSE), "") ->  | K12: 30 | L12: 34 | M12: 30 | N12: =IF($D12="", "", IF(L12>(K12+5),15,NA())) -> 
B13: 8 | C13: =VLOOKUP($B13, 'Data Inputs'!$B$5:$F$214, 2, TRUE) -> -0.03787878 | D13: =VLOOKUP($B13, 'Data Inputs'!$B$5:$F$648, 3, TRUE) -> -200 | E13: =VLOOKUP($B13, 'Data Inputs'!$B$5:$F$648, 4, TRUE) -> 5.312121212 | H13: =IF(ISNUMBER(VLOOKUP($B13, 'Data Inputs'!$B$5:$F$648, 5, FALSE))=TRUE, VLOOKUP($B13, 'Data Inputs'!$B$5:$F$648, 5, FALSE), "") ->  | I13: =IF(ISNUMBER(VLOOKUP($B13, 'Data Inputs'!$B$5:$H$648, 6, FALSE))=TRUE, VLOOKUP($B13, 'Data Inputs'!$B$5:$H$648, 6, FALSE), "") ->  | J13: =IF(ISNUMBER(VLOOKUP($B13, 'Data Inputs'!$B$5:$H$648, 7, FALSE))=TRUE, VLOOKUP($B13, 'Data Inputs'!$B$5:$H$648, 7, FALSE), "") ->  | K13: 30 | L13: 34 | M13: 30
B14: 9 | C14: =VLOOKUP($B14, 'Data Inputs'!$B$5:$F$214, 2, TRUE) -> -0.01893939 | D14: =VLOOKUP($B14, 'Data Inputs'!$B$5:$F$648, 3, TRUE) -> -100 | E14: =VLOOKUP($B14, 'Data Inputs'!$B$5:$F$648, 4, TRUE) -> 5.331060606 | H14: =IF(ISNUMBER(VLOOKUP($B14, 'Data Inputs'!$B$5:$F$648, 5, FALSE))=TRUE, VLOOKUP($B14, 'Data Inputs'!$B$5:$F$648, 5, FALSE), "") ->  | I14: =IF(ISNUMBER(VLOOKUP($B14, 'Data Inputs'!$B$5:$H$648, 6, FALSE))=TRUE, VLOOKUP($B14, 'Data Inputs'!$B$5:$H$648, 6, FALSE), "") ->  | J14: =IF(ISNUMBER(VLOOKUP($B14, 'Data Inputs'!$B$5:$H$648, 7, FALSE))=TRUE, VLOOKUP($B14, 'Data Inputs'!$B$5:$H$648, 7, FALSE), "") ->  | K14: 30 | L14: 34 | M14: 30
B15: 10 | C15: =VLOOKUP($B15, 'Data Inputs'!$B$5:$F$214, 2, TRUE) -> 0 | D15: =VLOOKUP($B15, 'Data Inputs'!$B$5:$F$648, 3, TRUE) -> 0 | E15: =VLOOKUP($B15, 'Data Inputs'!$B$5:$F$648, 4, TRUE) -> 5.35 | H15: =IF(ISNUMBER(VLOOKUP($B15, 'Data Inputs'!$B$5:$F$648, 5, FALSE))=TRUE, VLOOKUP($B15, 'Data Inputs'!$B$5:$F$648, 5, FALSE), "") ->  | I15: =IF(ISNUMBER(VLOOKUP($B15, 'Data Inputs'!$B$5:$H$648, 6, FALSE))=TRUE, VLOOKUP($B15, 'Data Inputs'!$B$5:$H$648, 6, FALSE), "") ->  | J15: =IF(ISNUMBER(VLOOKUP($B15, 'Data Inputs'!$B$5:$H$648, 7, FALSE))=TRUE, VLOOKUP($B15, 'Data Inputs'!$B$5:$H$648, 7, FALSE), "") ->  | K15: 30 | L15: 34 | M15: 30
B16: 11 | C16: =VLOOKUP($B16, 'Data Inputs'!$B$5:$F$214, 2, TRUE) -> 0.01893939 | D16: =VLOOKUP($B16, 'Data Inputs'!$B$5:$F$648, 3, TRUE) -> 100 | E16: =VLOOKUP($B16, 'Data Inputs'!$B$5:$F$648, 4, TRUE) -> 5.368939394 | H16: =IF(ISNUMBER(VLOOKUP($B16, 'Data Inputs'!$B$5:$F$648, 5, FALSE))=TRUE, VLOOKUP($B16, 'Data Inputs'!$B$5:$F$648, 5, FALSE), "") ->  | I16: =IF(ISNUMBER(VLOOKUP($B16, 'Data Inputs'!$B$5:$H$648, 6, FALSE))=TRUE, VLOOKUP($B16, 'Data Inputs'!$B$5:$H$648, 6, FALSE), "") -> 34 | J16: =IF(ISNUMBER(VLOOKUP($B16, 'Data Inputs'!$B$5:$H$648, 7, FALSE))=TRUE, VLOOKUP($B16, 'Data Inputs'!$B$5:$H$648, 7, FALSE), "") -> 30 | K16: 30 | L16: 34 | M16: 30
B17: 12 | C17: =VLOOKUP($B17, 'Data Inputs'!$B$5:$F$214, 2, TRUE) -> 0.03787878 | D17: =VLOOKUP($B17, 'Data Inputs'!$B$5:$F$648, 3, TRUE) -> 200 | E17: =VLOOKUP($B17, 'Data Inputs'!$B$5:$F$648, 4, TRUE) -> 5.387878788 | H17: =IF(ISNUMBER(VLOOKUP($B17, 'Data Inputs'!$B$5:$F$648, 5, FALSE))=TRUE, VLOOKUP($B17, 'Data Inputs'!$B$5:$F$648, 5, FALSE), "") ->  | I17: =IF(ISNUMBER(VLOOKUP($B17, 'Data Inputs'!$B$5:$H$648, 6, FALSE))=TRUE, VLOOKUP($B17, 'Data Inputs'!$B$5:$H$648, 6, FALSE), "") ->  | J17: =IF(ISNUMBER(VLOOKUP($B17, 'Data Inputs'!$B$5:$H$648, 7, FALSE))=TRUE, VLOOKUP($B17, 'Data Inputs'!$B$5:$H$648, 7, FALSE), "") ->  | K17: 30 | L17: 35 | M17: 30.75
B18: 13 | C18: =VLOOKUP($B18, 'Data Inputs'!$B$5:$F$214, 2, TRUE) -> 0.05681817 | D18: =VLOOKUP($B18, 'Data Inputs'!$B$5:$F$648, 3, TRUE) -> 300 | E18: =VLOOKUP($B18, 'Data Inputs'!$B$5:$F$648, 4, TRUE) -> 5.406818182 | H18: =IF(ISNUMBER(VLOOKUP($B18, 'Data Inputs'!$B$5:$F$648, 5, FALSE))=TRUE, VLOOKUP($B18, 'Data Inputs'!$B$5:$F$648, 5, FALSE), "") ->  | I18: =IF(ISNUMBER(VLOOKUP($B18, 'Data Inputs'!$B$5:$H$648, 6, FALSE))=TRUE, VLOOKUP($B18, 'Data Inputs'!$B$5:$H$648, 6, FALSE), "") ->  | J18: =IF(ISNUMBER(VLOOKUP($B18, 'Data Inputs'!$B$5:$H$648, 7, FALSE))=TRUE, VLOOKUP($B18, 'Data Inputs'!$B$5:$H$648, 7, FALSE), "") ->  | K18: 30 | L18: 36 | M18: 31.5 | N18: 15
B19: 14 | C19: =VLOOKUP($B19, 'Data Inputs'!$B$5:$F$214, 2, TRUE) -> 0.07575756 | D19: =VLOOKUP($B19, 'Data Inputs'!$B$5:$F$648, 3, TRUE) -> 400 | E19: =VLOOKUP($B19, 'Data Inputs'!$B$5:$F$648, 4, TRUE) -> 5.425757576 | H19: =IF(ISNUMBER(VLOOKUP($B19, 'Data Inputs'!$B$5:$F$648, 5, FALSE))=TRUE, VLOOKUP($B19, 'Data Inputs'!$B$5:$F$648, 5, FALSE), "") ->  | I19: =IF(ISNUMBER(VLOOKUP($B19, 'Data Inputs'!$B$5:$H$648, 6, FALSE))=TRUE, VLOOKUP($B19, 'Data Inputs'!$B$5:$H$648, 6, FALSE), "") ->  | J19: =IF(ISNUMBER(VLOOKUP($B19, 'Data Inputs'!$B$5:$H$648, 7, FALSE))=TRUE, VLOOKUP($B19, 'Data Inputs'!$B$5:$H$648, 7, FALSE), "") ->  | K19: 30 | L19: 37 | M19: 32.25 | N19: 15
B20: 15 | C20: =VLOOKUP($B20, 'Data Inputs'!$B$5:$F$214, 2, TRUE) -> 0.09469695 | D20: =VLOOKUP($B20, 'Data Inputs'!$B$5:$F$648, 3, TRUE) -> 500 | E20: =VLOOKUP($B20, 'Data Inputs'!$B$5:$F$648, 4, TRUE) -> 5.44469697 | H20: =IF(ISNUMBER(VLOOKUP($B20, 'Data Inputs'!$B$5:$F$648, 5, FALSE))=TRUE, VLOOKUP($B20, 'Data Inputs'!$B$5:$F$648, 5, FALSE), "") ->  | I20: =IF(ISNUMBER(VLOOKUP($B20, 'Data Inputs'!$B$5:$H$648, 6, FALSE))=TRUE, VLOOKUP($B20, 'Data Inputs'!$B$5:$H$648, 6, FALSE), "") -> 38 | J20: =IF(ISNUMBER(VLOOKUP($B20, 'Data Inputs'!$B$5:$H$648, 7, FALSE))=TRUE, VLOOKUP($B20, 'Data Inputs'!$B$5:$H$648, 7, FALSE), "") -> 33 | K20: 30 | L20: 38 | M20: =IF($D20="","",(IF($D20<=$AC$5,$AE$5,IF($D20=$AC$6,$AE$6,IF($D20=$AC$7,$AE$7,IF($D20=$AC$8,$AE$8,IF(AND($AB$6="N",$D20>$AC$5)=TRUE,$AE$5,IF(AND($AB$7="N",$D20>$AC$6)=TRUE,$AE$6,IF(AND($AB$8="N",$D20>$AC$7)=TRUE,$AE$7,IF(AND($AB$9="N",$D20>$AC$8)=TRUE,$AE$8,IF($AB$6="Y",IF(AND($D20>$AC$5,$D20<$AC$6)=TRUE,(($D20-$AC$5)/($AC$5-$AC$6)*(AE$5-AE$6))+MIN(AE$6,AE$5),IF($AB$7="Y",IF(AND($D20>$AC$6,$D20<$AC$7)=TRUE,(($D20-$AC$6)/($AC$6-$AC$7)*(AE$6-AE$7))+MIN(AE$7,AE$6),IF($AB$8="Y",IF(AND($D20>$AC$7,$D20<$AC$8)=TRUE,(($D20-$AC$7)/($AC$7-$AC$8)*(AE$7-AE$8))+MIN(AE$8,AE$7),IF($AB$9="Y",IF(AND($D20>$AC$8,$D20<$AC$9)=TRUE,(($D20-$AC$8)/($AC$8-$AC$9)*(AE$8-AE$9))+MIN(AE$9,AE$8),IF($D20>=$AC$9,$AE$9,""))))))))))))))))))) -> 33 | N20: 15
B21: 16 | C21: =VLOOKUP($B21, 'Data Inputs'!$B$5:$F$214, 2, TRUE) -> 0.11363634 | D21: =VLOOKUP($B21, 'Data Inputs'!$B$5:$F$648, 3, TRUE) -> 600 | E21: =VLOOKUP($B21, 'Data Inputs'!$B$5:$F$648, 4, TRUE) -> 5.463636364 | H21: =IF(ISNUMBER(VLOOKUP($B21, 'Data Inputs'!$B$5:$F$648, 5, FALSE))=TRUE, VLOOKUP($B21, 'Data Inputs'!$B$5:$F$648, 5, FALSE), "") ->  | I21: =IF(ISNUMBER(VLOOKUP($B21, 'Data Inputs'!$B$5:$H$648, 6, FALSE))=TRUE, VLOOKUP($B21, 'Data Inputs'!$B$5:$H$648, 6, FALSE), "") ->  | J21: =IF(ISNUMBER(VLOOKUP($B21, 'Data Inputs'!$B$5:$H$648, 7, FALSE))=TRUE, VLOOKUP($B21, 'Data Inputs'!$B$5:$H$648, 7, FALSE), "") ->  | K21: 30 | L21: 39.3 | M21: 34.29588571 | N21: 15
B22: 17 | C22: =VLOOKUP($B22, 'Data Inputs'!$B$5:$F$214, 2, TRUE) -> 0.13257573 | D22: =VLOOKUP($B22, 'Data Inputs'!$B$5:$F$648, 3, TRUE) -> 700 | E22: =VLOOKUP($B22, 'Data Inputs'!$B$5:$F$648, 4, TRUE) -> 5.482575758 | H22: =IF(ISNUMBER(VLOOKUP($B22, 'Data Inputs'!$B$5:$F$648, 5, FALSE))=TRUE, VLOOKUP($B22, 'Data Inputs'!$B$5:$F$648, 5, FALSE), "") ->  | I22: =IF(ISNUMBER(VLOOKUP($B22, 'Data Inputs'!$B$5:$H$648, 6, FALSE))=TRUE, VLOOKUP($B22, 'Data Inputs'!$B$5:$H$648, 6, FALSE), "") ->  | J22: =IF(ISNUMBER(VLOOKUP($B22, 'Data Inputs'!$B$5:$H$648, 7, FALSE))=TRUE, VLOOKUP($B22, 'Data Inputs'!$B$5:$H$648, 7, FALSE), "") ->  | K22: 30 | L22: 40.6 | M22: 35.59177143 | N22: 15 | O22: 20
B23: 18 | C23: =VLOOKUP($B23, 'Data Inputs'!$B$5:$F$214, 2, TRUE) -> 0.15151512 | D23: =VLOOKUP($B23, 'Data Inputs'!$B$5:$F$648, 3, TRUE) -> 800 | E23: =VLOOKUP($B23, 'Data Inputs'!$B$5:$F$648, 4, TRUE) -> 5.501515152 | H23: =IF(ISNUMBER(VLOOKUP($B23, 'Data Inputs'!$B$5:$F$648, 5, FALSE))=TRUE, VLOOKUP($B23, 'Data Inputs'!$B$5:$F$648, 5, FALSE), "") ->  | I23: =IF(ISNUMBER(VLOOKUP($B23, 'Data Inputs'!$B$5:$H$648, 6, FALSE))=TRUE, VLOOKUP($B23, 'Data Inputs'!$B$5:$H$648, 6, FALSE), "") ->  | J23: =IF(ISNUMBER(VLOOKUP($B23, 'Data Inputs'!$B$5:$H$648, 7, FALSE))=TRUE, VLOOKUP($B23, 'Data Inputs'!$B$5:$H$648, 7, FALSE), "") ->  | K23: 30 | L23: 41.9 | M23: 36.88765714 | N23: 15
B24: 19 | C24: =VLOOKUP($B24, 'Data Inputs'!$B$5:$F$214, 2, TRUE) -> 0.17045451 | D24: =VLOOKUP($B24, 'Data Inputs'!$B$5:$F$648, 3, TRUE) -> 900 | E24: =VLOOKUP($B24, 'Data Inputs'!$B$5:$F$648, 4, TRUE) -> 5.520454545 | H24: =IF(ISNUMBER(VLOOKUP($B24, 'Data Inputs'!$B$5:$F$648, 5, FALSE))=TRUE, VLOOKUP($B24, 'Data Inputs'!$B$5:$F$648, 5, FALSE), "") -> 30 | I24: =IF(ISNUMBER(VLOOKUP($B24, 'Data Inputs'!$B$5:$H$648, 6, FALSE))=TRUE, VLOOKUP($B24, 'Data Inputs'!$B$5:$H$648, 6, FALSE), "") ->  | J24: =IF(ISNUMBER(VLOOKUP($B24, 'Data Inputs'!$B$5:$H$648, 7, FALSE))=TRUE, VLOOKUP($B24, 'Data Inputs'!$B$5:$H$648, 7, FALSE), "") ->  | K24: 30 | L24: 43.2 | M24: 38.18354286 | N24: 15
B25: 20 | C25: =VLOOKUP($B25, 'Data Inputs'!$B$5:$F$214, 2, TRUE) -> 0.17045451 | D25: =VLOOKUP($B25, 'Data Inputs'!$B$5:$F$648, 3, TRUE) -> 900 | E25: =VLOOKUP($B25, 'Data Inputs'!$B$5:$F$648, 4, TRUE) -> 5.520454545 | H25: =IF(ISNUMBER(VLOOKUP($B25, 'Data Inputs'!$B$5:$F$648, 5, FALSE))=TRUE, VLOOKUP($B25, 'Data Inputs'!$B$5:$F$648, 5, FALSE), "") ->  | I25: =IF(ISNUMBER(VLOOKUP($B25, 'Data Inputs'!$B$5:$H$648, 6, FALSE))=TRUE, VLOOKUP($B25, 'Data Inputs'!$B$5:$H$648, 6, FALSE), "") ->  | J25: =IF(ISNUMBER(VLOOKUP($B25, 'Data Inputs'!$B$5:$H$648, 7, FALSE))=TRUE, VLOOKUP($B25, 'Data Inputs'!$B$5:$H$648, 7, FALSE), "") ->  | K25: 50 | L25: 43.2 | M25: 38.18354286
B26: 21 | C26: =VLOOKUP($B26, 'Data Inputs'!$B$5:$F$214, 2, TRUE) -> 0.1893939 | D26: =VLOOKUP($B26, 'Data Inputs'!$B$5:$F$648, 3, TRUE) -> 1000 | E26: =VLOOKUP($B26, 'Data Inputs'!$B$5:$F$648, 4, TRUE) -> 5.539393939 | H26: =IF(ISNUMBER(VLOOKUP($B26, 'Data Inputs'!$B$5:$F$648, 5, FALSE))=TRUE, VLOOKUP($B26, 'Data Inputs'!$B$5:$F$648, 5, FALSE), "") ->  | I26: =IF(ISNUMBER(VLOOKUP($B26, 'Data Inputs'!$B$5:$H$648, 6, FALSE))=TRUE, VLOOKUP($B26, 'Data Inputs'!$B$5:$H$648, 6, FALSE), "") ->  | J26: =IF(ISNUMBER(VLOOKUP($B26, 'Data Inputs'!$B$5:$H$648, 7, FALSE))=TRUE, VLOOKUP($B26, 'Data Inputs'!$B$5:$H$648, 7, FALSE), "") ->  | K26: 50 | L26: 44.5 | M26: 39.47942857
B27: 22 | C27: =VLOOKUP($B27, 'Data Inputs'!$B$5:$F$214, 2, TRUE) -> 0.20833329 | D27: =VLOOKUP($B27, 'Data Inputs'!$B$5:$F$648, 3, TRUE) -> 1100 | E27: =VLOOKUP($B27, 'Data Inputs'!$B$5:$F$648, 4, TRUE) -> 5.558333333 | H27: =IF(ISNUMBER(VLOOKUP($B27, 'Data Inputs'!$B$5:$F$648, 5, FALSE))=TRUE, VLOOKUP($B27, 'Data Inputs'!$B$5:$F$648, 5, FALSE), "") ->  | I27: =IF(ISNUMBER(VLOOKUP($B27, 'Data Inputs'!$B$5:$H$648, 6, FALSE))=TRUE, VLOOKUP($B27, 'Data Inputs'!$B$5:$H$648, 6, FALSE), "") ->  | J27: =IF(ISNUMBER(VLOOKUP($B27, 'Data Inputs'!$B$5:$H$648, 7, FALSE))=TRUE, VLOOKUP($B27, 'Data Inputs'!$B$5:$H$648, 7, FALSE), "") ->  | K27: 50 | L27: 45.8 | M27: 40.77531429
B28: 23 | C28: =VLOOKUP($B28, 'Data Inputs'!$B$5:$F$214, 2, TRUE) -> 0.22727268 | D28: =VLOOKUP($B28, 'Data Inputs'!$B$5:$F$648, 3, TRUE) -> 1200 | E28: =VLOOKUP($B28, 'Data Inputs'!$B$5:$F$648, 4, TRUE) -> 5.577272727 | H28: =IF(ISNUMBER(VLOOKUP($B28, 'Data Inputs'!$B$5:$F$648, 5, FALSE))=TRUE, VLOOKUP($B28, 'Data Inputs'!$B$5:$F$648, 5, FALSE), "") ->  | I28: =IF(ISNUMBER(VLOOKUP($B28, 'Data Inputs'!$B$5:$H$648, 6, FALSE))=TRUE, VLOOKUP($B28, 'Data Inputs'!$B$5:$H$648, 6, FALSE), "") ->  | J28: =IF(ISNUMBER(VLOOKUP($B28, 'Data Inputs'!$B$5:$H$648, 7, FALSE))=TRUE, VLOOKUP($B28, 'Data Inputs'!$B$5:$H$648, 7, FALSE), "") -> 42.0712 | K28: 50 | L28: 47.1 | M28: =IF($D28="","",(IF($D28<=$AC$5,$AE$5,IF($D28=$AC$6,$AE$6,IF($D28=$AC$7,$AE$7,IF($D28=$AC$8,$AE$8,IF(AND($AB$6="N",$D28>$AC$5)=TRUE,$AE$5,IF(AND($AB$7="N",$D28>$AC$6)=TRUE,$AE$6,IF(AND($AB$8="N",$D28>$AC$7)=TRUE,$AE$7,IF(AND($AB$9="N",$D28>$AC$8)=TRUE,$AE$8,IF($AB$6="Y",IF(AND($D28>$AC$5,$D28<$AC$6)=TRUE,(($D28-$AC$5)/($AC$5-$AC$6)*(AE$5-AE$6))+MIN(AE$6,AE$5),IF($AB$7="Y",IF(AND($D28>$AC$6,$D28<$AC$7)=TRUE,(($D28-$AC$6)/($AC$6-$AC$7)*(AE$6-AE$7))+MIN(AE$7,AE$6),IF($AB$8="Y",IF(AND($D28>$AC$7,$D28<$AC$8)=TRUE,(($D28-$AC$7)/($AC$7-$AC$8)*(AE$7-AE$8))+MIN(AE$8,AE$7),IF($AB$9="Y",IF(AND($D28>$AC$8,$D28<$AC$9)=TRUE,(($D28-$AC$8)/($AC$8-$AC$9)*(AE$8-AE$9))+MIN(AE$9,AE$8),IF($D28>=$AC$9,$AE$9,""))))))))))))))))))) -> 42.0712 | O28: 20
B29: 24 | C29: =VLOOKUP($B29, 'Data Inputs'!$B$5:$F$214, 2, TRUE) -> 0.24621207 | D29: =VLOOKUP($B29, 'Data Inputs'!$B$5:$F$648, 3, TRUE) -> 1300 | E29: =VLOOKUP($B29, 'Data Inputs'!$B$5:$F$648, 4, TRUE) -> 5.596212121 | H29: =IF(ISNUMBER(VLOOKUP($B29, 'Data Inputs'!$B$5:$F$648, 5, FALSE))=TRUE, VLOOKUP($B29, 'Data Inputs'!$B$5:$F$648, 5, FALSE), "") ->  | I29: =IF(ISNUMBER(VLOOKUP($B29, 'Data Inputs'!$B$5:$H$648, 6, FALSE))=TRUE, VLOOKUP($B29, 'Data Inputs'!$B$5:$H$648, 6, FALSE), "") ->  | J29: =IF(ISNUMBER(VLOOKUP($B29, 'Data Inputs'!$B$5:$H$648, 7, FALSE))=TRUE, VLOOKUP($B29, 'Data Inputs'!$B$5:$H$648, 7, FALSE), "") ->  | K29: 50 | L29: 48.4 | M29: 43.798075
B30: 25 | C30: =VLOOKUP($B30, 'Data Inputs'!$B$5:$F$214, 2, TRUE) -> 0.26515146 | D30: =VLOOKUP($B30, 'Data Inputs'!$B$5:$F$648, 3, TRUE) -> 1400 | E30: =VLOOKUP($B30, 'Data Inputs'!$B$5:$F$648, 4, TRUE) -> 5.615151515 | H30: =IF(ISNUMBER(VLOOKUP($B30, 'Data Inputs'!$B$5:$F$648, 5, FALSE))=TRUE, VLOOKUP($B30, 'Data Inputs'!$B$5:$F$648, 5, FALSE), "") ->  | I30: =IF(ISNUMBER(VLOOKUP($B30, 'Data Inputs'!$B$5:$H$648, 6, FALSE))=TRUE, VLOOKUP($B30, 'Data Inputs'!$B$5:$H$648, 6, FALSE), "") ->  | J30: =IF(ISNUMBER(VLOOKUP($B30, 'Data Inputs'!$B$5:$H$648, 7, FALSE))=TRUE, VLOOKUP($B30, 'Data Inputs'!$B$5:$H$648, 7, FALSE), "") ->  | K30: 50 | L30: 49.7 | M30: 45.52495
B31: 26 | C31: =VLOOKUP($B31, 'Data Inputs'!$B$5:$F$214, 2, TRUE) -> 0.28409085 | D31: =VLOOKUP($B31, 'Data Inputs'!$B$5:$F$648, 3, TRUE) -> 1500 | E31: =VLOOKUP($B31, 'Data Inputs'!$B$5:$F$648, 4, TRUE) -> 5.634090909 | H31: =IF(ISNUMBER(VLOOKUP($B31, 'Data Inputs'!$B$5:$F$648, 5, FALSE))=TRUE, VLOOKUP($B31, 'Data Inputs'!$B$5:$F$648, 5, FALSE), "") ->  | I31: =IF(ISNUMBER(VLOOKUP($B31, 'Data Inputs'!$B$5:$H$648, 6, FALSE))=TRUE, VLOOKUP($B31, 'Data Inputs'!$B$5:$H$648, 6, FALSE), "") ->  | J31: =IF(ISNUMBER(VLOOKUP($B31, 'Data Inputs'!$B$5:$H$648, 7, FALSE))=TRUE, VLOOKUP($B31, 'Data Inputs'!$B$5:$H$648, 7, FALSE), "") ->  | K31: 50 | L31: 51 | M31: 47.251825 | O31: 20
B32: 27 | C32: =VLOOKUP($B32, 'Data Inputs'!$B$5:$F$214, 2, TRUE) -> 0.30303024 | D32: =VLOOKUP($B32, 'Data Inputs'!$B$5:$F$648, 3, TRUE) -> 1600 | E32: =VLOOKUP($B32, 'Data Inputs'!$B$5:$F$648, 4, TRUE) -> 5.653030303 | H32: =IF(ISNUMBER(VLOOKUP($B32, 'Data Inputs'!$B$5:$F$648, 5, FALSE))=TRUE, VLOOKUP($B32, 'Data Inputs'!$B$5:$F$648, 5, FALSE), "") ->  | I32: =IF(ISNUMBER(VLOOKUP($B32, 'Data Inputs'!$B$5:$H$648, 6, FALSE))=TRUE, VLOOKUP($B32, 'Data Inputs'!$B$5:$H$648, 6, FALSE), "") ->  | J32: =IF(ISNUMBER(VLOOKUP($B32, 'Data Inputs'!$B$5:$H$648, 7, FALSE))=TRUE, VLOOKUP($B32, 'Data Inputs'!$B$5:$H$648, 7, FALSE), "") -> 48.9787 | K32: 50 | L32: 52.3 | M32: 48.9787
B33: 28 | C33: =VLOOKUP($B33, 'Data Inputs'!$B$5:$F$214, 2, TRUE) -> 0.32196963 | D33: =VLOOKUP($B33, 'Data Inputs'!$B$5:$F$648, 3, TRUE) -> 1700 | E33: =VLOOKUP($B33, 'Data Inputs'!$B$5:$F$648, 4, TRUE) -> 5.671969697 | H33: =IF(ISNUMBER(VLOOKUP($B33, 'Data Inputs'!$B$5:$F$648, 5, FALSE))=TRUE, VLOOKUP($B33, 'Data Inputs'!$B$5:$F$648, 5, FALSE), "") ->  | I33: =IF(ISNUMBER(VLOOKUP($B33, 'Data Inputs'!$B$5:$H$648, 6, FALSE))=TRUE, VLOOKUP($B33, 'Data Inputs'!$B$5:$H$648, 6, FALSE), "") ->  | J33: =IF(ISNUMBER(VLOOKUP($B33, 'Data Inputs'!$B$5:$H$648, 7, FALSE))=TRUE, VLOOKUP($B33, 'Data Inputs'!$B$5:$H$648, 7, FALSE), "") ->  | K33: 50 | L33: 53.6 | M33: 49.98106667
B34: 29 | C34: =VLOOKUP($B34, 'Data Inputs'!$B$5:$F$214, 2, TRUE) -> 0.34090902 | D34: =VLOOKUP($B34, 'Data Inputs'!$B$5:$F$648, 3, TRUE) -> 1800 | E34: =VLOOKUP($B34, 'Data Inputs'!$B$5:$F$648, 4, TRUE) -> 5.690909091 | H34: =IF(ISNUMBER(VLOOKUP($B34, 'Data Inputs'!$B$5:$F$648, 5, FALSE))=TRUE, VLOOKUP($B34, 'Data Inputs'!$B$5:$F$648, 5, FALSE), "") ->  | I34: =IF(ISNUMBER(VLOOKUP($B34, 'Data Inputs'!$B$5:$H$648, 6, FALSE))=TRUE, VLOOKUP($B34, 'Data Inputs'!$B$5:$H$648, 6, FALSE), "") ->  | J34: =IF(ISNUMBER(VLOOKUP($B34, 'Data Inputs'!$B$5:$H$648, 7, FALSE))=TRUE, VLOOKUP($B34, 'Data Inputs'!$B$5:$H$648, 7, FALSE), "") ->  | K34: 50 | L34: 54.9 | M34: 50.98343333
B35: 30 | C35: =VLOOKUP($B35, 'Data Inputs'!$B$5:$F$214, 2, TRUE) -> 0.35984841 | D35: =VLOOKUP($B35, 'Data Inputs'!$B$5:$F$648, 3, TRUE) -> 1900 | E35: =VLOOKUP($B35, 'Data Inputs'!$B$5:$F$648, 4, TRUE) -> 5.709848485 | H35: =IF(ISNUMBER(VLOOKUP($B35, 'Data Inputs'!$B$5:$F$648, 5, FALSE))=TRUE, VLOOKUP($B35, 'Data Inputs'!$B$5:$F$648, 5, FALSE), "") ->  | I35: =IF(ISNUMBER(VLOOKUP($B35, 'Data Inputs'!$B$5:$H$648, 6, FALSE))=TRUE, VLOOKUP($B35, 'Data Inputs'!$B$5:$H$648, 6, FALSE), "") ->  | J35: =IF(ISNUMBER(VLOOKUP($B35, 'Data Inputs'!$B$5:$H$648, 7, FALSE))=TRUE, VLOOKUP($B35, 'Data Inputs'!$B$5:$H$648, 7, FALSE), "") ->  | K35: 50 | L35: 56.2 | M35: 51.9858 | N35: 15
B36: 31 | C36: =VLOOKUP($B36, 'Data Inputs'!$B$5:$F$214, 2, TRUE) -> 0.3787878 | D36: =VLOOKUP($B36, 'Data Inputs'!$B$5:$F$648, 3, TRUE) -> 2000 | E36: =VLOOKUP($B36, 'Data Inputs'!$B$5:$F$648, 4, TRUE) -> 5.728787879 | H36: =IF(ISNUMBER(VLOOKUP($B36, 'Data Inputs'!$B$5:$F$648, 5, FALSE))=TRUE, VLOOKUP($B36, 'Data Inputs'!$B$5:$F$648, 5, FALSE), "") ->  | I36: =IF(ISNUMBER(VLOOKUP($B36, 'Data Inputs'!$B$5:$H$648, 6, FALSE))=TRUE, VLOOKUP($B36, 'Data Inputs'!$B$5:$H$648, 6, FALSE), "") ->  | J36: =IF(ISNUMBER(VLOOKUP($B36, 'Data Inputs'!$B$5:$H$648, 7, FALSE))=TRUE, VLOOKUP($B36, 'Data Inputs'!$B$5:$H$648, 7, FALSE), "") ->  | K36: 50 | L36: 57.5 | M36: 52.98816667 | N36: 15 | O36: 20
B37: 32 | C37: =VLOOKUP($B37, 'Data Inputs'!$B$5:$F$214, 2, TRUE) -> 0.39772719 | D37: =VLOOKUP($B37, 'Data Inputs'!$B$5:$F$648, 3, TRUE) -> 2100 | E37: =VLOOKUP($B37, 'Data Inputs'!$B$5:$F$648, 4, TRUE) -> 5.747727273 | H37: =IF(ISNUMBER(VLOOKUP($B37, 'Data Inputs'!$B$5:$F$648, 5, FALSE))=TRUE, VLOOKUP($B37, 'Data Inputs'!$B$5:$F$648, 5, FALSE), "") ->  | I37: =IF(ISNUMBER(VLOOKUP($B37, 'Data Inputs'!$B$5:$H$648, 6, FALSE))=TRUE, VLOOKUP($B37, 'Data Inputs'!$B$5:$H$648, 6, FALSE), "") ->  | J37: =IF(ISNUMBER(VLOOKUP($B37, 'Data Inputs'!$B$5:$H$648, 7, FALSE))=TRUE, VLOOKUP($B37, 'Data Inputs'!$B$5:$H$648, 7, FALSE), "") ->  | K37: 50 | L37: 58.8 | M37: =IF($D37="","",(IF($D37<=$AC$5,$AE$5,IF($D37=$AC$6,$AE$6,IF($D37=$AC$7,$AE$7,IF($D37=$AC$8,$AE$8,IF(AND($AB$6="N",$D37>$AC$5)=TRUE,$AE$5,IF(AND($AB$7="N",$D37>$AC$6)=TRUE,$AE$6,IF(AND($AB$8="N",$D37>$AC$7)=TRUE,$AE$7,IF(AND($AB$9="N",$D37>$AC$8)=TRUE,$AE$8,IF($AB$6="Y",IF(AND($D37>$AC$5,$D37<$AC$6)=TRUE,(($D37-$AC$5)/($AC$5-$AC$6)*(AE$5-AE$6))+MIN(AE$6,AE$5),IF($AB$7="Y",IF(AND($D37>$AC$6,$D37<$AC$7)=TRUE,(($D37-$AC$6)/($AC$6-$AC$7)*(AE$6-AE$7))+MIN(AE$7,AE$6),IF($AB$8="Y",IF(AND($D37>$AC$7,$D37<$AC$8)=TRUE,(($D37-$AC$7)/($AC$7-$AC$8)*(AE$7-AE$8))+MIN(AE$8,AE$7),IF($AB$9="Y",IF(AND($D37>$AC$8,$D37<$AC$9)=TRUE,(($D37-$AC$8)/($AC$8-$AC$9)*(AE$8-AE$9))+MIN(AE$9,AE$8),IF($D37>=$AC$9,$AE$9,""))))))))))))))))))) -> 53.99053333 | N37: 15
B38: 33 | C38: =VLOOKUP($B38, 'Data Inputs'!$B$5:$F$214, 2, TRUE) -> 0.41666658 | D38: =VLOOKUP($B38, 'Data Inputs'!$B$5:$F$648, 3, TRUE) -> 2200 | E38: =VLOOKUP($B38, 'Data Inputs'!$B$5:$F$648, 4, TRUE) -> 5.766666667 | H38: =IF(ISNUMBER(VLOOKUP($B38, 'Data Inputs'!$B$5:$F$648, 5, FALSE))=TRUE, VLOOKUP($B38, 'Data Inputs'!$B$5:$F$648, 5, FALSE), "") -> 50 | I38: =IF(ISNUMBER(VLOOKUP($B38, 'Data Inputs'!$B$5:$H$648, 6, FALSE))=TRUE, VLOOKUP($B38, 'Data Inputs'!$B$5:$H$648, 6, FALSE), "") ->  | J38: =IF(ISNUMBER(VLOOKUP($B38, 'Data Inputs'!$B$5:$H$648, 7, FALSE))=TRUE, VLOOKUP($B38, 'Data Inputs'!$B$5:$H$648, 7, FALSE), "") ->  | K38: 50 | L38: 60.1 | M38: 54.9929 | N38: 15
B39: 34 | C39: =VLOOKUP($B39, 'Data Inputs'!$B$5:$F$214, 2, TRUE) -> 0.41666658 | D39: =VLOOKUP($B39, 'Data Inputs'!$B$5:$F$648, 3, TRUE) -> 2200 | E39: =VLOOKUP($B39, 'Data Inputs'!$B$5:$F$648, 4, TRUE) -> 5.766666667 | H39: =IF(ISNUMBER(VLOOKUP($B39, 'Data Inputs'!$B$5:$F$648, 5, FALSE))=TRUE, VLOOKUP($B39, 'Data Inputs'!$B$5:$F$648, 5, FALSE), "") ->  | I39: =IF(ISNUMBER(VLOOKUP($B39, 'Data Inputs'!$B$5:$H$648, 6, FALSE))=TRUE, VLOOKUP($B39, 'Data Inputs'!$B$5:$H$648, 6, FALSE), "") ->  | J39: =IF(ISNUMBER(VLOOKUP($B39, 'Data Inputs'!$B$5:$H$648, 7, FALSE))=TRUE, VLOOKUP($B39, 'Data Inputs'!$B$5:$H$648, 7, FALSE), "") ->  | K39: 65 | L39: 60.1 | M39: 54.9929
B40: 35 | C40: =VLOOKUP($B40, 'Data Inputs'!$B$5:$F$214, 2, TRUE) -> 0.43560597 | D40: =VLOOKUP($B40, 'Data Inputs'!$B$5:$F$648, 3, TRUE) -> 2300 | E40: =VLOOKUP($B40, 'Data Inputs'!$B$5:$F$648, 4, TRUE) -> 5.785606061 | H40: =IF(ISNUMBER(VLOOKUP($B40, 'Data Inputs'!$B$5:$F$648, 5, FALSE))=TRUE, VLOOKUP($B40, 'Data Inputs'!$B$5:$F$648, 5, FALSE), "") ->  | I40: =IF(ISNUMBER(VLOOKUP($B40, 'Data Inputs'!$B$5:$H$648, 6, FALSE))=TRUE, VLOOKUP($B40, 'Data Inputs'!$B$5:$H$648, 6, FALSE), "") ->  | J40: =IF(ISNUMBER(VLOOKUP($B40, 'Data Inputs'!$B$5:$H$648, 7, FALSE))=TRUE, VLOOKUP($B40, 'Data Inputs'!$B$5:$H$648, 7, FALSE), "") ->  | K40: 65 | L40: 61.4 | M40: 55.99526667
B41: 36 | C41: =VLOOKUP($B41, 'Data Inputs'!$B$5:$F$214, 2, TRUE) -> 0.45454536 | D41: =VLOOKUP($B41, 'Data Inputs'!$B$5:$F$648, 3, TRUE) -> 2400 | E41: =VLOOKUP($B41, 'Data Inputs'!$B$5:$F$648, 4, TRUE) -> 5.804545455 | H41: =IF(ISNUMBER(VLOOKUP($B41, 'Data Inputs'!$B$5:$F$648, 5, FALSE))=TRUE, VLOOKUP($B41, 'Data Inputs'!$B$5:$F$648, 5, FALSE), "") ->  | I41: =IF(ISNUMBER(VLOOKUP($B41, 'Data Inputs'!$B$5:$H$648, 6, FALSE))=TRUE, VLOOKUP($B41, 'Data Inputs'!$B$5:$H$648, 6, FALSE), "") ->  | J41: =IF(ISNUMBER(VLOOKUP($B41, 'Data Inputs'!$B$5:$H$648, 7, FALSE))=TRUE, VLOOKUP($B41, 'Data Inputs'!$B$5:$H$648, 7, FALSE), "") ->  | K41: 65 | L41: 62.7 | M41: 56.99763333 | O41: 20
B42: 37 | C42: =VLOOKUP($B42, 'Data Inputs'!$B$5:$F$214, 2, TRUE) -> 0.47348475 | D42: =VLOOKUP($B42, 'Data Inputs'!$B$5:$F$648, 3, TRUE) -> 2500 | E42: =VLOOKUP($B42, 'Data Inputs'!$B$5:$F$648, 4, TRUE) -> 5.823484848 | H42: =IF(ISNUMBER(VLOOKUP($B42, 'Data Inputs'!$B$5:$F$648, 5, FALSE))=TRUE, VLOOKUP($B42, 'Data Inputs'!$B$5:$F$648, 5, FALSE), "") ->  | I42: =IF(ISNUMBER(VLOOKUP($B42, 'Data Inputs'!$B$5:$H$648, 6, FALSE))=TRUE, VLOOKUP($B42, 'Data Inputs'!$B$5:$H$648, 6, FALSE), "") -> 64 | J42: =IF(ISNUMBER(VLOOKUP($B42, 'Data Inputs'!$B$5:$H$648, 7, FALSE))=TRUE, VLOOKUP($B42, 'Data Inputs'!$B$5:$H$648, 7, FALSE), "") -> 58 | K42: 65 | L42: 64 | M42: 58
B43: 38 | C43: =VLOOKUP($B43, 'Data Inputs'!$B$5:$F$214, 2, TRUE) -> 0.49242414 | D43: =VLOOKUP($B43, 'Data Inputs'!$B$5:$F$648, 3, TRUE) -> 2600 | E43: =VLOOKUP($B43, 'Data Inputs'!$B$5:$F$648, 4, TRUE) -> 5.842424242 | H43: =IF(ISNUMBER(VLOOKUP($B43, 'Data Inputs'!$B$5:$F$648, 5, FALSE))=TRUE, VLOOKUP($B43, 'Data Inputs'!$B$5:$F$648, 5, FALSE), "") ->  | I43: =IF(ISNUMBER(VLOOKUP($B43, 'Data Inputs'!$B$5:$H$648, 6, FALSE))=TRUE, VLOOKUP($B43, 'Data Inputs'!$B$5:$H$648, 6, FALSE), "") ->  | J43: =IF(ISNUMBER(VLOOKUP($B43, 'Data Inputs'!$B$5:$H$648, 7, FALSE))=TRUE, VLOOKUP($B43, 'Data Inputs'!$B$5:$H$648, 7, FALSE), "") ->  | K43: 65 | L43: 64 | M43: 58
B44: 39 | C44: =VLOOKUP($B44, 'Data Inputs'!$B$5:$F$214, 2, TRUE) -> 0.51136353 | D44: =VLOOKUP($B44, 'Data Inputs'!$B$5:$F$648, 3, TRUE) -> 2700 | E44: =VLOOKUP($B44, 'Data Inputs'!$B$5:$F$648, 4, TRUE) -> 5.861363636 | H44: =IF(ISNUMBER(VLOOKUP($B44, 'Data Inputs'!$B$5:$F$648, 5, FALSE))=TRUE, VLOOKUP($B44, 'Data Inputs'!$B$5:$F$648, 5, FALSE), "") ->  | I44: =IF(ISNUMBER(VLOOKUP($B44, 'Data Inputs'!$B$5:$H$648, 6, FALSE))=TRUE, VLOOKUP($B44, 'Data Inputs'!$B$5:$H$648, 6, FALSE), "") ->  | J44: =IF(ISNUMBER(VLOOKUP($B44, 'Data Inputs'!$B$5:$H$648, 7, FALSE))=TRUE, VLOOKUP($B44, 'Data Inputs'!$B$5:$H$648, 7, FALSE), "") ->  | K44: 65 | L44: 64 | M44: 58
B45: 40 | C45: =VLOOKUP($B45, 'Data Inputs'!$B$5:$F$214, 2, TRUE) -> 0.53030292 | D45: =VLOOKUP($B45, 'Data Inputs'!$B$5:$F$648, 3, TRUE) -> 2800 | E45: =VLOOKUP($B45, 'Data Inputs'!$B$5:$F$648, 4, TRUE) -> 5.88030303 | H45: =IF(ISNUMBER(VLOOKUP($B45, 'Data Inputs'!$B$5:$F$648, 5, FALSE))=TRUE, VLOOKUP($B45, 'Data Inputs'!$B$5:$F$648, 5, FALSE), "") ->  | I45: =IF(ISNUMBER(VLOOKUP($B45, 'Data Inputs'!$B$5:$H$648, 6, FALSE))=TRUE, VLOOKUP($B45, 'Data Inputs'!$B$5:$H$648, 6, FALSE), "") ->  | J45: =IF(ISNUMBER(VLOOKUP($B45, 'Data Inputs'!$B$5:$H$648, 7, FALSE))=TRUE, VLOOKUP($B45, 'Data Inputs'!$B$5:$H$648, 7, FALSE), "") ->  | K45: 65 | L45: 64 | M45: 58
B46: 41 | C46: =VLOOKUP($B46, 'Data Inputs'!$B$5:$F$214, 2, TRUE) -> 0.54924231 | D46: =VLOOKUP($B46, 'Data Inputs'!$B$5:$F$648, 3, TRUE) -> 2900 | E46: =VLOOKUP($B46, 'Data Inputs'!$B$5:$F$648, 4, TRUE) -> 5.899242424 | H46: =IF(ISNUMBER(VLOOKUP($B46, 'Data Inputs'!$B$5:$F$648, 5, FALSE))=TRUE, VLOOKUP($B46, 'Data Inputs'!$B$5:$F$648, 5, FALSE), "") ->  | I46: =IF(ISNUMBER(VLOOKUP($B46, 'Data Inputs'!$B$5:$H$648, 6, FALSE))=TRUE, VLOOKUP($B46, 'Data Inputs'!$B$5:$H$648, 6, FALSE), "") ->  | J46: =IF(ISNUMBER(VLOOKUP($B46, 'Data Inputs'!$B$5:$H$648, 7, FALSE))=TRUE, VLOOKUP($B46, 'Data Inputs'!$B$5:$H$648, 7, FALSE), "") ->  | K46: 65 | L46: 64 | M46: 58
B47: 42 | C47: =VLOOKUP($B47, 'Data Inputs'!$B$5:$F$214, 2, TRUE) -> 0.5681817 | D47: =VLOOKUP($B47, 'Data Inputs'!$B$5:$F$648, 3, TRUE) -> 3000 | E47: =VLOOKUP($B47, 'Data Inputs'!$B$5:$F$648, 4, TRUE) -> 5.918181818 | H47: =IF(ISNUMBER(VLOOKUP($B47, 'Data Inputs'!$B$5:$F$648, 5, FALSE))=TRUE, VLOOKUP($B47, 'Data Inputs'!$B$5:$F$648, 5, FALSE), "") ->  | I47: =IF(ISNUMBER(VLOOKUP($B47, 'Data Inputs'!$B$5:$H$648, 6, FALSE))=TRUE, VLOOKUP($B47, 'Data Inputs'!$B$5:$H$648, 6, FALSE), "") ->  | J47: =IF(ISNUMBER(VLOOKUP($B47, 'Data Inputs'!$B$5:$H$648, 7, FALSE))=TRUE, VLOOKUP($B47, 'Data Inputs'!$B$5:$H$648, 7, FALSE), "") ->  | K47: 65 | L47: 64 | M47: 58
B48: 43 | C48: =VLOOKUP($B48, 'Data Inputs'!$B$5:$F$214, 2, TRUE) -> 0.58712109 | D48: =VLOOKUP($B48, 'Data Inputs'!$B$5:$F$648, 3, TRUE) -> 3100 | E48: =VLOOKUP($B48, 'Data Inputs'!$B$5:$F$648, 4, TRUE) -> 5.937121212 | H48: =IF(ISNUMBER(VLOOKUP($B48, 'Data Inputs'!$B$5:$F$648, 5, FALSE))=TRUE, VLOOKUP($B48, 'Data Inputs'!$B$5:$F$648, 5, FALSE), "") -> 65 | I48: =IF(ISNUMBER(VLOOKUP($B48, 'Data Inputs'!$B$5:$H$648, 6, FALSE))=TRUE, VLOOKUP($B48, 'Data Inputs'!$B$5:$H$648, 6, FALSE), "") ->  | J48: =IF(ISNUMBER(VLOOKUP($B48, 'Data Inputs'!$B$5:$H$648, 7, FALSE))=TRUE, VLOOKUP($B48, 'Data Inputs'!$B$5:$H$648, 7, FALSE), "") ->  | K48: 65 | L48: 64 | M48: 58
B49: 44 | C49: =VLOOKUP($B49, 'Data Inputs'!$B$5:$F$214, 2, TRUE) -> 0.58712109 | D49: =VLOOKUP($B49, 'Data Inputs'!$B$5:$F$648, 3, TRUE) -> 3100 | E49: =VLOOKUP($B49, 'Data Inputs'!$B$5:$F$648, 4, TRUE) -> 5.937121212 | H49: =IF(ISNUMBER(VLOOKUP($B49, 'Data Inputs'!$B$5:$F$648, 5, FALSE))=TRUE, VLOOKUP($B49, 'Data Inputs'!$B$5:$F$648, 5, FALSE), "") ->  | I49: =IF(ISNUMBER(VLOOKUP($B49, 'Data Inputs'!$B$5:$H$648, 6, FALSE))=TRUE, VLOOKUP($B49, 'Data Inputs'!$B$5:$H$648, 6, FALSE), "") ->  | J49: =IF(ISNUMBER(VLOOKUP($B49, 'Data Inputs'!$B$5:$H$648, 7, FALSE))=TRUE, VLOOKUP($B49, 'Data Inputs'!$B$5:$H$648, 7, FALSE), "") ->  | K49: 65 | L49: 64 | M49: 58
B50: 45 | C50: =VLOOKUP($B50, 'Data Inputs'!$B$5:$F$214, 2, TRUE) -> 0.60606048 | D50: =VLOOKUP($B50, 'Data Inputs'!$B$5:$F$648, 3, TRUE) -> 3200 | E50: =VLOOKUP($B50, 'Data Inputs'!$B$5:$F$648, 4, TRUE) -> 5.956060606 | H50: =IF(ISNUMBER(VLOOKUP($B50, 'Data Inputs'!$B$5:$F$648, 5, FALSE))=TRUE, VLOOKUP($B50, 'Data Inputs'!$B$5:$F$648, 5, FALSE), "") ->  | I50: =IF(ISNUMBER(VLOOKUP($B50, 'Data Inputs'!$B$5:$H$648, 6, FALSE))=TRUE, VLOOKUP($B50, 'Data Inputs'!$B$5:$H$648, 6, FALSE), "") ->  | J50: =IF(ISNUMBER(VLOOKUP($B50, 'Data Inputs'!$B$5:$H$648, 7, FALSE))=TRUE, VLOOKUP($B50, 'Data Inputs'!$B$5:$H$648, 7, FALSE), "") ->  | K50: 65 | L50: 64 | M50: 58
B51: 46 | C51: =VLOOKUP($B51, 'Data Inputs'!$B$5:$F$214, 2, TRUE) -> 0.62499987 | D51: =VLOOKUP($B51, 'Data Inputs'!$B$5:$F$648, 3, TRUE) -> 3300 | E51: =VLOOKUP($B51, 'Data Inputs'!$B$5:$F$648, 4, TRUE) -> 5.975 | H51: =IF(ISNUMBER(VLOOKUP($B51, 'Data Inputs'!$B$5:$F$648, 5, FALSE))=TRUE, VLOOKUP($B51, 'Data Inputs'!$B$5:$F$648, 5, FALSE), "") ->  | I51: =IF(ISNUMBER(VLOOKUP($B51, 'Data Inputs'!$B$5:$H$648, 6, FALSE))=TRUE, VLOOKUP($B51, 'Data Inputs'!$B$5:$H$648, 6, FALSE), "") ->  | J51: =IF(ISNUMBER(VLOOKUP($B51, 'Data Inputs'!$B$5:$H$648, 7, FALSE))=TRUE, VLOOKUP($B51, 'Data Inputs'!$B$5:$H$648, 7, FALSE), "") ->  | K51: 65 | L51: 64 | M51: 58
B52: 47 | C52: =VLOOKUP($B52, 'Data Inputs'!$B$5:$F$214, 2, TRUE) -> 0.64393926 | D52: =VLOOKUP($B52, 'Data Inputs'!$B$5:$F$648, 3, TRUE) -> 3400 | E52: =VLOOKUP($B52, 'Data Inputs'!$B$5:$F$648, 4, TRUE) -> 5.993939394 | H52: =IF(ISNUMBER(VLOOKUP($B52, 'Data Inputs'!$B$5:$F$648, 5, FALSE))=TRUE, VLOOKUP($B52, 'Data Inputs'!$B$5:$F$648, 5, FALSE), "") ->  | I52: =IF(ISNUMBER(VLOOKUP($B52, 'Data Inputs'!$B$5:$H$648, 6, FALSE))=TRUE, VLOOKUP($B52, 'Data Inputs'!$B$5:$H$648, 6, FALSE), "") ->  | J52: =IF(ISNUMBER(VLOOKUP($B52, 'Data Inputs'!$B$5:$H$648, 7, FALSE))=TRUE, VLOOKUP($B52, 'Data Inputs'!$B$5:$H$648, 7, FALSE), "") ->  | K52: 65 | L52: 64 | M52: 58
B53: 48 | C53: =VLOOKUP($B53, 'Data Inputs'!$B$5:$F$214, 2, TRUE) -> 0.66287865 | D53: =VLOOKUP($B53, 'Data Inputs'!$B$5:$F$648, 3, TRUE) -> 3500 | E53: =VLOOKUP($B53, 'Data Inputs'!$B$5:$F$648, 4, TRUE) -> 6.012878788 | H53: =IF(ISNUMBER(VLOOKUP($B53, 'Data Inputs'!$B$5:$F$648, 5, FALSE))=TRUE, VLOOKUP($B53, 'Data Inputs'!$B$5:$F$648, 5, FALSE), "") ->  | I53: =IF(ISNUMBER(VLOOKUP($B53, 'Data Inputs'!$B$5:$H$648, 6, FALSE))=TRUE, VLOOKUP($B53, 'Data Inputs'!$B$5:$H$648, 6, FALSE), "") ->  | J53: =IF(ISNUMBER(VLOOKUP($B53, 'Data Inputs'!$B$5:$H$648, 7, FALSE))=TRUE, VLOOKUP($B53, 'Data Inputs'!$B$5:$H$648, 7, FALSE), "") ->  | K53: 65 | L53: 64 | M53: 58
B54: 49 | C54: =VLOOKUP($B54, 'Data Inputs'!$B$5:$F$214, 2, TRUE) ->  | D54: =VLOOKUP($B54, 'Data Inputs'!$B$5:$F$648, 3, TRUE) ->  | E54: =VLOOKUP($B54, 'Data Inputs'!$B$5:$F$648, 4, TRUE) ->  | H54: =IF(ISNUMBER(VLOOKUP($B54, 'Data Inputs'!$B$5:$F$648, 5, FALSE))=TRUE, VLOOKUP($B54, 'Data Inputs'!$B$5:$F$648, 5, FALSE), "") ->  | I54: =IF(ISNUMBER(VLOOKUP($B54, 'Data Inputs'!$B$5:$H$648, 6, FALSE))=TRUE, VLOOKUP($B54, 'Data Inputs'!$B$5:$H$648, 6, FALSE), "") ->  | J54: =IF(ISNUMBER(VLOOKUP($B54, 'Data Inputs'!$B$5:$H$648, 7, FALSE))=TRUE, VLOOKUP($B54, 'Data Inputs'!$B$5:$H$648, 7, FALSE), "") ->  | K54: 65
B55: 50 | C55: =VLOOKUP($B55, 'Data Inputs'!$B$5:$F$214, 2, TRUE) ->  | D55: =VLOOKUP($B55, 'Data Inputs'!$B$5:$F$648, 3, TRUE) ->  | E55: =VLOOKUP($B55, 'Data Inputs'!$B$5:$F$648, 4, TRUE) ->  | H55: =IF(ISNUMBER(VLOOKUP($B55, 'Data Inputs'!$B$5:$F$648, 5, FALSE))=TRUE, VLOOKUP($B55, 'Data Inputs'!$B$5:$F$648, 5, FALSE), "") ->  | I55: =IF(ISNUMBER(VLOOKUP($B55, 'Data Inputs'!$B$5:$H$648, 6, FALSE))=TRUE, VLOOKUP($B55, 'Data Inputs'!$B$5:$H$648, 6, FALSE), "") ->  | J55: =IF(ISNUMBER(VLOOKUP($B55, 'Data Inputs'!$B$5:$H$648, 7, FALSE))=TRUE, VLOOKUP($B55, 'Data Inputs'!$B$5:$H$648, 7, FALSE), "") ->  | K55: 65
B56: 51 | C56: =VLOOKUP($B56, 'Data Inputs'!$B$5:$F$214, 2, TRUE) ->  | D56: =VLOOKUP($B56, 'Data Inputs'!$B$5:$F$648, 3, TRUE) ->  | E56: =VLOOKUP($B56, 'Data Inputs'!$B$5:$F$648, 4, TRUE) ->  | H56: =IF(ISNUMBER(VLOOKUP($B56, 'Data Inputs'!$B$5:$F$648, 5, FALSE))=TRUE, VLOOKUP($B56, 'Data Inputs'!$B$5:$F$648, 5, FALSE), "") ->  | I56: =IF(ISNUMBER(VLOOKUP($B56, 'Data Inputs'!$B$5:$H$648, 6, FALSE))=TRUE, VLOOKUP($B56, 'Data Inputs'!$B$5:$H$648, 6, FALSE), "") ->  | J56: =IF(ISNUMBER(VLOOKUP($B56, 'Data Inputs'!$B$5:$H$648, 7, FALSE))=TRUE, VLOOKUP($B56, 'Data Inputs'!$B$5:$H$648, 7, FALSE), "") ->  | K56: 65
B57: 52 | C57: =VLOOKUP($B57, 'Data Inputs'!$B$5:$F$214, 2, TRUE) ->  | D57: =VLOOKUP($B57, 'Data Inputs'!$B$5:$F$648, 3, TRUE) ->  | E57: =VLOOKUP($B57, 'Data Inputs'!$B$5:$F$648, 4, TRUE) ->  | H57: =IF(ISNUMBER(VLOOKUP($B57, 'Data Inputs'!$B$5:$F$648, 5, FALSE))=TRUE, VLOOKUP($B57, 'Data Inputs'!$B$5:$F$648, 5, FALSE), "") ->  | I57: =IF(ISNUMBER(VLOOKUP($B57, 'Data Inputs'!$B$5:$H$648, 6, FALSE))=TRUE, VLOOKUP($B57, 'Data Inputs'!$B$5:$H$648, 6, FALSE), "") ->  | J57: =IF(ISNUMBER(VLOOKUP($B57, 'Data Inputs'!$B$5:$H$648, 7, FALSE))=TRUE, VLOOKUP($B57, 'Data Inputs'!$B$5:$H$648, 7, FALSE), "") ->  | K57: 65
B58: 53 | C58: =VLOOKUP($B58, 'Data Inputs'!$B$5:$F$214, 2, TRUE) ->  | D58: =VLOOKUP($B58, 'Data Inputs'!$B$5:$F$648, 3, TRUE) ->  | E58: =VLOOKUP($B58, 'Data Inputs'!$B$5:$F$648, 4, TRUE) ->  | H58: =IF(ISNUMBER(VLOOKUP($B58, 'Data Inputs'!$B$5:$F$648, 5, FALSE))=TRUE, VLOOKUP($B58, 'Data Inputs'!$B$5:$F$648, 5, FALSE), "") ->  | I58: =IF(ISNUMBER(VLOOKUP($B58, 'Data Inputs'!$B$5:$H$648, 6, FALSE))=TRUE, VLOOKUP($B58, 'Data Inputs'!$B$5:$H$648, 6, FALSE), "") ->  | J58: =IF(ISNUMBER(VLOOKUP($B58, 'Data Inputs'!$B$5:$H$648, 7, FALSE))=TRUE, VLOOKUP($B58, 'Data Inputs'!$B$5:$H$648, 7, FALSE), "") ->  | K58: 65
B59: 54 | C59: =VLOOKUP($B59, 'Data Inputs'!$B$5:$F$214, 2, TRUE) ->  | D59: =VLOOKUP($B59, 'Data Inputs'!$B$5:$F$648, 3, TRUE) ->  | E59: =VLOOKUP($B59, 'Data Inputs'!$B$5:$F$648, 4, TRUE) ->  | H59: =IF(ISNUMBER(VLOOKUP($B59, 'Data Inputs'!$B$5:$F$648, 5, FALSE))=TRUE, VLOOKUP($B59, 'Data Inputs'!$B$5:$F$648, 5, FALSE), "") ->  | I59: =IF(ISNUMBER(VLOOKUP($B59, 'Data Inputs'!$B$5:$H$648, 6, FALSE))=TRUE, VLOOKUP($B59, 'Data Inputs'!$B$5:$H$648, 6, FALSE), "") ->  | J59: =IF(ISNUMBER(VLOOKUP($B59, 'Data Inputs'!$B$5:$H$648, 7, FALSE))=TRUE, VLOOKUP($B59, 'Data Inputs'!$B$5:$H$648, 7, FALSE), "") ->  | K59: 65
B60: 55 | C60: =VLOOKUP($B60, 'Data Inputs'!$B$5:$F$214, 2, TRUE) ->  | D60: =VLOOKUP($B60, 'Data Inputs'!$B$5:$F$648, 3, TRUE) ->  | E60: =VLOOKUP($B60, 'Data Inputs'!$B$5:$F$648, 4, TRUE) ->  | H60: =IF(ISNUMBER(VLOOKUP($B60, 'Data Inputs'!$B$5:$F$648, 5, FALSE))=TRUE, VLOOKUP($B60, 'Data Inputs'!$B$5:$F$648, 5, FALSE), "") ->  | I60: =IF(ISNUMBER(VLOOKUP($B60, 'Data Inputs'!$B$5:$H$648, 6, FALSE))=TRUE, VLOOKUP($B60, 'Data Inputs'!$B$5:$H$648, 6, FALSE), "") ->  | J60: =IF(ISNUMBER(VLOOKUP($B60, 'Data Inputs'!$B$5:$H$648, 7, FALSE))=TRUE, VLOOKUP($B60, 'Data Inputs'!$B$5:$H$648, 7, FALSE), "") ->  | K60: 65
B61: 56 | C61: =VLOOKUP($B61, 'Data Inputs'!$B$5:$F$214, 2, TRUE) ->  | D61: =VLOOKUP($B61, 'Data Inputs'!$B$5:$F$648, 3, TRUE) ->  | E61: =VLOOKUP($B61, 'Data Inputs'!$B$5:$F$648, 4, TRUE) ->  | H61: =IF(ISNUMBER(VLOOKUP($B61, 'Data Inputs'!$B$5:$F$648, 5, FALSE))=TRUE, VLOOKUP($B61, 'Data Inputs'!$B$5:$F$648, 5, FALSE), "") ->  | I61: =IF(ISNUMBER(VLOOKUP($B61, 'Data Inputs'!$B$5:$H$648, 6, FALSE))=TRUE, VLOOKUP($B61, 'Data Inputs'!$B$5:$H$648, 6, FALSE), "") ->  | J61: =IF(ISNUMBER(VLOOKUP($B61, 'Data Inputs'!$B$5:$H$648, 7, FALSE))=TRUE, VLOOKUP($B61, 'Data Inputs'!$B$5:$H$648, 7, FALSE), "") ->  | K61: 65
B62: 57 | C62: =VLOOKUP($B62, 'Data Inputs'!$B$5:$F$214, 2, TRUE) ->  | D62: =VLOOKUP($B62, 'Data Inputs'!$B$5:$F$648, 3, TRUE) ->  | E62: =VLOOKUP($B62, 'Data Inputs'!$B$5:$F$648, 4, TRUE) ->  | H62: =IF(ISNUMBER(VLOOKUP($B62, 'Data Inputs'!$B$5:$F$648, 5, FALSE))=TRUE, VLOOKUP($B62, 'Data Inputs'!$B$5:$F$648, 5, FALSE), "") ->  | I62: =IF(ISNUMBER(VLOOKUP($B62, 'Data Inputs'!$B$5:$H$648, 6, FALSE))=TRUE, VLOOKUP($B62, 'Data Inputs'!$B$5:$H$648, 6, FALSE), "") ->  | J62: =IF(ISNUMBER(VLOOKUP($B62, 'Data Inputs'!$B$5:$H$648, 7, FALSE))=TRUE, VLOOKUP($B62, 'Data Inputs'!$B$5:$H$648, 7, FALSE), "") ->  | K62: 65
B63: 58 | C63: =VLOOKUP($B63, 'Data Inputs'!$B$5:$F$214, 2, TRUE) ->  | D63: =VLOOKUP($B63, 'Data Inputs'!$B$5:$F$648, 3, TRUE) ->  | E63: =VLOOKUP($B63, 'Data Inputs'!$B$5:$F$648, 4, TRUE) ->  | H63: =IF(ISNUMBER(VLOOKUP($B63, 'Data Inputs'!$B$5:$F$648, 5, FALSE))=TRUE, VLOOKUP($B63, 'Data Inputs'!$B$5:$F$648, 5, FALSE), "") ->  | I63: =IF(ISNUMBER(VLOOKUP($B63, 'Data Inputs'!$B$5:$H$648, 6, FALSE))=TRUE, VLOOKUP($B63, 'Data Inputs'!$B$5:$H$648, 6, FALSE), "") ->  | J63: =IF(ISNUMBER(VLOOKUP($B63, 'Data Inputs'!$B$5:$H$648, 7, FALSE))=TRUE, VLOOKUP($B63, 'Data Inputs'!$B$5:$H$648, 7, FALSE), "") ->  | K63: 65
B64: 59 | C64: =VLOOKUP($B64, 'Data Inputs'!$B$5:$F$214, 2, TRUE) ->  | D64: =VLOOKUP($B64, 'Data Inputs'!$B$5:$F$648, 3, TRUE) ->  | E64: =VLOOKUP($B64, 'Data Inputs'!$B$5:$F$648, 4, TRUE) ->  | H64: =IF(ISNUMBER(VLOOKUP($B64, 'Data Inputs'!$B$5:$F$648, 5, FALSE))=TRUE, VLOOKUP($B64, 'Data Inputs'!$B$5:$F$648, 5, FALSE), "") ->  | I64: =IF(ISNUMBER(VLOOKUP($B64, 'Data Inputs'!$B$5:$H$648, 6, FALSE))=TRUE, VLOOKUP($B64, 'Data Inputs'!$B$5:$H$648, 6, FALSE), "") ->  | J64: =IF(ISNUMBER(VLOOKUP($B64, 'Data Inputs'!$B$5:$H$648, 7, FALSE))=TRUE, VLOOKUP($B64, 'Data Inputs'!$B$5:$H$648, 7, FALSE), "") ->  | K64: 65
B65: 60 | C65: =VLOOKUP($B65, 'Data Inputs'!$B$5:$F$214, 2, TRUE) ->  | D65: =VLOOKUP($B65, 'Data Inputs'!$B$5:$F$648, 3, TRUE) ->  | E65: =VLOOKUP($B65, 'Data Inputs'!$B$5:$F$648, 4, TRUE) ->  | H65: =IF(ISNUMBER(VLOOKUP($B65, 'Data Inputs'!$B$5:$F$648, 5, FALSE))=TRUE, VLOOKUP($B65, 'Data Inputs'!$B$5:$F$648, 5, FALSE), "") ->  | I65: =IF(ISNUMBER(VLOOKUP($B65, 'Data Inputs'!$B$5:$H$648, 6, FALSE))=TRUE, VLOOKUP($B65, 'Data Inputs'!$B$5:$H$648, 6, FALSE), "") ->  | J65: =IF(ISNUMBER(VLOOKUP($B65, 'Data Inputs'!$B$5:$H$648, 7, FALSE))=TRUE, VLOOKUP($B65, 'Data Inputs'!$B$5:$H$648, 7, FALSE), "") ->  | K65: 65
K69: =MAX('Data Inputs'!$F$5:$F$206) -> 65
B72: Land Use
B73: Right | C73: -0.03 | D73: -0.03
B74: =IF('Basic Input'!#REF!="","", IF('Basic Input'!$F17="Right",'Basic Input'!#REF!, "")) ->  | C74: =IF('Basic Input'!#REF!="","", IF('Basic Input'!$F17="Right",'Basic Input'!#REF!+95, "")) ->  | D74: =IF('Basic Input'!#REF!="","", IF('Basic Input'!$F17="Right",'Basic Input'!#REF!-95, "")) ->  | E74: =IF('Basic Input'!F17="","", IF('Basic Input'!$F17="Right",'Basic Input'!F17, "")) -> 
B75: =IF('Basic Input'!#REF!="","", IF('Basic Input'!$F18="Right",'Basic Input'!#REF!, "")) ->  | C75: =IF('Basic Input'!#REF!="","", IF('Basic Input'!$F18="Right",'Basic Input'!#REF!+95, "")) ->  | D75: =IF('Basic Input'!#REF!="","", IF('Basic Input'!$F18="Right",'Basic Input'!#REF!-95, "")) ->  | E75: =IF('Basic Input'!F18="","", IF('Basic Input'!$F18="Right",'Basic Input'!F18, "")) -> 
B76: =IF('Basic Input'!#REF!="","", IF('Basic Input'!$F19="Right",'Basic Input'!#REF!, "")) ->  | C76: =IF('Basic Input'!#REF!="","", IF('Basic Input'!$F19="Right",'Basic Input'!#REF!+95, "")) ->  | D76: =IF('Basic Input'!#REF!="","", IF('Basic Input'!$F19="Right",'Basic Input'!#REF!-95, "")) ->  | E76: =IF('Basic Input'!F19="","", IF('Basic Input'!$F19="Right",'Basic Input'!F19, "")) -> 
B77: =IF('Basic Input'!#REF!="","", IF('Basic Input'!$F20="Right",'Basic Input'!#REF!, "")) ->  | C77: =IF('Basic Input'!#REF!="","", IF('Basic Input'!$F20="Right",'Basic Input'!#REF!+95, "")) ->  | D77: =IF('Basic Input'!#REF!="","", IF('Basic Input'!$F20="Right",'Basic Input'!#REF!-95, "")) ->  | E77: =IF('Basic Input'!F20="","", IF('Basic Input'!$F20="Right",'Basic Input'!F20, "")) -> 
B78: =IF('Basic Input'!#REF!="","", IF('Basic Input'!$F21="Right",'Basic Input'!#REF!, "")) ->  | C78: =IF('Basic Input'!#REF!="","", IF('Basic Input'!$F21="Right",'Basic Input'!#REF!+95, "")) ->  | D78: =IF('Basic Input'!#REF!="","", IF('Basic Input'!$F21="Right",'Basic Input'!#REF!-95, "")) ->  | E78: =IF('Basic Input'!F21="","", IF('Basic Input'!$F21="Right",'Basic Input'!F21, "")) -> 
B79: =IF('Basic Input'!#REF!="","", IF('Basic Input'!$F22="Right",'Basic Input'!#REF!, "")) ->  | C79: =IF('Basic Input'!#REF!="","", IF('Basic Input'!$F22="Right",'Basic Input'!#REF!+95, "")) ->  | D79: =IF('Basic Input'!#REF!="","", IF('Basic Input'!$F22="Right",'Basic Input'!#REF!-95, "")) ->  | E79: =IF('Basic Input'!F22="","", IF('Basic Input'!$F22="Right",'Basic Input'!F22, "")) -> 
B80: =IF('Basic Input'!#REF!="","", IF('Basic Input'!$F23="Right",'Basic Input'!#REF!, "")) ->  | C80: =IF('Basic Input'!#REF!="","", IF('Basic Input'!$F23="Right",'Basic Input'!#REF!+95, "")) ->  | D80: =IF('Basic Input'!#REF!="","", IF('Basic Input'!$F23="Right",'Basic Input'!#REF!-95, "")) ->  | E80: =IF('Basic Input'!F23="","", IF('Basic Input'!$F23="Right",'Basic Input'!F23, "")) -> 
B81: =IF('Basic Input'!#REF!="","", IF('Basic Input'!$F24="Right",'Basic Input'!#REF!, "")) ->  | C81: =IF('Basic Input'!#REF!="","", IF('Basic Input'!$F24="Right",'Basic Input'!#REF!+95, "")) ->  | D81: =IF('Basic Input'!#REF!="","", IF('Basic Input'!$F24="Right",'Basic Input'!#REF!-95, "")) ->  | E81: =IF('Basic Input'!F24="","", IF('Basic Input'!$F24="Right",'Basic Input'!F24, "")) -> 
B82: =IF('Basic Input'!#REF!="","", IF('Basic Input'!$F25="Right",'Basic Input'!#REF!, "")) ->  | C82: =IF('Basic Input'!#REF!="","", IF('Basic Input'!$F25="Right",'Basic Input'!#REF!+95, "")) ->  | D82: =IF('Basic Input'!#REF!="","", IF('Basic Input'!$F25="Right",'Basic Input'!#REF!-95, "")) ->  | E82: =IF('Basic Input'!F25="","", IF('Basic Input'!$F25="Right",'Basic Input'!F25, "")) -> 
B83: =IF('Basic Input'!#REF!="","", IF('Basic Input'!$F26="Right",'Basic Input'!#REF!, "")) ->  | C83: =IF('Basic Input'!#REF!="","", IF('Basic Input'!$F26="Right",'Basic Input'!#REF!+95, "")) ->  | D83: =IF('Basic Input'!#REF!="","", IF('Basic Input'!$F26="Right",'Basic Input'!#REF!-95, "")) ->  | E83: =IF('Basic Input'!F26="","", IF('Basic Input'!$F26="Right",'Basic Input'!F26, "")) -> 
B84: Left | C84: 0.03 | D84: 0.03
B85: =IF('Basic Input'!#REF!="","", IF('Basic Input'!$F17="Left",'Basic Input'!#REF!, "")) ->  | C85: =IF('Basic Input'!#REF!="","", IF('Basic Input'!$F17="Left",'Basic Input'!#REF!+95, "")) ->  | D85: =IF('Basic Input'!#REF!="","", IF('Basic Input'!$F17="Left",'Basic Input'!#REF!-95, "")) ->  | E85: =IF('Basic Input'!F17="","", IF('Basic Input'!$F17="Left",'Basic Input'!F17, "")) -> 
B86: =IF('Basic Input'!#REF!="","", IF('Basic Input'!$F18="Left",'Basic Input'!#REF!, "")) ->  | C86: =IF('Basic Input'!#REF!="","", IF('Basic Input'!$F18="Left",'Basic Input'!#REF!+95, "")) ->  | D86: =IF('Basic Input'!#REF!="","", IF('Basic Input'!$F18="Left",'Basic Input'!#REF!-95, "")) ->  | E86: =IF('Basic Input'!F18="","", IF('Basic Input'!$F18="Left",'Basic Input'!F18, "")) -> 
B87: =IF('Basic Input'!#REF!="","", IF('Basic Input'!$F19="Left",'Basic Input'!#REF!, "")) ->  | C87: =IF('Basic Input'!#REF!="","", IF('Basic Input'!$F19="Left",'Basic Input'!#REF!+95, "")) ->  | D87: =IF('Basic Input'!#REF!="","", IF('Basic Input'!$F19="Left",'Basic Input'!#REF!-95, "")) ->  | E87: =IF('Basic Input'!F19="","", IF('Basic Input'!$F19="Left",'Basic Input'!F19, "")) -> 
B88: =IF('Basic Input'!#REF!="","", IF('Basic Input'!$F20="Left",'Basic Input'!#REF!, "")) ->  | C88: =IF('Basic Input'!#REF!="","", IF('Basic Input'!$F20="Left",'Basic Input'!#REF!+95, "")) ->  | D88: =IF('Basic Input'!#REF!="","", IF('Basic Input'!$F20="Left",'Basic Input'!#REF!-95, "")) ->  | E88: =IF('Basic Input'!F20="","", IF('Basic Input'!$F20="Left",'Basic Input'!F20, "")) -> 
B89: =IF('Basic Input'!#REF!="","", IF('Basic Input'!$F21="Left",'Basic Input'!#REF!, "")) ->  | C89: =IF('Basic Input'!#REF!="","", IF('Basic Input'!$F21="Left",'Basic Input'!#REF!+95, "")) ->  | D89: =IF('Basic Input'!#REF!="","", IF('Basic Input'!$F21="Left",'Basic Input'!#REF!-95, "")) ->  | E89: =IF('Basic Input'!F21="","", IF('Basic Input'!$F21="Left",'Basic Input'!F21, "")) -> 
B90: =IF('Basic Input'!#REF!="","", IF('Basic Input'!$F22="Left",'Basic Input'!#REF!, "")) ->  | C90: =IF('Basic Input'!#REF!="","", IF('Basic Input'!$F22="Left",'Basic Input'!#REF!+95, "")) ->  | D90: =IF('Basic Input'!#REF!="","", IF('Basic Input'!$F22="Left",'Basic Input'!#REF!-95, "")) ->  | E90: =IF('Basic Input'!F22="","", IF('Basic Input'!$F22="Left",'Basic Input'!F22, "")) -> 
B91: =IF('Basic Input'!#REF!="","", IF('Basic Input'!$F23="Left",'Basic Input'!#REF!, "")) ->  | C91: =IF('Basic Input'!#REF!="","", IF('Basic Input'!$F23="Left",'Basic Input'!#REF!+95, "")) ->  | D91: =IF('Basic Input'!#REF!="","", IF('Basic Input'!$F23="Left",'Basic Input'!#REF!-95, "")) ->  | E91: =IF('Basic Input'!F23="","", IF('Basic Input'!$F23="Left",'Basic Input'!F23, "")) -> 
B92: =IF('Basic Input'!#REF!="","", IF('Basic Input'!$F24="Left",'Basic Input'!#REF!, "")) ->  | C92: =IF('Basic Input'!#REF!="","", IF('Basic Input'!$F24="Left",'Basic Input'!#REF!+95, "")) ->  | D92: =IF('Basic Input'!#REF!="","", IF('Basic Input'!$F24="Left",'Basic Input'!#REF!-95, "")) ->  | E92: =IF('Basic Input'!F24="","", IF('Basic Input'!$F24="Left",'Basic Input'!F24, "")) -> 
B93: =IF('Basic Input'!#REF!="","", IF('Basic Input'!$F25="Left",'Basic Input'!#REF!, "")) ->  | C93: =IF('Basic Input'!#REF!="","", IF('Basic Input'!$F25="Left",'Basic Input'!#REF!+95, "")) ->  | D93: =IF('Basic Input'!#REF!="","", IF('Basic Input'!$F25="Left",'Basic Input'!#REF!-95, "")) ->  | E93: =IF('Basic Input'!F25="","", IF('Basic Input'!$F25="Left",'Basic Input'!F25, "")) -> 
B94: =IF('Basic Input'!#REF!="","", IF('Basic Input'!$F26="Left",'Basic Input'!#REF!, "")) ->  | C94: =IF('Basic Input'!#REF!="","", IF('Basic Input'!$F26="Left",'Basic Input'!#REF!+95, "")) ->  | D94: =IF('Basic Input'!#REF!="","", IF('Basic Input'!$F26="Left",'Basic Input'!#REF!-95, "")) ->  | E94: =IF('Basic Input'!F26="","", IF('Basic Input'!$F26="Left",'Basic Input'!F26, "")) -> 

Sheet Working Data - HZ (hidden)
B1: WORKING DATA -- DO NOT MODIFY
C4: Distance (miles) | D4: Distance (feet) | E4: Mile Post | F4: Curve Radius (ft) | G4: Horizontal Curvature | O4: LABELS
C5: -0.1893939394 | D5: -1000 | E5: 5.160606061 | F5: 0 | G5: =IF(F5="", NA(), IF(F5=0, 0, 1000/F5)) -> 0 | O5: =IF('Basic Input'!C51<>"", 'Basic Input'!C51, "") -> Tangent | P5: =IF(O5="",NA(),('Basic Input'!D51+'Basic Input'!D51)/2) -> -1000 | Q5: =IF(O5="", NA(), IF('Basic Input'!C51="Curve Right", -1, 1)) -> 1 | R5: =IF(P5="", NA(), IF('Basic Input'!F51=0,0, Q5*1000/'Basic Input'!F51)) -> 0 | S5: =IF('Basic Input'!F51<>"", 'Basic Input'!F51, "") -> 0
C6: -0.1893939394 | D6: -1000 | E6: 5.160606061 | F6: 0 | G6: =IF(F6="", NA(), IF(F6=0, 0, 1000/F6)) -> 0 | O6: =IF('Basic Input'!C52<>"", 'Basic Input'!C52, "") ->  | P6: =IF(O6="",NA(),('Basic Input'!D52+'Basic Input'!D52)/2) ->  | Q6: =IF(O6="", NA(), IF('Basic Input'!C52="Curve Right", -1, 1)) ->  | R6: =IF(P6="", NA(), IF('Basic Input'!F52=0,0, Q6*1000/'Basic Input'!F52)) ->  | S6: =IF('Basic Input'!F52<>"", 'Basic Input'!F52, "") -> 
C7: -0.1704545455 | D7: -900 | E7: 5.179545455 | F7: 0 | G7: 0 | O7: =IF('Basic Input'!C53<>"", 'Basic Input'!C53, "") ->  | P7: =IF(O7="",NA(),('Basic Input'!D53+'Basic Input'!D53)/2) ->  | Q7: =IF(O7="", NA(), IF('Basic Input'!C53="Curve Right", -1, 1)) ->  | R7: =IF(P7="", NA(), IF('Basic Input'!F53=0,0, Q7*1000/'Basic Input'!F53)) ->  | S7: =IF('Basic Input'!F53<>"", 'Basic Input'!F53, "") -> 
C8: -0.1515151515 | D8: -800 | E8: 5.198484848 | F8: 0 | G8: 0 | O8: =IF('Basic Input'!C54<>"", 'Basic Input'!C54, "") ->  | P8: =IF(O8="",NA(),('Basic Input'!D54+'Basic Input'!D54)/2) ->  | Q8: =IF(O8="", NA(), IF('Basic Input'!C54="Curve Right", -1, 1)) ->  | R8: =IF(P8="", NA(), IF('Basic Input'!F54=0,0, Q8*1000/'Basic Input'!F54)) ->  | S8: =IF('Basic Input'!F54<>"", 'Basic Input'!F54, "") -> 
C9: -0.1325757576 | D9: -700 | E9: 5.217424242 | F9: 0 | G9: 0 | O9: =IF('Basic Input'!C55<>"", 'Basic Input'!C55, "") ->  | P9: =IF(O9="",NA(),('Basic Input'!D55+'Basic Input'!D55)/2) ->  | Q9: =IF(O9="", NA(), IF('Basic Input'!C55="Curve Right", -1, 1)) ->  | R9: =IF(P9="", NA(), IF('Basic Input'!F55=0,0, Q9*1000/'Basic Input'!F55)) ->  | S9: =IF('Basic Input'!F55<>"", 'Basic Input'!F55, "") -> 
C10: -0.1136363636 | D10: -600 | E10: 5.236363636 | F10: 0 | G10: 0 | O10: =IF('Basic Input'!C56<>"", 'Basic Input'!C56, "") ->  | P10: =IF(O10="",NA(),('Basic Input'!D56+'Basic Input'!D56)/2) ->  | Q10: =IF(O10="", NA(), IF('Basic Input'!C56="Curve Right", -1, 1)) ->  | R10: =IF(P10="", NA(), IF('Basic Input'!F56=0,0, Q10*1000/'Basic Input'!F56)) ->  | S10: =IF('Basic Input'!F56<>"", 'Basic Input'!F56, "") -> 
C11: -0.0946969697 | D11: -500 | E11: 5.25530303 | F11: 0 | G11: 0 | O11: =IF('Basic Input'!C57<>"", 'Basic Input'!C57, "") ->  | P11: =IF(O11="",NA(),('Basic Input'!D57+'Basic Input'!D57)/2) ->  | Q11: =IF(O11="", NA(), IF('Basic Input'!C57="Curve Right", -1, 1)) ->  | R11: =IF(P11="", NA(), IF('Basic Input'!F57=0,0, Q11*1000/'Basic Input'!F57)) ->  | S11: =IF('Basic Input'!F57<>"", 'Basic Input'!F57, "") -> 
C12: -0.07575757576 | D12: -400 | E12: 5.274242424 | F12: 0 | G12: 0 | O12: =IF('Basic Input'!C58<>"", 'Basic Input'!C58, "") ->  | P12: =IF(O12="",NA(),('Basic Input'!D58+'Basic Input'!D58)/2) ->  | Q12: =IF(O12="", NA(), IF('Basic Input'!C58="Curve Right", -1, 1)) ->  | R12: =IF(P12="", NA(), IF('Basic Input'!F58=0,0, Q12*1000/'Basic Input'!F58)) ->  | S12: =IF('Basic Input'!F58<>"", 'Basic Input'!F58, "") -> 
C13: -0.05681818182 | D13: -300 | E13: 5.293181818 | F13: 0 | G13: 0 | O13: =IF('Basic Input'!C59<>"", 'Basic Input'!C59, "") ->  | P13: =IF(O13="",NA(),('Basic Input'!D59+'Basic Input'!D59)/2) ->  | Q13: =IF(O13="", NA(), IF('Basic Input'!C59="Curve Right", -1, 1)) ->  | R13: =IF(P13="", NA(), IF('Basic Input'!F59=0,0, Q13*1000/'Basic Input'!F59)) ->  | S13: =IF('Basic Input'!F59<>"", 'Basic Input'!F59, "") -> 
C14: -0.03787878788 | D14: -200 | E14: 5.312121212 | F14: 0 | G14: 0 | O14: =IF('Basic Input'!C60<>"", 'Basic Input'!C60, "") ->  | P14: =IF(O14="",NA(),('Basic Input'!D60+'Basic Input'!D60)/2) ->  | Q14: =IF(O14="", NA(), IF('Basic Input'!C60="Curve Right", -1, 1)) ->  | R14: =IF(P14="", NA(), IF('Basic Input'!F60=0,0, Q14*1000/'Basic Input'!F60)) ->  | S14: =IF('Basic Input'!F60<>"", 'Basic Input'!F60, "") -> 
C15: -0.01893939394 | D15: -100 | E15: 5.331060606 | F15: 0 | G15: 0
C16: 0 | D16: 0 | E16: 5.35 | F16: 0 | G16: 0
C17: 0.01893939394 | D17: 100 | E17: 5.368939394 | F17: 0 | G17: 0
C18: 0.03787878788 | D18: 200 | E18: 5.387878788 | F18: 0 | G18: 0
C19: 0.05681818182 | D19: 300 | E19: 5.406818182 | F19: 0 | G19: 0
C20: 0.07575757576 | D20: 400 | E20: 5.425757576 | F20: 0 | G20: 0
C21: 0.0946969697 | D21: 500 | E21: 5.44469697 | F21: 0 | G21: 0
C22: 0.1136363636 | D22: 600 | E22: 5.463636364 | F22: 0 | G22: 0
C23: 0.1325757576 | D23: 700 | E23: 5.482575758 | F23: 0 | G23: 0
C24: 0.1515151515 | D24: 800 | E24: 5.501515152 | F24: 0 | G24: 0
C25: 0.1704545455 | D25: 900 | E25: 5.520454545 | F25: 0 | G25: 0
C26: 0.1893939394 | D26: 1000 | E26: 5.539393939 | F26: 0 | G26: 0
C27: 0.2083333333 | D27: 1100 | E27: 5.558333333 | F27: 0 | G27: 0
C28: 0.2272727273 | D28: 1200 | E28: 5.577272727 | F28: 0 | G28: 0
C29: 0.2462121212 | D29: 1300 | E29: 5.596212121 | F29: 0 | G29: 0
C30: 0.2651515152 | D30: 1400 | E30: 5.615151515 | F30: 0 | G30: 0
C31: 0.2840909091 | D31: 1500 | E31: 5.634090909 | F31: 0 | G31: 0
C32: 0.303030303 | D32: 1600 | E32: 5.653030303 | F32: 0 | G32: 0
C33: 0.321969697 | D33: 1700 | E33: 5.671969697 | F33: 0 | G33: 0
C34: 0.3409090909 | D34: 1800 | E34: 5.690909091 | F34: 0 | G34: 0
C35: 0.3598484848 | D35: 1900 | E35: 5.709848485 | F35: 0 | G35: 0
C36: 0.3787878788 | D36: 2000 | E36: 5.728787879 | F36: 0 | G36: 0
C37: 0.3977272727 | D37: 2100 | E37: 5.747727273 | F37: 0 | G37: 0
C38: 0.4166666667 | D38: 2200 | E38: 5.766666667 | F38: 0 | G38: 0
C39: 0.4356060606 | D39: 2300 | E39: 5.785606061 | F39: 0 | G39: 0
C40: 0.4545454545 | D40: 2400 | E40: 5.804545455 | F40: 0 | G40: 0
C41: 0.4734848485 | D41: 2500 | E41: 5.823484848 | F41: 0 | G41: 0
C42: 0.4924242424 | D42: 2600 | E42: 5.842424242 | F42: 0 | G42: 0
C43: 0.5113636364 | D43: 2700 | E43: 5.861363636 | F43: 0 | G43: 0
C44: 0.5303030303 | D44: 2800 | E44: 5.88030303 | F44: 0 | G44: 0
C45: 0.5492424242 | D45: 2900 | E45: 5.899242424 | F45: 0 | G45: 0
C46: 0.5681818182 | D46: 3000 | E46: 5.918181818 | F46: 0 | G46: 0
C47: 0.5871212121 | D47: 3100 | E47: 5.937121212 | F47: 0 | G47: 0
C48: 0.6060606061 | D48: 3200 | E48: 5.956060606 | F48: 0 | G48: 0
C49: 0.625 | D49: 3300 | E49: 5.975 | F49: 0 | G49: 0
C50: 0.6439393939 | D50: 3400 | E50: 5.993939394 | F50: 0 | G50: 0
C51: 0.6628787879 | D51: 3500 | E51: 6.012878788 | F51: 0 | G51: 0
C52: 0.6628787879 | D52: 3500 | E52: 6.012878788 | F52: 0 | G52: 0
C53: 0.6818181818 | D53: 3600 | E53: 6.031818182
C54: 0.7007575758 | D54: 3700 | E54: 6.050757576
C55: 0.7196969697 | D55: 3800 | E55: 6.06969697
C56: 0.7386363636 | D56: 3900 | E56: 6.088636364
C57: 0.7575757576 | D57: 4000 | E57: 6.107575758
C58: 0.7765151515 | D58: 4100 | E58: 6.126515152
C59: 0.7954545455 | D59: 4200 | E59: 6.145454545
C60: 0.8143939394 | D60: 4300 | E60: 6.164393939
C61: 0.8333333333 | D61: 4400 | E61: 6.183333333
C62: 0.8522727273 | D62: 4500 | E62: 6.202272727
C63: 0.8712121212 | D63: 4600 | E63: 6.221212121
C64: 0.8901515152 | D64: 4700 | E64: 6.240151515
C65: 0.9090909091 | D65: 4800 | E65: 6.259090909
C66: 0.928030303 | D66: 4900 | E66: 6.278030303
C67: 0.946969697 | D67: 5000 | E67: 6.296969697
C68: 0.8901515152 | D68: 4700 | E68: 0.8901515152
C69: 0.9090909091 | D69: 4800 | E69: 0.9090909091
C70: 0.928030303 | D70: 4900 | E70: 0.928030303 | G70: =IF(F70="", NA(), IF(F70=0, 0, 1000/F70)) -> 
C71: 0.946969697 | D71: 5000 | E71: 0.946969697
C72: 0.8901515152 | D72: 4700 | E72: 53.79015152
C73: 0.9090909091 | D73: 4800 | E73: 53.80909091
C74: 0.928030303 | D74: 4900 | E74: 53.8280303
C75: 0.946969697 | D75: 5000 | E75: 53.8469697
C76: 0.946969697 | D76: 5000 | E76: 53.8469697
G134: =IF(F134="", NA(), IF(F134=0, 0, 1000/F134)) -> 

Sheet Working Data - Vol (hidden)
B1: WORKING DATA -- DO NOT MODIFY
C4: Distance (miles) | D4: Distance (feet) | E4: Mile Post | F4: 2 way ADT | G4: Graphable
C5: -0.1893939394 | D5: -1000 | E5: 5.160606061 | F5: 0 | G5: =IF(F5=0, NA(), IF(F5="", NA(), F5)) -> 
C6: -0.1893939394 | D6: -1000 | E6: 5.160606061 | F6: 4310 | G6: =IF(F6=0, NA(), IF(F6="", NA(), F6)) -> 4310
C7: -0.1704545455 | D7: -900 | E7: 5.179545455 | F7: 4310 | G7: 4310
C8: -0.1515151515 | D8: -800 | E8: 5.198484848 | F8: 4310 | G8: 4310
C9: -0.1325757576 | D9: -700 | E9: 5.217424242 | F9: 4310 | G9: 4310
C10: -0.1136363636 | D10: -600 | E10: 5.236363636 | F10: 4310 | G10: 4310
C11: -0.0946969697 | D11: -500 | E11: 5.25530303 | F11: 4310 | G11: 4310
C12: -0.07575757576 | D12: -400 | E12: 5.274242424 | F12: 4310 | G12: 4310
C13: -0.05681818182 | D13: -300 | E13: 5.293181818 | F13: 4310 | G13: 4310
C14: -0.03787878788 | D14: -200 | E14: 5.312121212 | F14: 4310 | G14: 4310
C15: -0.01893939394 | D15: -100 | E15: 5.331060606 | F15: 4310 | G15: 4310
C16: 0 | D16: 0 | E16: 5.35 | F16: 4310 | G16: 4310
C17: 0.01893939394 | D17: 100 | E17: 5.368939394 | F17: 4310 | G17: 4310
C18: 0.03787878788 | D18: 200 | E18: 5.387878788 | F18: 4310 | G18: 4310
C19: 0.05681818182 | D19: 300 | E19: 5.406818182 | F19: 4310 | G19: 4310
C20: 0.07575757576 | D20: 400 | E20: 5.425757576 | F20: 4310 | G20: 4310
C21: 0.0946969697 | D21: 500 | E21: 5.44469697 | F21: 4310 | G21: 4310
C22: 0.1136363636 | D22: 600 | E22: 5.463636364 | F22: 4310 | G22: 4310
C23: 0.1325757576 | D23: 700 | E23: 5.482575758 | F23: 4310 | G23: 4310
C24: 0.1515151515 | D24: 800 | E24: 5.501515152 | F24: 4310 | G24: 4310
C25: 0.1704545455 | D25: 900 | E25: 5.520454545 | F25: 4310 | G25: 4310
C26: 0.1893939394 | D26: 1000 | E26: 5.539393939 | F26: 4310 | G26: 4310
C27: 0.2083333333 | D27: 1100 | E27: 5.558333333 | F27: 4310 | G27: 4310
C28: 0.2272727273 | D28: 1200 | E28: 5.577272727 | F28: 4310 | G28: 4310
C29: 0.2462121212 | D29: 1300 | E29: 5.596212121 | F29: 4310 | G29: 4310
C30: 0.2651515152 | D30: 1400 | E30: 5.615151515 | F30: 4310 | G30: 4310
C31: 0.2840909091 | D31: 1500 | E31: 5.634090909 | F31: 4310 | G31: 4310
C32: 0.303030303 | D32: 1600 | E32: 5.653030303 | F32: 4310 | G32: 4310
C33: 0.321969697 | D33: 1700 | E33: 5.671969697 | F33: 4310 | G33: 4310
C34: 0.3409090909 | D34: 1800 | E34: 5.690909091 | F34: 4310 | G34: 4310
C35: 0.3598484848 | D35: 1900 | E35: 5.709848485 | F35: 4310 | G35: 4310
C36: 0.3787878788 | D36: 2000 | E36: 5.728787879 | F36: 4310 | G36: 4310
C37: 0.3977272727 | D37: 2100 | E37: 5.747727273 | F37: 4310 | G37: 4310
C38: 0.4166666667 | D38: 2200 | E38: 5.766666667 | F38: 4310 | G38: 4310
C39: 0.4356060606 | D39: 2300 | E39: 5.785606061 | F39: 4310 | G39: 4310
C40: 0.4545454545 | D40: 2400 | E40: 5.804545455 | F40: 4310 | G40: 4310
C41: 0.4734848485 | D41: 2500 | E41: 5.823484848 | F41: 4310 | G41: 4310
C42: 0.4924242424 | D42: 2600 | E42: 5.842424242 | F42: 4310 | G42: 4310
C43: 0.5113636364 | D43: 2700 | E43: 5.861363636 | F43: 4310 | G43: 4310
C44: 0.5303030303 | D44: 2800 | E44: 5.88030303 | F44: 4310 | G44: 4310
C45: 0.5492424242 | D45: 2900 | E45: 5.899242424 | F45: 4310 | G45: 4310
C46: 0.5681818182 | D46: 3000 | E46: 5.918181818 | F46: 4310 | G46: 4310
C47: 0.5871212121 | D47: 3100 | E47: 5.937121212 | F47: 4310 | G47: 4310
C48: 0.6060606061 | D48: 3200 | E48: 5.956060606 | F48: 4310 | G48: 4310
C49: 0.625 | D49: 3300 | E49: 5.975 | F49: 4310 | G49: 4310
C50: 0.6439393939 | D50: 3400 | E50: 5.993939394 | F50: 4310 | G50: 4310
C51: 0.6628787879 | D51: 3500 | E51: 6.012878788 | F51: 4310 | G51: 4310
C52: 0.6628787879 | D52: 3500 | E52: 6.012878788 | F52: 0
C53: 0.6818181818 | D53: 3600 | E53: 6.031818182
C54: 0.7007575758 | D54: 3700 | E54: 6.050757576
C55: 0.7196969697 | D55: 3800 | E55: 6.06969697
C56: 0.7386363636 | D56: 3900 | E56: 6.088636364
C57: 0.7575757576 | D57: 4000 | E57: 6.107575758
C58: 0.7765151515 | D58: 4100 | E58: 6.126515152
C59: 0.7954545455 | D59: 4200 | E59: 6.145454545
C60: 0.8143939394 | D60: 4300 | E60: 6.164393939
C61: 0.8333333333 | D61: 4400 | E61: 6.183333333
C62: 0.8522727273 | D62: 4500 | E62: 6.202272727
C63: 0.8712121212 | D63: 4600 | E63: 6.221212121
C64: 0.8901515152 | D64: 4700 | E64: 6.240151515
C65: 0.9090909091 | D65: 4800 | E65: 6.259090909
C66: 0.928030303 | D66: 4900 | E66: 6.278030303
C67: 0.946969697 | D67: 5000 | E67: 6.296969697
C68: 0.946969697 | D68: 5000 | E68: 0.946969697
C69: 0.946969697 | D69: 5000 | E69: 53.8469697
C70: 0.928030303 | D70: 4900 | E70: 53.8280303 | G70: =IF(F70=0, NA(), IF(F70="", NA(), F70)) -> 
C71: 0.946969697 | D71: 5000 | E71: 53.8469697
G134: =IF(F134=0, NA(), IF(F134="", NA(), F134)) -> 
G198: =IF(F198=0, NA(), IF(F198="", NA(), F198)) -> 
